Workbook

Sheet Introduction
B2: Informing Interventions to reduce health Inequalities ('Triple I'):
B3: Alcohol Brief Interventions (ABIs)
B7: Informing Interventions to reduce health Inequalities ('Triple I') is a collaboration between NHS Health Scotland and the Scottish Public Health Observatory (ScotPHO).
B8: Triple I provides national and local decision makers with practical tools and interpreted results about investing in interventions to reduce health inequalities in Scotland.
B9: It does this by modelling the potential impact of different interventions and policies on overall population health and health inequalities.
B10: This tool is part of a set of 9 spreadsheets and associated documentation, produced as an update and extension of our 2014 Triple I work.
B11: Data and evidence have been updated where applicable, new interventions have been included, and presentation of the results has been improved.
B12: The tool can be used to produce detailed results for different geographies (Scotland, Health Boards, Local Authorities, City Regions, or Integrated Joint Boards).
B13: Results are provided for three health outcomes: premature mortality, years of life lost, and hospital stays.
B15: The interventions:
B16: The interventions were chosen based on the highest quality and most generalisable evidence linking them to changes in all-cause mortality and hospital admissions.
B17: The topics addressed by the interventions span the determinants of health (including ‘upstream’, ‘downstream’, individual-level and population-wide).
B18: There are 9 Triple I spreadsheet tools (corresponding to the topic areas below).
C20: Individual-level interventions: | H20: Population-wide interventions:
C21: (N.B. modelled as being implemented in year 1 only) | H21: (N.B. permanent: modelled as remaining
C22: Topic | D22: Intervention(s) | H22: in place after implementation in year 1)
C23: Mental Health | D23: Interventions for depression | H23: Topic | J23: Intervention(s)
C24: Obesity | D24: Weight management service | H24: Physical Environment | J24: 20 mph speed limits
C25: Physical inactivity | D25: Physical activity interventions | H25: Smoking | J25: Tobacco taxation
C26: Smoking | D26: Smoking cessation | H26: Income | J26: Income-based policies
C27: Alcohol consumption | D27: Alcohol Brief Interventions (ABIs)
C28: Unemployment | D28: Job provision
B30: Pages in this spreadsheet tool:
C31: Introduction | E31: >> | F31: Information about the Triple I project
C32: User guide | E32: >> | F32: How to use this spreadsheet tool
C33: Options | E33: >> | F33: Where users can change the model options, and see high-level results
C34: Results | E34: >> | F34: Full results for the chosen model options
C35: Evidence | E35: >> | F35: Summary of the evidence underpinning the model, and definitions of the policies/interventions
B37: Further information is available on the Triple I website: | G37: Triple I website
C38: Interactive results browser | E38: >> | F38: An online interactive results browser for comparing different interventions (April 2019)
C39: National Overview Report | E39: >> | F39: A summary report of the national-level findings (April 2019)
C40: Technical Report | E40: >> | F40: Details of Triple I's methods and data sources (April 2019)
C41: Frequently Asked Questions | E41: >> | F41: Answers to frequently-asked questions about Triple I (April 2019)
C42: Income-based policies | E42: >> | F42: Report and Supplementary Information about the income-based policies work (October 2018)
C43: nhs.triple.i@nhs.net | E43: >> | F43: Email us for more information.
B45: Abbreviations used
B46: IJB | C46: Integrated Joint Board
B47: LA | C47: Local Authority
B48: RII | C48: Relative Index of Inequality
B49: SII | C49: Slope Index of Inequality
B50: SIMD | C50: Scottish Index of Multiple Deprivation
B51: Q1 - Q5 | C51: Quintiles of the SIMD: Q1 contains the 20% most deprived areas, and Q5 contains the 20% least deprived areas.

Sheet User Guide
B2: User Guide
B4: Please note: Macros need to be enabled for the tools to work properly.
B5: How to do this in a recent version of Excel: File > Options > Trust Center > Trust Center Settings > Macro Settings > "Enable all macros"
B6: How to do this in an older version of Excel: Tools > Options > Security > Macro Security > "Medium"
B8: Changing the intervention details:
B9: You can interact with the Triple I model from the Options tab.
B10: Any changes made to the shaded cells (blue) on this tab will cause Excel to recalculate the model and present new results.
B11: Below are the options available (N.B. not every spreadsheet will have all of these options):
B13: Intervention:
B14: Choose the intervention of interest (only relevant for tools covering more than one intervention: Mental health, Physical activity, and Income-based interventions)
B16: Area:
B17: Choose the area to run the model for. The available geographies are listed below.
C18: 1. Health Boards: | F18: The 14 territorial NHS health boards responsible for delivery of frontline healthcare services in Scotland (2014 boundaries).
C19: 2. Local Authorities: | F19: The 32 elected councils that provide a range of services to local people, including education and care.
F20: The Gaelic name of Eilean Siar is used for the local authority covering the Western Isles.
C21: 3. Integrated Joint Boards: | F21: 31 integration authorities were created by The Public Bodies (Joint Working) Act 2014, in order to integrate the health and
F22: social care functions of health boards and local authorities. These Integrated Joint Boards (IJBs) or Partnerships
F23: correspond to local authority areas, with the exception of Clackmannanshire and Stirling IJB which combines two local
F24: authorities. The Gaelic name of Eilean Siar is used for the IJB covering the Western Isles.
C25: 4. City Region Deals: | F25: City Region Deals are agreements between the Scottish Government, the UK Government and local government.
F26: They have been designed to bring about long-term strategic approaches to improving regional economies.
F27: The following 6 city regions are included:
F29: City Region: | J29: Local Authorities (LAs) included:
F30: Aberdeen City Region Deal | J30: Aberdeen and Aberdeenshire
F31: Edinburgh & Southeast Scotland City Region Deal | J31: Edinburgh, Fife, East Lothian, Midlothian, West Lothian, Borders
F32: Glasgow City Region Deal | J32: East Dunbartonshire, East Renfrewshire, Glasgow City, Inverclyde,
J33: North Lanarkshire, Renfrewshire, South Lanarkshire, West Dunbartonshire
F34: Inverness & Highland City Region Deal | J34: Highland
F35: Stirling and Clackmannanshire City Region Deal | J35: Stirling and Clackmannanshire
F36: Tay Cities Region Deal | J36: Dundee, Perth & Kinross, Angus, Fife
B38: Targeting strategy:
B39: The strategy for delivering the individual-level* interventions can be altered by the user.
B40: *Interventions delivered to individuals: mental health, weight management, physical activity, smoking cessation, alcohol brief interventions, and job provision.
B41: Four options are available:
B42: · Even distribution: treat the same proportion of the eligible population in each subgroup (i.e., age group, sex and SIMD 2016 quintile).
B43: · Proportionate to need: the proportion of each subgroup treated is proportionate to the subgroup's prevalence of the exposure (e.g., smoking or depression).
B44: · Most deprived 20% only**: treat only those in SIMD quintile 1 (even distribution within this quintile).
B45: · Most deprived 40% only: treat only those in SIMD quintiles 1 and 2 (even distribution within these quintiles).
B46: **The Orkney Islands, Shetland Islands and the Western Isles do not have population in SIMD 2016 quintile 1, so targeting to quintile 1 will produce an error message.
B48: Number to treat:
B49: For individual-level interventions you can choose the number of people to be treated.
B50: · For information the maximum number of people who are eligible to be treated will be calculated in the preceding cell.
B51: · If a higher number is entered an error message will prevent the calculation from occurring.
B52: · Be aware that the model will run and produce results if changes to another cell mean that the number of people then exceeds the new maximum number.
B54: Number of years:
B55: The interventions are delivered in year 1.
B56: Their effects can be modelled from year 2 (the first year of follow-up) to year 20.
B57: N.B. Individual-level interventions are delivered for a single year, while the population-level interventions are modelled as remaining in place after year 1.
B59: Viewing the results:
B60: Options tab | D60: A summary of the results is shown on the Options tab.
B61: Results tab | D61: More detailed results are shown on the Results tab.
B62: Technical Report | D62: Further information about how the results are calculated, and how to interpret them, can be found in the Triple I Technical Report.
B64: For advanced users: How to make more advanced changes to the model
B65: The inner workings of the Triple I tools are described in the Technical Report. We recommend you consult the report before making any advanced changes.
B66: The model data and calculations can be found in a number of 'hidden' tabs.
B67: These are hidden to simplify the spreadsheet for users.
B68: To see the hidden tabs, right-click on any tab, select 'Unhide', then select the tab you want to unhide.
B69: The hidden tabs include population data, prevalence data, targeting calculations, and result calculations.
B70: VBA (Visual Basic for Applications) code has been written to create bespoke functions for the calculations.
B71: The code can be found from the Developer tab > Visual Basic.
B72: If the Developer tab is not shown in your version of Excel go to File > Options > Customize Ribbon and switch on the Developer tab (recent Excel versions only).

Sheet Options
B2: Options for changing the model: | E2: Results summary:
B4: Change the shaded cells (blue) to recalculate. | E4: Check the Results tab for a detailed breakdown of the results
B5: N.B. Results may take a few seconds to change. | E5: Results shown as cumulative difference from baseline over the follow-up period (% difference in brackets).
B7: Intervention: (defined on Evidence tab) | E7: POLICY IMPACT ON HEALTH* | F7: Whole population | G7: SIMD Q1 & Q2 | H7: SIMD Q1
B8: Alcohol Brief Intervention | E8: Hospital stays prevented | F8: =CONCATENATE(FIXED(Results!E16,0)," (",FIXED(Results!F16,2),"%)") -> 4,652 (0.41%) | G8: =CONCATENATE(FIXED(Results!E17,0)," (",FIXED(Results!F17,2),"%)") -> 2,210 (0.41%) | H8: =IF(OR(Calculations!$E$2="Orkney Health Board",Calculations!$E$2="Orkney Islands Local Authority",Calculations!$E$2="Shetland Health Board",Calculations!$E$2="Western Isles Health Board",Calculations!$E$2="Shetland Islands Local Authority",Calculations!$E$2="Eilean Siar Local Authority"),"N/A", CONCATENATE(FIXED(Results!E18,0)," (",FIXED(Results!F18,2),"%)")) -> 1,177 (0.41%)
E9: Premature deaths prevented | F9: =CONCATENATE(FIXED(Results!E20,0)," (",FIXED(Results!F20,2),"%)") -> 94 (0.44%) | G9: =CONCATENATE(FIXED(Results!E21,0)," (",FIXED(Results!F21,2),"%)") -> 50 (0.44%) | H9: =IF(OR(Calculations!$E$2="Orkney Health Board",Calculations!$E$2="Orkney Islands Local Authority",Calculations!$E$2="Shetland Health Board",Calculations!$E$2="Western Isles Health Board",Calculations!$E$2="Shetland Islands Local Authority",Calculations!$E$2="Eilean Siar Local Authority"),"N/A", CONCATENATE(FIXED(Results!E22,0)," (",FIXED(Results!F22,2),"%)")) -> 28 (0.44%)
B10: Choose the area to run the model for: | E10: Years of life saved | F10: =CONCATENATE(FIXED(Results!E24,0)," (",FIXED(Results!F24,2),"%)") -> 2,608 (0.44%) | G10: =CONCATENATE(FIXED(Results!E25,0)," (",FIXED(Results!F25,2),"%)") -> 1,399 (0.44%) | H10: =IF(OR(Calculations!$E$2="Orkney Health Board",Calculations!$E$2="Orkney Islands Local Authority",Calculations!$E$2="Shetland Health Board",Calculations!$E$2="Western Isles Health Board",Calculations!$E$2="Shetland Islands Local Authority",Calculations!$E$2="Eilean Siar Local Authority"),"N/A", CONCATENATE(FIXED(Results!E26,0)," (",FIXED(Results!F26,2),"%)")) -> 788 (0.44%)
B11: Scotland | E11: *N.B. a positive figure indicates an improvement in health outcomes.
B13: Choose the targeting strategy: | E13: POLICY IMPACT ON HEALTH INEQUALITIES**
B14: Even distribution | E14: Gap between most and least deprived | F14: Absolute | G14: Relative
E15: Hospital stays | F15: =CONCATENATE(FIXED(Results!E29,0)," (",FIXED(Results!F29,3),"%)") -> -55 (-0.411%) | G15: =CONCATENATE(FIXED(Results!E33,4)," (",FIXED(Results!F33,3),"%)") -> 0.0000 (-0.002%)
B16: Max no. people available to be treated: | E16: Premature deaths | F16: =CONCATENATE(FIXED(Results!E30,0)," (",FIXED(Results!F30,3),"%)") -> -2 (-0.441%) | G16: =CONCATENATE(FIXED(Results!E34,4)," (",FIXED(Results!F34,3),"%)") -> -0.0002 (-0.007%)
B17: =ROUNDDOWN(IF(OR($B$14="Even distribution",$B$14="Proportionate to need"),HLOOKUP(Calculations!$E$2,'Population at Risk'!$C$3:$BC$257,'Population at Risk'!BD255,FALSE),IF($B$14="Targeting to SIMD Q1",HLOOKUP(Calculations!$E$2,'Population at Risk'!$C$3:$BC$257,'Population at Risk'!BD256,FALSE),IF($B$14="Targeting to SIMD Q1 & Q2",HLOOKUP(Calculations!$E$2,'Population at Risk'!$C$3:$BC$257,'Population at Risk'!BD257,FALSE),"error"))),0) -> 339384 | E17: Years of life lost | F17: =CONCATENATE(FIXED(Results!E31,0)," (",FIXED(Results!F31,3),"%)") -> -55 (-0.440%) | G17: =CONCATENATE(FIXED(Results!E35,4)," (",FIXED(Results!F35,3),"%)") -> -0.0001 (-0.003%)
E18: Population-wide inequalities slope | F18: Absolute (SII) | G18: Relative (RII)
B19: Choose the number of people to treat: | E19: Hospital stays | F19: =CONCATENATE(FIXED(Results!E37,0)," (",FIXED(Results!F37,3),"%)") -> -66 (-0.411%) | G19: =CONCATENATE(FIXED(Results!E41,4)," (",FIXED(Results!F41,3),"%)") -> 0.0000 (-0.004%)
B20: (in addition to current number treated) | E20: Premature deaths | F20: =CONCATENATE(FIXED(Results!E38,0)," (",FIXED(Results!F38,3),"%)") -> -2 (-0.443%) | G20: =CONCATENATE(FIXED(Results!E42,4)," (",FIXED(Results!F42,3),"%)") -> -0.0001 (-0.007%)
B21: 339384 | E21: Years of life lost | F21: =CONCATENATE(FIXED(Results!E39,0)," (",FIXED(Results!F39,3),"%)") -> -65 (-0.443%) | G21: =CONCATENATE(FIXED(Results!E43,4)," (",FIXED(Results!F43,3),"%)") -> -0.0001 (-0.004%)
B22: =IF(AND(OR(Calculations!$E$2="Orkney Health Board",Calculations!$E$2="Orkney Islands Local Authority",Calculations!$E$2="Shetland Health Board",Calculations!$E$2="Western Isles Health Board",Calculations!$E$2="Shetland Islands Local Authority",Calculations!$E$2="Eilean Siar Local Authority"),B14="Targeting to SIMD Q1"),"Error: No Q1 population for this area", IF(B21>B17,"Too high: please check and re-enter","")) ->  | E22: **N.B. Based on rates per 100,000. A negative figure indicates reduced inequalities / narrowing of the gap.
B23: Calculate health impact after this many years:
B24: 2 | E24: SELECTED COSTS AND SAVINGS*** | G24: £
E25: Direct financial cost of the intervention (£): | G25: =Results!D50 -> 13235976
E26: Direct financial savings from reduced hospitalisations (£):
F27: Whole population | G27: =CONCATENATE(FIXED(Results!E54,0)," (",FIXED(Results!F54,3),"%)") -> 11,686,185 (0.407%)
F28: SIMD Q1 & Q2 | G28: =CONCATENATE(FIXED(Results!E55,0)," (",FIXED(Results!F55,3),"%)") -> 5,551,886 (0.408%)
F29: SIMD Q1 | G29: =IF(OR(Calculations!$E$2="Orkney Health Board",Calculations!$E$2="Orkney Islands Local Authority",Calculations!$E$2="Shetland Health Board",Calculations!$E$2="Western Isles Health Board",Calculations!$E$2="Shetland Islands Local Authority",Calculations!$E$2="Eilean Siar Local Authority"),"N/A", CONCATENATE(FIXED(Results!E56,0)," (",FIXED(Results!F56,3),"%)")) -> 2,956,932 (0.408%)
E30: ***Costs/savings from changes to other health outcomes and to health inequalities have not been estimated.

Sheet Results
B2: Detailed results for intervention: | D2: =Options!B8 -> Alcohol Brief Intervention
B4: Area of interest: | C4: =Options!B11 -> Scotland | D4: Targeting strategy: | E4: =Options!B14 -> Even distribution
B5: Age group: | C5: 16+ years | D5: Additional people to be treated: | E5: =Options!B21 -> 339384
B6: Baseline year (prevalence and population data): | C6: 2016 | D6: Health impact calculated after: | E6: =CONCATENATE(Options!B24," years") -> 2 years
B8: Baseline situation (2016): | C8: No. hazardous / harmful drinkers | D8: No. available for intervention | E8: No. all-cause hospital stays | F8: No. all-cause deaths | G8: No. all-cause premature deaths | H8: Years of life lost (all causes)
B9: Whole population | C9: =HLOOKUP(Calculations!$E$2,'Population at Risk'!$C$3:$BC$257,'Population at Risk'!BD251,FALSE) -> 870217.2469 | D9: =ROUNDDOWN(HLOOKUP(Calculations!$E$2,'Population at Risk'!$C$3:$BC$257,'Population at Risk'!BD255,FALSE),0) -> 339384 | E9: =HLOOKUP(Calculations!$E$2,'Health outcome totals 2016'!$C$3:$BC$17,'Health outcome totals 2016'!$BD6,FALSE) -> 1125093 | F9: =HLOOKUP(Calculations!$E$2,'Health outcome totals 2016'!$C$3:$BC$17,'Health outcome totals 2016'!$BD9,FALSE) -> 56725 | G9: =HLOOKUP(Calculations!$E$2,'Health outcome totals 2016'!$C$3:$BC$17,'Health outcome totals 2016'!$BD12,FALSE) -> 21313 | H9: =HLOOKUP(Calculations!$E$2,'Health outcome totals 2016'!$C$3:$BC$17,'Health outcome totals 2016'!$BD15,FALSE) -> 708624.0484
B10: Most deprived 40% (Q1 & Q2) | C10: =HLOOKUP(Calculations!$E$2,'Population at Risk'!$C$3:$BC$257,'Population at Risk'!BD253,FALSE) -> 299149.9195 | D10: =ROUNDDOWN(HLOOKUP(Calculations!$E$2,'Population at Risk'!$C$3:$BC$257,'Population at Risk'!BD257,FALSE),0) -> 116668 | E10: =HLOOKUP(Calculations!$E$2,'Health outcome totals 2016'!$C$3:$BC$17,'Health outcome totals 2016'!$BD8,FALSE) -> 534382 | F10: =HLOOKUP(Calculations!$E$2,'Health outcome totals 2016'!$C$3:$BC$17,'Health outcome totals 2016'!$BD11,FALSE) -> 26567 | G10: =HLOOKUP(Calculations!$E$2,'Health outcome totals 2016'!$C$3:$BC$17,'Health outcome totals 2016'!$BD14,FALSE) -> 11618 | H10: =HLOOKUP(Calculations!$E$2,'Health outcome totals 2016'!$C$3:$BC$17,'Health outcome totals 2016'!$BD17,FALSE) -> 372328.9705
B11: Most deprived 20% (Q1) | C11: =IF(OR(Calculations!$E$2="Orkney Health Board",Calculations!$E$2="Orkney Islands Local Authority",Calculations!$E$2="Shetland Health Board",Calculations!$E$2="Western Isles Health Board",Calculations!$E$2="Shetland Islands Local Authority",Calculations!$E$2="Eilean Siar Local Authority"),"N/A", HLOOKUP(Calculations!$E$2,'Population at Risk'!$C$3:$BC$257,'Population at Risk'!BD252,FALSE)) -> 138476.6169 | D11: =IF(OR(Calculations!$E$2="Orkney Health Board",Calculations!$E$2="Orkney Islands Local Authority",Calculations!$E$2="Shetland Health Board",Calculations!$E$2="Western Isles Health Board",Calculations!$E$2="Shetland Islands Local Authority",Calculations!$E$2="Eilean Siar Local Authority"),"N/A", ROUNDDOWN(HLOOKUP(Calculations!$E$2,'Population at Risk'!$C$3:$BC$257,'Population at Risk'!BD256,FALSE),0)) -> 54005 | E11: =IF(OR(Calculations!$E$2="Orkney Health Board",Calculations!$E$2="Orkney Islands Local Authority",Calculations!$E$2="Shetland Health Board",Calculations!$E$2="Western Isles Health Board",Calculations!$E$2="Shetland Islands Local Authority",Calculations!$E$2="Eilean Siar Local Authority"),"N/A", HLOOKUP(Calculations!$E$2,'Health outcome totals 2016'!$C$3:$BC$17,'Health outcome totals 2016'!$BD7,FALSE)) -> 283718 | F11: =IF(OR(Calculations!$E$2="Orkney Health Board",Calculations!$E$2="Orkney Islands Local Authority",Calculations!$E$2="Shetland Health Board",Calculations!$E$2="Western Isles Health Board",Calculations!$E$2="Shetland Islands Local Authority",Calculations!$E$2="Eilean Siar Local Authority"),"N/A", HLOOKUP(Calculations!$E$2,'Health outcome totals 2016'!$C$3:$BC$17,'Health outcome totals 2016'!$BD10,FALSE)) -> 13665 | G11: =IF(OR(Calculations!$E$2="Orkney Health Board",Calculations!$E$2="Orkney Islands Local Authority",Calculations!$E$2="Shetland Health Board",Calculations!$E$2="Western Isles Health Board",Calculations!$E$2="Shetland Islands Local Authority",Calculations!$E$2="Eilean Siar Local Authority"),"N/A", HLOOKUP(Calculations!$E$2,'Health outcome totals 2016'!$C$3:$BC$17,'Health outcome totals 2016'!$BD13,FALSE)) -> 6443 | H11: =IF(OR(Calculations!$E$2="Orkney Health Board",Calculations!$E$2="Orkney Islands Local Authority",Calculations!$E$2="Shetland Health Board",Calculations!$E$2="Western Isles Health Board",Calculations!$E$2="Shetland Islands Local Authority",Calculations!$E$2="Eilean Siar Local Authority"),"N/A", HLOOKUP(Calculations!$E$2,'Health outcome totals 2016'!$C$3:$BC$17,'Health outcome totals 2016'!$BD16,FALSE)) -> 203545.7107
B13: Health impact | C13: Without intervention | D13: With intervention | E13: Difference | F13: Difference | G13: Interpretation
B14: HEALTH OUTCOMES | C14: n | D14: n | E14: n | F14: %
B15: Hospital stays | F15: % prevented
B16: Whole population | C16: =Calculations!O5 -> 1143855.727 | D16: =Calculations!P5 -> 1139203.584 | E16: =C16-D16 -> 4652.143795 | F16: =E16*100/C16 -> 0.406707217 | G16: Hospital stays prevented
B17: Q1 & Q2 | C17: =Calculations!O6 -> 542278.7308 | D17: =Calculations!P6 -> 540068.5849 | E17: =C17-D17 -> 2210.145831 | F17: =E17*100/C17 -> 0.407566387 | G17: (N.B. positive difference =
B18: Q1 | C18: =IF(OR(Calculations!$E$2="Orkney Health Board",Calculations!$E$2="Orkney Islands Local Authority",Calculations!$E$2="Shetland Health Board",Calculations!$E$2="Western Isles Health Board",Calculations!$E$2="Shetland Islands Local Authority",Calculations!$E$2="Eilean Siar Local Authority"),"N/A", Calculations!O7) -> 288715.8401 | D18: =IF(OR(Calculations!$E$2="Orkney Health Board",Calculations!$E$2="Orkney Islands Local Authority",Calculations!$E$2="Shetland Health Board",Calculations!$E$2="Western Isles Health Board",Calculations!$E$2="Shetland Islands Local Authority",Calculations!$E$2="Eilean Siar Local Authority"),"N/A", Calculations!P7) -> 287538.7176 | E18: =IF(OR(Calculations!$E$2="Orkney Health Board",Calculations!$E$2="Orkney Islands Local Authority",Calculations!$E$2="Shetland Health Board",Calculations!$E$2="Western Isles Health Board",Calculations!$E$2="Shetland Islands Local Authority",Calculations!$E$2="Eilean Siar Local Authority"),"N/A", C18-D18) -> 1177.12249 | F18: =IF(OR(Calculations!$E$2="Orkney Health Board",Calculations!$E$2="Orkney Islands Local Authority",Calculations!$E$2="Shetland Health Board",Calculations!$E$2="Western Isles Health Board",Calculations!$E$2="Shetland Islands Local Authority",Calculations!$E$2="Eilean Siar Local Authority"),"N/A", E18*100/C18) -> 0.4077097015 | G18: fewer stays)
B19: Premature deaths (<75 years) | F19: % prevented
B20: Whole population | C20: =Calculations!Q5 -> 21618.37083 | D20: =Calculations!R5 -> 21524.01352 | E20: =C20-D20 -> 94.3573093 | F20: =E20*100/C20 -> 0.4364681781 | G20: Premature deaths prevented
B21: Q1 & Q2 | C21: =Calculations!Q6 -> 11402.02214 | D21: =Calculations!R6 -> 11351.92555 | E21: =C21-D21 -> 50.09658433 | F21: =E21*100/C21 -> 0.4393657873 | G21: (N.B. positive difference =
B22: Q1 | C22: =IF(OR(Calculations!$E$2="Orkney Health Board",Calculations!$E$2="Orkney Islands Local Authority",Calculations!$E$2="Shetland Health Board",Calculations!$E$2="Western Isles Health Board",Calculations!$E$2="Shetland Islands Local Authority",Calculations!$E$2="Eilean Siar Local Authority"),"N/A", Calculations!Q7) -> 6421.959799 | D22: =IF(OR(Calculations!$E$2="Orkney Health Board",Calculations!$E$2="Orkney Islands Local Authority",Calculations!$E$2="Shetland Health Board",Calculations!$E$2="Western Isles Health Board",Calculations!$E$2="Shetland Islands Local Authority",Calculations!$E$2="Eilean Siar Local Authority"),"N/A", Calculations!R7) -> 6393.823792 | E22: =IF(OR(Calculations!$E$2="Orkney Health Board",Calculations!$E$2="Orkney Islands Local Authority",Calculations!$E$2="Shetland Health Board",Calculations!$E$2="Western Isles Health Board",Calculations!$E$2="Shetland Islands Local Authority",Calculations!$E$2="Eilean Siar Local Authority"),"N/A", C22-D22) -> 28.13600685 | F22: =IF(OR(Calculations!$E$2="Orkney Health Board",Calculations!$E$2="Orkney Islands Local Authority",Calculations!$E$2="Shetland Health Board",Calculations!$E$2="Western Isles Health Board",Calculations!$E$2="Shetland Islands Local Authority",Calculations!$E$2="Eilean Siar Local Authority"),"N/A", E22*100/C22) -> 0.4381218153 | G22: fewer premature deaths)
B23: Years of life lost | F23: % saved
B24: Whole population | C24: =Calculations!M5 -> 595503.2978 | D24: =Calculations!N5 -> 592895.2844 | E24: =C24-D24 -> 2608.01342 | F24: =E24*100/C24 -> 0.4379511296 | G24: Years of life saved
B25: Q1 & Q2 | C25: =Calculations!M6 -> 317964.7906 | D25: =Calculations!N6 -> 316565.8071 | E25: =C25-D25 -> 1398.983481 | F25: =E25*100/C25 -> 0.4399806274 | G25: (N.B. positive difference =
B26: Q1 | C26: =IF(OR(Calculations!$E$2="Orkney Health Board",Calculations!$E$2="Orkney Islands Local Authority",Calculations!$E$2="Shetland Health Board",Calculations!$E$2="Western Isles Health Board",Calculations!$E$2="Shetland Islands Local Authority",Calculations!$E$2="Eilean Siar Local Authority"),"N/A", Calculations!M7) -> 179543.4857 | D26: =IF(OR(Calculations!$E$2="Orkney Health Board",Calculations!$E$2="Orkney Islands Local Authority",Calculations!$E$2="Shetland Health Board",Calculations!$E$2="Western Isles Health Board",Calculations!$E$2="Shetland Islands Local Authority",Calculations!$E$2="Eilean Siar Local Authority"),"N/A", Calculations!N7) -> 178755.6914 | E26: =IF(OR(Calculations!$E$2="Orkney Health Board",Calculations!$E$2="Orkney Islands Local Authority",Calculations!$E$2="Shetland Health Board",Calculations!$E$2="Western Isles Health Board",Calculations!$E$2="Shetland Islands Local Authority",Calculations!$E$2="Eilean Siar Local Authority"),"N/A", C26-D26) -> 787.7942928 | F26: =IF(OR(Calculations!$E$2="Orkney Health Board",Calculations!$E$2="Orkney Islands Local Authority",Calculations!$E$2="Shetland Health Board",Calculations!$E$2="Western Isles Health Board",Calculations!$E$2="Shetland Islands Local Authority",Calculations!$E$2="Eilean Siar Local Authority"),"N/A", E26*100/C26) -> 0.4387763163 | G26: years of life saved)
B27: HEALTH INEQUALITIES | C27: rate* | D27: rate* | E27: rate* | F27: %
B28: Absolute gap (Q1 minus Q5**) | F28: % increase
B29: Hospital stays | C29: =Inequalities!H17 -> 13347.3262 | D29: =Inequalities!J17 -> 13292.47764 | E29: =D29-C29 -> -54.8485525 | F29: =E29*100/C29 -> -0.4109328841 | G29: Change in the absolute gap
B30: Premature deaths | C30: =Inequalities!N17 -> 453.2850851 | D30: =Inequalities!P17 -> 451.2850056 | E30: =D30-C30 -> -2.000079496 | F30: =E30*100/C30 -> -0.4412409677 | G30: (N.B. negative = narrower gap)
B31: YLL | C31: =Inequalities!T17 -> 12485.54435 | D31: =Inequalities!V17 -> 12430.56383 | E31: =D31-C31 -> -54.98051437 | F31: =E31*100/C31 -> -0.4403533626
B32: Relative gap Q1 to Q5** | F32: % increase
B33: Hospital stays | C33: =Inequalities!H18 -> 1.813617171 | D33: =Inequalities!J18 -> 1.813574204 | E33: =D33-C33 -> -4.296632574e-05 | F33: =E33*100/C33 -> -0.002369095664 | G33: Change in the relative gap
B34: Premature deaths | C34: =Inequalities!N18 -> 3.004022728 | D34: =Inequalities!P18 -> 3.003816091 | E34: =D34-C34 -> -0.000206637069 | F34: =E34*100/C34 -> -0.006878678616 | G34: (N.B. negative = narrower gap)
B35: YLL | C35: =Inequalities!T18 -> 2.991916768 | D35: =Inequalities!V18 -> 2.991813966 | E35: =D35-C35 -> -0.0001028015318 | F35: =E35*100/C35 -> -0.003435975658
B36: Slope Index of Inequality (SII) | F36: % increase
B37: Hospital stays | C37: =Inequalities!H15 -> 16090.34056 | D37: =Inequalities!J15 -> 16024.15345 | E37: =D37-C37 -> -66.1871047 | F37: =E37*100/C37 -> -0.4113468231 | G37: Change in absolute inequalities
B38: Premature deaths | C38: =Inequalities!N15 -> 533.9658788 | D38: =Inequalities!P15 -> 531.5983197 | E38: =D38-C38 -> -2.367559157 | F38: =E38*100/C38 -> -0.4433914696 | G38: (N.B. negative = decreased inequalities)
B39: YLL | C39: =Inequalities!T15 -> 14710.7705 | D39: =Inequalities!V15 -> 14645.62696 | E39: =D39-C39 -> -65.14354117 | F39: =E39*100/C39 -> -0.4428288863
B40: Relative Index of Inequality (RII) | F40: % increase
B41: Hospital stays | C41: =Inequalities!H16 -> 0.7333895263 | D41: =Inequalities!J16 -> 0.7333573695 | E41: =D41-C41 -> -3.215673504e-05 | F41: =E41*100/C41 -> -0.004384673341 | G41: Change in relative inequalities
B42: Premature deaths | C42: =Inequalities!N16 -> 1.28568495 | D42: =Inequalities!P16 -> 1.285598894 | E42: =D42-C42 -> -8.605605271e-05 | F42: =E42*100/C42 -> -0.006693401266 | G42: (N.B. negative = decreased inequalities)
B43: YLL | C43: =Inequalities!T16 -> 1.281016838 | D43: =Inequalities!V16 -> 1.280960766 | E43: =D43-C43 -> -5.607221557e-05 | F43: =E43*100/C43 -> -0.004377164601
B45: * European age-standardised rate per 100,000
B46: ** or the most and least deprived quintiles in the area
B48: Economic impact | C48: Without intervention | D48: With intervention | E48: Difference | F48: Difference | G48: Interpretation
C49: £ | D49: £ | E49: £
B50: Direct financial cost: | C50: 0 | D50: =Evidence!C172*Results!E5 -> 13235976 | E50: =D50-C50 -> 13235976 | G50: Positive difference = net cost incurred
B52: Direct financial savings: | C52: £ | D52: £ | E52: £ | F52: % saved
B53: Hospital stays
B54: Whole population | C54: =Evidence!$C$185*Results!C16 -> 2873365587 | D54: =Evidence!$C$185*Results!D16 -> 2861679402 | E54: =C54-D54 -> 11686185.21 | F54: =E54*100/C54 -> 0.406707217 | G54: Reduction in hospital stay costs
B55: Q1 & Q2 | C55: =Evidence!$C$185*Results!C17 -> 1362204172 | D55: =Evidence!$C$185*Results!D17 -> 1356652285 | E55: =C55-D55 -> 5551886.326 | F55: =E55*100/C55 -> 0.407566387 | G55: (N.B. positive difference =
B56: Q1 | C56: =IF(OR(Calculations!$E$2="Orkney Health Board",Calculations!$E$2="Orkney Islands Local Authority",Calculations!$E$2="Shetland Health Board",Calculations!$E$2="Western Isles Health Board",Calculations!$E$2="Shetland Islands Local Authority",Calculations!$E$2="Eilean Siar Local Authority"),"N/A", Evidence!$C$185*Results!C18) -> 725254190.2 | D56: =IF(OR(Calculations!$E$2="Orkney Health Board",Calculations!$E$2="Orkney Islands Local Authority",Calculations!$E$2="Shetland Health Board",Calculations!$E$2="Western Isles Health Board",Calculations!$E$2="Shetland Islands Local Authority",Calculations!$E$2="Eilean Siar Local Authority"),"N/A", Evidence!$C$185*Results!D18) -> 722297258.5 | E56: =IF(OR(Calculations!$E$2="Orkney Health Board",Calculations!$E$2="Orkney Islands Local Authority",Calculations!$E$2="Shetland Health Board",Calculations!$E$2="Western Isles Health Board",Calculations!$E$2="Shetland Islands Local Authority",Calculations!$E$2="Eilean Siar Local Authority"),"N/A", C56-D56) -> 2956931.694 | F56: =IF(OR(Calculations!$E$2="Orkney Health Board",Calculations!$E$2="Orkney Islands Local Authority",Calculations!$E$2="Shetland Health Board",Calculations!$E$2="Western Isles Health Board",Calculations!$E$2="Shetland Islands Local Authority",Calculations!$E$2="Eilean Siar Local Authority"),"N/A", E56*100/C56) -> 0.4077097015 | G56: money saved)
B57: Premature deaths (<75 years) | E57: Savings not estimated
B58: Years of life lost | E58: Savings not estimated
B59: Inequalities | E59: Savings not estimated

Sheet Evidence
B2: The intervention: Alcohol Brief Interventions
B4: Consistent with the Scottish Government's Local Development Plan, based on NICE Guidance, an Alcohol Brief Intervention (ABI) is described as:
B5: "a short, evidence-based, structured conversation about alcohol consumption with a patient/client that seeks in a non-confrontational way to motivate and support
B6: the individual to think about and/or plan a change in their drinking behaviour in order to reduce their consumption and/or their risk of harm."
B7: The key components of an ABI and guidance for professionals delivering ABIs are available at
B8: http://www.healthscotland.scot/publications/alcohol-brief-intervention-resources.
B9: An Alcohol Brief Intervention is an effective approach for reducing consumption among hazardous and harmful drinkers.
B11: Exposure Rate Ratios (ERR) for hazardous/harmful drinking
B13: Outcome | C13: Sex | D13: ERR | E13: Source | F13: Quoted/calculated?
B14: All-cause hospitalisation | C14: Men | D14: 1.1 | E14: Hart and Smith (2008) | F14: Calculated
C15: Women | D15: 1.08 | E15: Hart and Smith (2008) | F15: Calculated
B16: All-cause mortality | C16: Men | D16: 1.64 | E16: Wood et al (2018) | F16: Calculated
C17: Women | D17: 1.45 | E17: Wood et al (2018) | F17: Calculated
B19: Hospitalisation
B20: ERRs were estimated from a prospective cohort study containing men only (Midspan Collaborative Study, Hart and Smith 2008). The authors provided the information
B21: for all-cause hospitalisations. For men, we extracted the rate ratio for those reporting that they consumed ≥ 35.0 units of alcohol per week (mean weekly consumption
B22: of Scottish men categorised as hazardous/harmful drinkers* in the 2013-2016 Scottish Health Survey (SHeS) was 41.3 units). For women we used the rate ratio for men
B23: reporting that they consumed 22-34 units of alcohol per week (mean weekly consumption of Scottish women categorised as hazardous/harmful drinkers* in the
B24: 2013-2016 Scottish Health Survey (combined) was 26.7 units). These rate ratios were adjusted for age, smoking status, socioeconomic position and a range of
B25: physiological measures. We rebased the rate ratios to a reference group that consumed 1-7 units of alcohol per week to give the ERRs above (note that the reference
B26: group was non-drinkers in the Hart and Smith (2008) paper). See the ERRs worksheet (hidden) for more details on the calculations.
B27: *Based on the old (1995) drinking guidelines: >14 units per week for women; >21 units for men
B29: Mortality
B30: ERRs by sex estimated from a meta-analysis of the association between alcohol consumption and all-cause mortality (Wood et al, 2018). It was assumed that the linear
B31: part of the J-shaped relationship between alcohol consumption and all-cause mortality in the Wood et al (2018) paper runs from the consumption level at which
B32: mortality starts to notably increase (>125g** per week) to the highest consumption category. A line of best fit (linear) was fitted to the corresponding data, and the
B33: linear function used to calculate the ERR associated with the mean weekly consumption of men and women categorised as hazardous/harmful drinkers
B34: (41.3 units and 26.7 units per week for men and women based on the 2013-2016 SHeS, respectively). The ERR is adjusted for age, smoking and history of diabetes.
B35: Reference group is those consuming >0g to ≤25g of alcohol per week. See the ERRs worksheet (hidden) for more details on the calculations.
B36: ** Note that there is 8g in a unit of alcohol.
B38: Intervention Rate Ratios (IRR) for successful Alcohol Brief Intervention
B40: The IRRs give the risk of all-cause hospitalisation or mortality for hazardous/harmful drinkers who had received an ABI, relative to those who had not.
B42: What effect does an ABI have on alcohol consumption?
B43: The average change in alcohol consumption resulting from an ABI delivered in primary care settings is a decrease of 20g per week (Kaner et al, 2018).
B45: Hospitalisation
B46: In the absence of any relevant studies directly assessing the impact of a change of consumption on all-cause hospitalisations, the IRR has been calculated based on
B47: the Midspan Collaborative study (Hart and Smith, 2008). For the 20g per week change in alcohol consumption expected as a result of an ABI, the relative risk of an
B48: alcohol-related hospital admission is estimated to decrease from 1.10 to 1.05. This is an approximate estimate based on the assumption that although the risk of
B49: hospitalisation will decrease compared with no change, it will still be greater than the population average for non-hazardous / harmful drinkers (since alcohol
B50: consumption will also remain greater for the majority of individuals). The mid-point (between 1.10 and 1) is used as a pragmatic estimate in the absence of robust data.
B51: The IRR has therefore been calculated as 1.05/1.10 = 0.9545
B53: Mortality
B54: In the absence of any relevant studies directly assessing the impact of a change of consumption on all-cause mortality, the IRR has been calculated based on the
B55: Wood et al (2018) meta-analysis of risk thresholds for alcohol consumption. It was assumed that the linear part of the J-shaped relationship between alcohol
B56: consumption and all-cause mortality in the Wood et al (2018) paper runs from the consumption level at which mortality starts to notably increase for all adults
B57: (>125g per week) to the highest consumption category. A line of best fit (linear) was fitted to the corresponding data, and the gradient of this line used to estimate the
B58: difference in risk of death resulting from a 1g change in consumption. We calculated that for each 1g increase in alcohol consumption, risk of death increases by
B59: 0.22%. Thus, for the 20g per week decrease in consumption after an ABI, risk of death decreases by 4.38%. The IRR has therefore been calculated as 0.9562.
B60: See the IRRs worksheet (hidden) for more details on the calculations.
B62: Outcome | C62: IRR relative to untreated | D62: Sources | E62: Quoted/calculated?
B63: All-cause hospitalisation | C63: 0.9545 | D63: Hart and Smith (2008); Kaner et al (2018) | E63: Calculated
B64: All-cause mortality | C64: 0.9561530253 | D64: Kaner et al (2018); Wood et al (2018) | E64: Calculated
B67: Change in intervention effect over time
B69: The effect decay is assumed to return the intervention effect to baseline over 7 years in a linear fashion (Fleming et al, 2002).
B70: There was no evidence of differential effect by age, sex, or socioeconomic position (Kaner et al, 2018; O'Donnell et al, 2013)
C72: IRR for treated group (relative to untreated)
B73: Year | C73: hospitalisation | D73: mortality
B74: 0 (pre-intervention) | C74: 1 | D74: 1
B75: 1 (intervention) | C75: 0.9545 | D75: 0.9561530253
B76: 2 | C76: =C75+(C$82-C$75)/7 -> 0.961 | D76: 0.9624168788
B77: 3 | C77: =C76+(C$82-C$75)/7 -> 0.9675 | D77: 0.9686807323
B78: 4 | C78: 0.974 | D78: 0.9749445859
B79: 5 | C79: 0.9805 | D79: 0.9812084394
B80: 6 | C80: 0.987 | D80: 0.9874722929
B81: 7 | C81: 0.9935 | D81: 0.9937361465
B82: 8 | C82: 1 | D82: 1
B83: 9 | C83: 1 | D83: 1
B84: 10 | C84: 1 | D84: 1
B85: 11 | C85: 1 | D85: 1
B86: 12 | C86: 1 | D86: 1
B87: 13 | C87: 1 | D87: 1
B88: 14 | C88: 1 | D88: 1
B89: 15 | C89: 1 | D89: 1
B90: 16 | C90: 1 | D90: 1
B91: 17 | C91: 1 | D91: 1
B92: 18 | C92: 1 | D92: 1
B93: 19 | C93: 1 | D93: 1
B94: 20 | C94: 1 | D94: 1
B95: 21 | C95: 1 | D95: 1
B98: Prevalence of harmful/hazardous drinking
B100: The prevalence data (proportion of the adult population exceeding the old 1995 drinking guidelines: women >14 units; men >21 units) were extracted from the Scottish
B101: Health Survey (2013-2016 combined).
B102: * In some cases, estimates have been calculated for aggregated local authorities because of a small sample size.
B104: Prevalence by Area (proportion) | F104: Prevalence by deprivation quintile (proportion)
B105: Area | C105: Females | D105: Males | F105: SIMD 2016 quintile | G105: Age group | H105: Females | I105: Males
B106: SCOTLAND | C106: 0.1651902616 | D106: 0.2267582122 | F106: Q1 (most deprived) | G106: 16-24 | H106: 0.1974932852 | I106: 0.1706298432
B107: Ayrshire & Arran Health Board | C107: 0.1633586559 | D107: 0.2567905341 | G107: 25-34 | H107: 0.1183524197 | I107: 0.1593134204
B108: Borders Health Board | C108: 0.1602458556 | D108: 0.256742232 | G108: 35-44 | H108: 0.1119134439 | I108: 0.194141504
B109: Dumfries & Galloway Health Board | C109: 0.1502789308 | D109: 0.2228239096 | G109: 45-54 | H109: 0.1098436971 | I109: 0.26928127
B110: Fife Health Board | C110: 0.1473927206 | D110: 0.2127944635 | G110: 55-64 | H110: 0.1353569083 | I110: 0.2899512322
B111: Forth Valley Health Board | C111: 0.1815618125 | D111: 0.2922089897 | G111: 65-74 | H111: 0.0712216542 | I111: 0.233785911
B112: Grampian Health Board | C112: 0.1608266927 | D112: 0.2002588068 | G112: 75+ | H112: 0.02335793057 | I112: 0.0947005927
B113: Greater Glasgow & Clyde Health Board | C113: 0.1542720613 | D113: 0.2154318563 | F113: Q2 | G113: 16-24 | H113: 0.2338560191 | I113: 0.1718185094
B114: Highland Health Board | C114: 0.1776771753 | D114: 0.2258869063 | G114: 25-34 | H114: 0.1488099278 | I114: 0.2705158012
B115: Lanarkshire Health Board | C115: 0.1641190535 | D115: 0.1916169167 | G115: 35-44 | H115: 0.1789721735 | I115: 0.191653162
B116: Lothian Health Board | C116: 0.1992989274 | D116: 0.2757540451 | G116: 45-54 | H116: 0.1926728722 | I116: 0.2232702732
B117: Orkney Health Board | C117: 0.1797874392 | D117: 0.252507797 | G117: 55-64 | H117: 0.1338288872 | I117: 0.2368654433
B118: Shetland Health Board | C118: 0.1665275055 | D118: 0.249396887 | G118: 65-74 | H118: 0.09028891588 | I118: 0.2342617008
B119: Tayside Health Board | C119: 0.1417553478 | D119: 0.1762146314 | G119: 75+ | H119: 0.02726728189 | I119: 0.1118455105
B120: Western Isles Health Board | C120: 0.09059889864 | D120: 0.2097155646 | F120: Q3 | G120: 16-24 | H120: 0.2404945454 | I120: 0.3007836355
B121: Aberdeen City Local Authority | C121: 0.1959739758 | D121: 0.248281752 | G121: 25-34 | H121: 0.1621032295 | I121: 0.1909999189
B122: Aberdeenshire Local Authority | C122: 0.1409443447 | D122: 0.1828660243 | G122: 35-44 | H122: 0.2058115525 | I122: 0.2267733916
B123: Angus Local Authority | C123: 0.1376377549 | D123: 0.2229152422 | E123: * | G123: 45-54 | H123: 0.2211950982 | I123: 0.220503099
B124: Argyll & Bute Local Authority | C124: 0.1776771753 | D124: 0.2258869063 | E124: * | G124: 55-64 | H124: 0.1844462925 | I124: 0.2688808543
B125: Clackmannanshire Local Authority | C125: 0.1637520151 | D125: 0.2876486084 | E125: * | G125: 65-74 | H125: 0.1546197298 | I125: 0.2687324922
B126: Dumfries & Galloway Local Authority | C126: 0.1547574058 | D126: 0.2368617903 | E126: * | G126: 75+ | H126: 0.03528400956 | I126: 0.1405306478
B127: Dundee City Local Authority | C127: 0.1599707505 | D127: 0.1888239313 | E127: * | F127: Q4 | G127: 16-24 | H127: 0.166708945 | I127: 0.2478408881
B128: East Ayrshire Local Authority | C128: 0.1212333926 | D128: 0.2402853272 | G128: 25-34 | H128: 0.1225615226 | I128: 0.1822401898
B129: East Dunbartonshire Local Authority | C129: 0.1552621041 | D129: 0.2371017024 | E129: * | G129: 35-44 | H129: 0.1891146666 | I129: 0.1718083009
B130: East Lothian Local Authority | C130: 0.1936151288 | D130: 0.2579057635 | E130: * | G130: 45-54 | H130: 0.2418120603 | I130: 0.2318101624
B131: East Renfrewshire Local Authority | C131: 0.1552621041 | D131: 0.2346542419 | E131: * | G131: 55-64 | H131: 0.2694525604 | I131: 0.359923425
B132: Edinburgh, City of Local Authority | C132: 0.2167499604 | D132: 0.3081723401 | G132: 65-74 | H132: 0.1342133408 | I132: 0.2443467203
B133: Eilean Siar Local Authority | C133: 0.1630760895 | D133: 0.3038411301 | G133: 75+ | H133: 0.08612526597 | I133: 0.2131393434
B134: Falkirk Local Authority | C134: 0.1731684741 | D134: 0.2127944635 | E134: * | F134: Q5 (least deprived) | G134: 16-24 | H134: 0.1722719597 | I134: 0.2051835445
B135: Fife Local Authority | C135: 0.1527584651 | D135: 0.2136973442 | G135: 25-34 | H135: 0.1464325803 | I135: 0.2041342061
B136: Glasgow City Local Authority | C136: 0.1673313736 | D136: 0.2270755345 | G136: 35-44 | H136: 0.1831570633 | I136: 0.2236437649
B137: Highland Local Authority | C137: 0.1294990032 | D137: 0.2091940786 | G137: 45-54 | H137: 0.282580009 | I137: 0.2200587461
B138: Inverclyde Local Authority | C138: 0.1720641053 | D138: 0.219622244 | E138: * | G138: 55-64 | H138: 0.2500116971 | I138: 0.2999415006
B139: Midlothian Local Authority | C139: 0.1936151288 | D139: 0.2579057635 | E139: * | G139: 65-74 | H139: 0.2319435779 | I139: 0.2774105844
B140: Moray Local Authority | C140: 0.1254303771 | D140: 0.1697278448 | E140: * | G140: 75+ | H140: 0.112015455 | I140: 0.1740573276
B141: North Ayrshire Local Authority | C141: 0.1915823863 | D141: 0.2929112174
B142: North Lanarkshire Local Authority | C142: 0.1554956769 | D142: 0.18285156
B143: Orkney Islands Local Authority | C143: 0.1797874392 | D143: 0.252507797
B144: Perth & Kinross Local Authority | C144: 0.1474661743 | D144: 0.1984494211 | E144: *
B145: Renfrewshire Local Authority | C145: 0.1828955667 | D145: 0.2042432265 | E145: *
B146: Scottish Borders Local Authority | C146: 0.1602458556 | D146: 0.256742232
B147: Shetland Islands Local Authority | C147: 0.1665275055 | D147: 0.249396887
B148: South Ayrshire Local Authority | C148: 0.1780786342 | D148: 0.2288097326
B149: South Lanarkshire Local Authority | C149: 0.1776239324 | D149: 0.195261369
B150: Stirling Local Authority | C150: 0.1626529399 | D150: 0.2296161174 | E150: *
B151: West Dunbartonshire Local Authority | C151: 0.1588008347 | D151: 0.2152914588 | E151: *
B152: West Lothian Local Authority | C152: 0.1602738859 | D152: 0.2465604542 | E152: *
B153: Aberdeen City Region Deal | C153: 0.1663389337 | D153: 0.2121162686
B154: Edinburgh & SE Scotland City Region Deal | C154: 0.1812633824 | D154: 0.2574633589
B155: Glasgow City Region Deal | C155: 0.1580389234 | D155: 0.2064171346
B156: Inverness & Highland City Region Deal | C156: 0.1673313736 | D156: 0.2270755345
B157: Tay Cities Region Deal | C157: 0.1443625763 | D157: 0.1940168633
B158: Clackmannanshire & Stirling IJB | C158: 0.1997242548 | D158: 0.2747125408
B161: Eligible population
B163: The proportion of the population at risk who would be eligible/available for the intervention was defined as the proportion who wish to reduce their alcohol consumption.
B165: Description | C165: Value (%) | D165: Sources | E165: Quoted/calculated?
B166: Proportion of those exceeding the 1995 drinking guidelines who wish to reduce their alcohol consumption | C166: 39 | D166: SHeS 2008-2011 KAM module | E166: Calculated
B168: SHeS = Scottish Health Survey; KAM = Knowledge Attitudes and Motivation module of the SHeS
B170: Intervention costs
B172: Cost of providing an ABI | C172: 39
B174: The information used to estimate this cost is taken from PSSRU Unit Costs of Health and Social Care (2016).
B175: Table 10.3b in the report provides the cost per GP minute and it has been assumed that an ABI lasts 10 minutes in duration as this is in line with the Scottish
B176: Government’s Local Delivery Plan guidance on delivering an ABI. In addition, the recently published Cochrane review suggests that longer sessions are no more
B177: effective than briefer interventions and many of the studies included in the review are based on ABIs of 10 minutes.
B180: Hospitalisation costs
B182: The cost of a continuous inpatient stay was estimated to be £2,113 in 2006/07 (Geue et al 2012; based on healthcare resource groups and the English tariff).
B183: This was inflated to £2,512 for 2015/16 using the Hospital and Community Health Service (HCHS) inflation index.
B185: Cost of continuous Inpatient stay | C185: 2512
B188: References
B190: Fleming et al (2002) | C190: Fleming M, et al. Brief physician advice for problem drinkers: long-term efficacy and benefit-cost analysis. Alcoholism: Clinical and Experimental Research 2002; 26: 36–43. doi: 10.1111/j.1530-0277.2002.tb02429.x.
B191: Geue et al (2012) | C191: Geue et al. Spoilt for choice: implications of using alternative methods of costing hospital episode statistics. Health Economics 21: 1201-1216. https://onlinelibrary.wiley.com/doi/abs/10.1002/hec.1785
B192: Hart and Smith (2008) | C192: Hart CL, Smith GD. Alcohol consumption and mortality and hospital admissions in men from the Midspan collaborative cohort study. Addiction 2008; 103: 1979-86. doi: 10.1111/j.1360-0443.2008.02373.x.
B193: Kaner et al (2018) | C193: Kaner EFS, et al. Effectiveness of brief alcohol interventions in primary care populations. Cochrane Database of Systematic Reviews, 2018. Issue 2. doi: 10.1002/14651858.CD004148.pub4.
B194: O'Donnell et al (2013) | C194: O’Donnell A, et al. The impact of brief alcohol interventions in primary healthcare: a systematic review of reviews. Alcohol and Alcoholism 2013; 49: 66–78. doi: 10.1093/alcalc/agt170.
B195: Personal Social Services Research Unit (2016) | C195: Unit costs of health and social care 2016. https://www.pssru.ac.uk/project-pages/unit-costs/unit-costs-2016/
B196: Scottish Government (2018) | C196: Local Delivery Plan standard: alcohol brief interventions national guidance: 2017-18
B197: Scottish Health Survey (2008-2011) | C197: Knowledge, attitudes and motivations to health; module of the Scottish Health Survey, dataset 2008-2011. Available via https://www.ukdataservice.ac.uk/
B198: Wood et al (2018) | C198: Wood AM, et al for the Emerging Risk Factors Collaboration. Risk thresholds for alcohol consumption: combined analysis of individual-participant data for 599 912 current drinkers in 83 prospective studies. Lancet 2018; 391: 1513-1523. doi: https://doi.org/10.1016/S0140-6736(18)30134-X.

Sheet SHEETS TO BE HIDDEN -> (hidden)

Sheet Calculations (hidden)
A1: Calculating the deaths, years of life lost, hospital stays, and premature deaths for each group | K1: COUNTS | AJ1: EUROPEAN AGE-STANDARDISED RATE (EASR) PER 100000
A2: AREA: | B2: =Options!B11 -> Scotland | C2: EQUIVALENT AREA: | E2: =VLOOKUP(B2,Lists!D2:E85,2) -> Scotland | K2: CUMULATIVE INCIDENCE (DEATHS) | M2: YEARS OF LIFE LOST | O2: HOSPITALISATIONS | Q2: PREMATURE MORTALITY | S2: AGE STANDARDISED RATE (ASR) | AA2: ASR*EUROPEAN STANDARD POPULATION (ESP2013) | AJ2: CUMULATIVE INCIDENCE (DEATHS) | AL2: YEARS OF LIFE LOST | AN2: HOSPITALISATIONS | AP2: PREMATURE MORTALITY
A3: SIMD | B3: group | C3: mean age (2016) | D3: life exp (2014-16) | E3: sex | F3: SIMD | G3: prevalence exposure | H3: population (2016) | I3: no. treated at base | J3: additional no. treated under policy | K3: Baseline | L3: Policy | M3: Baseline | N3: Policy | O3: Baseline | P3: Policy | Q3: Baseline | R3: Policy | S3: CI_BASE | T3: CI_POLICY | U3: YLL_BASE | V3: YLL_POLICY | W3: HOSP_BASE | X3: HOSP_POLICY | Y3: PREM_BASE | Z3: PREM_POLICY | AA3: CI_BASE | AB3: CI_POLICY | AC3: YLL_BASE | AD3: YLL_POLICY | AE3: HOSP_BASE | AF3: HOSP_POLICY | AG3: PREM_BASE | AH3: PREM_POLICY | AI3: ESP2013 | AJ3: Baseline | AK3: Policy | AL3: Baseline | AM3: Policy | AN3: Baseline | AO3: Policy | AP3: Baseline | AQ3: Policy
A5: All quintiles | B5: 16+ Males and Females | C5: N/A | E5: BOTH | F5: ALL | H5: =SUM(H7:H11) -> 4488783 | I5: =SUM(I7:I11) -> 0 | J5: =SUM(J7:J11) -> 339386 | K5: =SUMIF(K7:K11,">0") -> 44505.00599 | L5: 44311.54331 | M5: 595503.2978 | N5: 592895.2844 | O5: 1143855.727 | P5: 1139203.584 | Q5: 21618.37083 | R5: 21524.01352 | AA5: =SUMIF(AA7:AA11,">0") -> 906041736.4 | AB5: =SUMIF(AB7:AB11,">0") -> 902100122.8 | AC5: 1.148366678e+10 | AD5: 1.143331424e+10 | AE5: 2.193969232e+10 | AF5: 2.185040216e+10 | AG5: 415316270.8 | AH5: 413502471.3 | AI5: =SUM(AI7:AI11) -> 1000000 | AJ5: =AA5/$AI5 -> 906.0417364 | AK5: =AB5/$AI5 -> 902.1001228 | AL5: =AC5/$AI5 -> 11483.66678 | AM5: 11433.31424 | AN5: 21939.69232 | AO5: 21850.40216 | AP5: 415.3162708 | AQ5: 413.5024713
A6: Q1 and Q2 | B6: 16+ Males and Females | C6: N/A | E6: BOTH | F6: Q1&2 | H6: =SUM(H7:H8) -> 1769266 | I6: 0 | J6: 133768 | K6: 23407.44622 | L6: 23305.68166 | M6: 317964.7906 | N6: 316565.8071 | O6: 542278.7308 | P6: 540068.5849 | Q6: 11402.02214 | R6: 11351.92555 | AA6: =SUMIF(AA7:AA8,">0") -> 502496302.4 | AB6: =SUMIF(AB7:AB8,">0") -> 500312105.5 | AC6: 6390325819 | AD6: 6362200417 | AE6: 1.078771081e+10 | AF6: 1.07437121e+10 | AG6: 231361091.7 | AH6: 230344927 | AI6: =SUM(AI7:AI8) -> 400000 | AJ6: =AA6/$AI6 -> 1256.240756 | AK6: 1250.780264 | AL6: 15975.81455 | AM6: 15905.50104 | AN6: 26969.27703 | AO6: 26859.28026 | AP6: 578.4027292 | AQ6: 575.8623176
A7: SIMD Q1 (most deprived) | B7: 16+ Males and Females | C7: N/A | E7: BOTH | F7: 1 | H7: =H12+H17 -> 872234 | I7: 0 | J7: 65948 | K7: 12904.4093 | L7: 12848.69881 | M7: =M12+M17 -> 179543.4857 | N7: 178755.6914 | O7: 288715.8401 | P7: 287538.7176 | Q7: 6421.959799 | R7: 6393.823792 | AA7: =AA12+AA17 -> 294259435.9 | AB7: =AB12+AB17 -> 292989891 | AC7: 3750729959 | AD7: 3734277910 | AE7: 5950449632 | AF7: 5926169841 | AG7: 135894536.4 | AH7: 135299558.4 | AI7: =AI12+AI17 -> 200000 | AJ7: =AA7/$AI7 -> 1471.297179 | AK7: 1464.949455 | AL7: =AC7/$AI7 -> 18753.64979 | AM7: =AD7/$AI7 -> 18671.38955 | AN7: =AE7/$AI7 -> 29752.24816 | AO7: =AF7/$AI7 -> 29630.8492 | AP7: =AG7/$AI7 -> 679.472682 | AQ7: =AH7/$AI7 -> 676.4977921
A8: SIMD Q2 | C8: N/A | E8: BOTH | F8: 2 | H8: =H13+H18 -> 897032 | I8: 0 | J8: 67820 | K8: =K13+K18 -> 10503.03692 | L8: 10456.98285 | M8: 138421.3048 | N8: 137810.1157 | O8: 253562.8907 | P8: 252529.8674 | Q8: 4980.062339 | R8: 4958.101762 | AA8: =AA13+AA18 -> 208236866.5 | AB8: =AB13+AB18 -> 207322214.6 | AC8: 2639595861 | AD8: 2627922507 | AE8: 4837261178 | AF8: 4817542261 | AG8: 95466555.28 | AH8: 95045368.63 | AI8: =AI13+AI18 -> 200000 | AJ8: 1041.184332 | AK8: 1036.611073 | AL8: 13197.9793 | AM8: 13139.61254 | AN8: 24186.30589 | AO8: 24087.71131 | AP8: 477.3327764 | AQ8: 475.2268431
A9: SIMD Q3 | C9: N/A | E9: BOTH | F9: 3 | H9: 907978 | I9: 0 | J9: 68651 | K9: 8988.461529 | L9: 8949.20721 | M9: 117496.2805 | N9: 116982.1341 | O9: 227312.9823 | P9: 226388.9502 | Q9: 4321.177376 | R9: 4302.394737 | AA9: =AA14+AA19 -> 169190920 | AB9: =AB14+AB19 -> 168450739.9 | AC9: 2139326161 | AD9: 2129950616 | AE9: 4182172525 | AF9: 4165164430 | AG9: 77310657.57 | AH9: 76974416.08 | AI9: =AI14+AI19 -> 200000 | AJ9: 845.9546 | AK9: 842.2536994 | AL9: 10696.6308 | AM9: 10649.75308 | AN9: 20910.86262 | AO9: 20825.82215 | AP9: 386.5532879 | AQ9: 384.8720804
A10: SIMD Q4 | C10: N/A | E10: BOTH | F10: 4 | H10: 910792 | I10: 0 | J10: 68864 | K10: 7029.633025 | L10: 6999.247785 | M10: 93219.93539 | N10: 92815.18598 | O10: 200119.0561 | P10: 199307.1405 | Q10: 3451.427104 | R10: 3436.470921 | AA10: =AA15+AA20 -> 134766653 | AB10: =AB15+AB20 -> 134183517.4 | AC10: 1700393705 | AD10: 1692998059 | AE10: 3688824591 | AF10: 3673851316 | AG10: 61407002.2 | AH10: 61140570.86 | AI10: =AI15+AI20 -> 200000 | AJ10: 673.8332648 | AK10: 670.9175868 | AL10: 8501.968525 | AM10: 8464.990294 | AN10: 18444.12295 | AO10: 18369.25658 | AP10: 307.035011 | AQ10: 305.7028543
A11: SIMD Q5 (least deprived) | C11: N/A | E11: BOTH | F11: 5 | H11: 900747 | I11: 0 | J11: 68103 | K11: 5079.465221 | L11: 5057.406662 | M11: 66822.29138 | N11: 66532.1572 | O11: 174144.9582 | P11: 173438.9079 | Q11: 2443.744212 | R11: 2433.22231 | AA11: =AA16+AA21 -> 99587861.12 | AB11: =AB16+AB21 -> 99153760.09 | AC11: 1253621090 | AD11: 1248165144 | AE11: 3280984393 | AF11: 3267674312 | AG11: 45237519.38 | AH11: 45042557.3 | AI11: =AI16+AI21 -> 200000 | AJ11: =AA11/$AI11 -> 497.9393056 | AK11: 495.7688005 | AL11: 6268.105449 | AM11: 6240.825721 | AN11: 16404.92197 | AO11: 16338.37156 | AP11: 226.1875969 | AQ11: 225.2127865
A12: SIMD Q1 (most deprived) | B12: 16+ Females | C12: N/A | E12: female | F12: 1 | H12: =SUM(H60:H78) -> 457633 | I12: =SUM(I60:I78) -> 0 | J12: =SUM(J60:J78) -> 34601 | K12: =SUMIF(K60:K78,">0") -> 6431.660143 | L12: 6404.447114 | M12: 82582.88075 | N12: 82226.62403 | O12: 155037.8909 | P12: 154407.3259 | Q12: 2638.793762 | R12: 2627.329375 | AA12: =SUMIF(AA60:AA78,">0") -> 124124532.2 | AB12: =SUMIF(AB60:AB78,">0") -> 123599216.8 | AC12: =SUMIF(AC60:AC78,">0") -> 1590340512 | AD12: 1583477976 | AE12: 2906076588 | AF12: 2894255659 | AG12: 53080352.66 | AH12: 52849771.44 | AI12: =SUM(AI60:AI78) -> 100000 | AJ12: 1241.245322 | AK12: 1235.992168 | AL12: 15903.40512 | AM12: 15834.77976 | AN12: 29060.76588 | AO12: 28942.55659 | AP12: 530.8035266 | AQ12: 528.4977144
A13: SIMD Q2 | C13: N/A | E13: female | F13: 2 | H13: =SUM(H98:H116) -> 469079 | I13: =SUM(I98:I116) -> 0 | J13: =SUM(J98:J116) -> 35464 | K13: =SUMIF(K98:K116,">0") -> 5242.570584 | L13: 5220.120937 | M13: 64045.98148 | N13: 63770.05537 | O13: 134904.8591 | P13: 134357.3294 | Q13: 2052.667091 | R13: 2043.800105 | AA13: =SUMIF(AA98:AA116,">0") -> 87773372.54 | AB13: =SUMIF(AB98:AB116,">0") -> 87397367.18 | AC13: 1118703632 | AD13: 1113883604 | AE13: 2362418360 | AF13: 2352832247 | AG13: 37260438.44 | AH13: 37099496.69 | AI13: =SUM(AI98:AI116) -> 100000 | AJ13: 877.7337254 | AK13: 873.9736718 | AL13: 11187.03632 | AM13: 11138.83604 | AN13: 23624.1836 | AO13: 23528.32247 | AP13: 372.6043844 | AQ13: 370.9949669
A14: SIMD Q3 | C14: N/A | E14: female | F14: 3 | H14: =SUM(H136:H154) -> 469093 | I14: =SUM(I136:I154) -> 0 | J14: =SUM(J136:J154) -> 35467 | K14: =SUMIF(K136:K154,">0") -> 4356.816717 | L14: 4338.20628 | M14: 53298.59149 | N14: 53071.39075 | O14: 118438.0814 | P14: 117958.5481 | Q14: 1753.16368 | R14: 1745.737406 | AA14: =SUMIF(AA136:AA154,">0") -> 71292685.67 | AB14: =SUMIF(AB136:AB154,">0") -> 70988118.18 | AC14: 906502965.1 | AD14: 902639300.4 | AE14: 2042486604 | AF14: 2034218943 | AG14: 30163759.76 | AH14: 30036004.95 | AI14: =SUM(AI136:AI154) -> 100000 | AJ14: 712.9268567 | AK14: 709.8811818 | AL14: 9065.029651 | AM14: 9026.393004 | AN14: 20424.86604 | AO14: 20342.18943 | AP14: 301.6375976 | AQ14: 300.3600495
A15: SIMD Q4 | C15: N/A | E15: female | F15: 4 | H15: =SUM(H174:H192) -> 468792 | I15: =SUM(I174:I192) -> 0 | J15: =SUM(J174:J192) -> 35444 | K15: =SUMIF(K174:K192,">0") -> 3354.258297 | L15: 3340.037394 | M15: 41827.45503 | N15: 41650.49303 | O15: 103630.2706 | P15: 103211.3794 | Q15: 1387.422547 | R15: 1381.566346 | AA15: =SUMIF(AA174:AA192,">0") -> 56770290.84 | AB15: =SUMIF(AB174:AB192,">0") -> 56529459.59 | AC15: 720385195.6 | AD15: 717335222.4 | AE15: 1801545672 | AF15: 1794262921 | AG15: 23951696.72 | AH15: 23850547.06 | AI15: =SUM(AI174:AI192) -> 100000 | AJ15: 567.7029084 | AK15: 565.2945959 | AL15: 7203.851956 | AM15: 7173.352224 | AN15: 18015.45672 | AO15: 17942.62921 | AP15: 239.5169672 | AQ15: 238.5054706
A16: SIMD Q5 (least deprived) | C16: N/A | E16: female | F16: 5 | H16: =SUM(H212:H230) -> 465079 | I16: =SUM(I212:I230) -> 0 | J16: =SUM(J212:J230) -> 35162 | K16: =SUMIF(K212:K230,">0") -> 2445.74807 | L16: 2435.456175 | M16: 30217.63621 | N16: 30091.15795 | O16: 90811.93649 | P16: 90445.69359 | Q16: 993.4981186 | R16: 989.3844234 | AA16: =SUMIF(AA212:AA230,">0") -> 41934460.22 | AB16: =SUMIF(AB212:AB230,">0") -> 41757972.02 | AC16: 530992199.8 | AD16: 528768520.2 | AE16: 1602364951 | AF16: 1595902179 | AG16: 17639421.36 | AH16: 17566361.26 | AI16: =SUM(AI212:AI230) -> 100000 | AJ16: 419.3446022 | AK16: 417.5797202 | AL16: 5309.921998 | AM16: 5287.685202 | AN16: 16023.64951 | AO16: 15959.02179 | AP16: 176.3942136 | AQ16: 175.6636126
A17: SIMD Q1 (most deprived) | B17: 16+ Males | C17: N/A | E17: male | F17: 1 | H17: =SUM(H79:H97) -> 414601 | I17: =SUM(I79:I97) -> 0 | J17: =SUM(J79:J97) -> 31347 | K17: =SUMIF(K79:K97,">0") -> 6472.74916 | L17: 6444.251692 | M17: 96960.60496 | N17: 96529.06739 | O17: 133677.9492 | P17: 133131.3917 | Q17: 3783.166037 | R17: 3766.494417 | AA17: =SUMIF(AA79:AA97,">0") -> 170134903.7 | AB17: =SUMIF(AB79:AB97,">0") -> 169390674.1 | AC17: 2160389447 | AD17: 2150799934 | AE17: 3044373044 | AF17: 3031914182 | AG17: 82814183.73 | AH17: 82449786.97 | AI17: =SUM(AI79:AI97) -> 100000 | AJ17: 1701.349037 | AK17: 1693.906741 | AL17: 21603.89447 | AM17: 21507.99934 | AN17: 30443.73044 | AO17: 30319.14182 | AP17: 828.1418373 | AQ17: 824.4978697
A18: SIMD Q2 | C18: N/A | E18: male | F18: 2 | H18: =SUM(H117:H135) -> 427953 | I18: =SUM(I117:I135) -> 0 | J18: =SUM(J117:J135) -> 32356 | K18: =SUMIF(K117:K135,">0") -> 5260.466332 | L18: 5236.861913 | M18: 74375.32336 | N18: 74040.06029 | O18: 118658.0316 | P18: 118172.5379 | Q18: 2927.395248 | R18: 2914.301657 | AA18: =SUMIF(AA117:AA135,">0") -> 120463493.9 | AB18: =SUMIF(AB117:AB135,">0") -> 119924847.4 | AC18: 1520892228 | AD18: 1514038903 | AE18: 2474842818 | AF18: 2464710014 | AG18: 58206116.84 | AH18: 57945871.94 | AI18: =SUM(AI117:AI135) -> 100000 | AJ18: 1204.634939 | AK18: 1199.248474 | AL18: 15208.92228 | AM18: 15140.38903 | AN18: 24748.42818 | AO18: 24647.10014 | AP18: 582.0611684 | AQ18: 579.4587194
A19: SIMD Q3 | C19: N/A | E19: male | F19: 3 | H19: =SUM(H155:H173) -> 438885 | I19: =SUM(I155:I173) -> 0 | J19: =SUM(J155:J173) -> 33184 | K19: =SUMIF(K155:K173,">0") -> 4631.644811 | L19: 4611.000931 | M19: 64197.68898 | N19: 63910.74338 | O19: 108874.9009 | P19: 108430.4021 | Q19: 2568.013696 | R19: 2556.657331 | AA19: =SUMIF(AA155:AA173,">0") -> 97898234.32 | AB19: =SUMIF(AB155:AB173,">0") -> 97462621.69 | AC19: 1232823196 | AD19: 1227311316 | AE19: 2139685921 | AF19: 2130945487 | AG19: 47146897.81 | AH19: 46938411.13 | AI19: =SUM(AI155:AI173) -> 100000 | AJ19: =AA19/$AI19 -> 978.9823432 | AK19: =AB19/$AI19 -> 974.6262169 | AL19: =AC19/$AI19 -> 12328.23196 | AM19: =AD19/$AI19 -> 12273.11316 | AN19: 21396.85921 | AO19: 21309.45487 | AP19: 471.4689781 | AQ19: 469.3841113
A20: SIMD Q4 | C20: N/A | E20: male | F20: 4 | H20: =SUM(H193:H211) -> 442000 | I20: =SUM(I193:I211) -> 0 | J20: =SUM(J193:J211) -> 33420 | K20: =SUMIF(K193:K211,">0") -> 3675.374728 | L20: 3659.210391 | M20: 51392.48036 | N20: 51164.69294 | O20: 96488.78552 | P20: 96095.76106 | Q20: 2064.004557 | R20: 2054.904575 | AA20: =SUMIF(AA193:AA211,">0") -> 77996362.12 | AB20: =SUMIF(AB193:AB211,">0") -> 77654057.77 | AC20: 980008509.4 | AD20: 975662836.5 | AE20: 1887278919 | AF20: 1879588395 | AG20: 37455305.48 | AH20: 37290023.8 | AI20: =SUM(AI193:AI211) -> 100000 | AJ20: 779.9636212 | AK20: 776.5405777 | AL20: 9800.085094 | AM20: 9756.628365 | AN20: 18872.78919 | AO20: 18795.88395 | AP20: 374.5530548 | AQ20: 372.900238
A21: SIMD Q5 (least deprived) | C21: N/A | E21: male | F21: 5 | H21: =SUM(H231:H249) -> 435668 | I21: =SUM(I231:I249) -> 0 | J21: =SUM(J231:J249) -> 32941 | K21: =SUMIF(K231:K249,">0") -> 2633.717151 | L21: 2621.950487 | M21: 36604.65517 | N21: 36440.99925 | O21: 83333.02172 | P21: 82993.21429 | Q21: 1450.246094 | R21: 1443.837886 | AA21: =SUMIF(AA231:AA249,">0") -> 57653400.9 | AB21: =SUMIF(AB231:AB249,">0") -> 57395788.07 | AC21: 722628890.1 | AD21: 719396624.1 | AE21: 1678619443 | AF21: 1671772133 | AG21: 27598098.02 | AH21: 27476196.04 | AI21: =SUM(AI231:AI249) -> 100000 | AJ21: =AA21/$AI21 -> 576.534009 | AK21: 573.9578807 | AL21: 7226.288901 | AM21: 7193.966241 | AN21: 16786.19443 | AO21: 16717.72133 | AP21: 275.9809802 | AQ21: 274.7619604
B22: Female 0-4 | C22: 2.0384007 | D22: 81.468401 | E22: female | F22: ALL | H22: =SUM(H60,H98,H136,H174,H212) -> 0 | I22: 0 | J22: 0 | K22: =SUM(K60,K98,K136,K174,K212) ->  | AA22: =SUM(AA60,AA98,AA136,AA174,AA212) ->  | AI22: 25000
B23: Female 5-9 | C23: 6.9792795 | D23: 81.43928 | E23: female | F23: ALL | H23: =SUM(H61,H99,H137,H175,H213) -> 0 | I23: 0 | J23: 0 | K23: =SUM(K61,K99,K137,K175,K213) ->  | M23: =SUM(M61,M99,M137,M175,M213) ->  | AA23: =SUM(AA61,AA99,AA137,AA175,AA213) ->  | AI23: 27500
B24: Female 10-15 | C24: 12.478312 | D24: 81.94831 | E24: female | F24: ALL | H24: =SUM(H62,H100,H138,H176,H214) -> 0 | I24: 0 | J24: 0 | K24: =SUM(K62,K100,K138,K176,K214) ->  | L24: =SUM(L62,L100,L138,L176,L214) ->  | O24: =SUM(O62,O100,O138,O176,O214) ->  | P24: =SUM(P62,P100,P138,P176,P214) ->  | AA24: =SUM(AA62,AA100,AA138,AA176,AA214) ->  | AI24: 33000
A25: All quintiles | B25: Female 16-19 | C25: 17.570053 | D25: 81.10005 | E25: female | F25: ALL | H25: =SUM(H63,H101,H139,H177,H215) -> 118803 | I25: 0 | J25: 8982 | K25: 22.93750586 | L25: 22.84081066 | M25: 1434.282172 | N25: 1428.235822 | O25: 12465.29027 | P25: 12415.03236 | Q25: 22.93750586 | R25: 22.84081066 | AA25: =SUM(AA63,AA101,AA139,AA177,AA215) -> 426137.6316 | AB25: 424341.6477 | AC25: 26646384.83 | AD25: 26534081.96 | AE25: 231245008.5 | AF25: 230312713.9 | AG25: 426137.6316 | AH25: 424341.6477 | AI25: 22000 | AJ25: 19.36989235 | AK25: 19.28825671 | AL25: 1211.19931 | AM25: 1206.094634 | AN25: 10511.13675 | AO25: 10468.75972 | AP25: 19.36989235 | AQ25: 19.28825671
B26: Female 20-24 | C26: 22.077057 | D26: 81.66706 | E26: female | F26: ALL | H26: =SUM(H64,H102,H140,H178,H216) -> 182279 | I26: 0 | J26: 13782 | K26: 51.98081247 | L26: 51.76171842 | M26: 3045.555959 | N26: 3032.719237 | O26: 21506.62704 | P26: 21419.91201 | Q26: 51.98081247 | R26: 51.76171842 | AA26: =SUM(AA64,AA102,AA140,AA178,AA216) -> 852526.6623 | AB26: 848933.6083 | AC26: 49949539.7 | AD26: 49739022.65 | AE26: 353188002.8 | AF26: 351763967.3 | AG26: 852526.6623 | AH26: 848933.6083 | AI26: 30000 | AJ26: 28.41755541 | AK26: 28.29778694 | AL26: 1664.984657 | AM26: 1657.967422 | AN26: 11772.93343 | AO26: 11725.46558 | AP26: 28.41755541 | AQ26: 28.29778694
B27: Female 25-29 | C27: 26.975187 | D27: 81.64519 | E27: female | F27: ALL | H27: =SUM(H65,H103,H141,H179,H217) -> 187975 | I27: 0 | J27: 14212 | K27: 84.83298221 | L27: 84.46488128 | M27: 4552.98641 | N27: 4533.230432 | O27: 25701.25489 | P27: 25597.08266 | Q27: 84.83298221 | R27: 84.46488128 | AA27: =SUM(AA65,AA103,AA141,AA179,AA217) -> 1293008.507 | AB27: 1287400.294 | AC27: 69395770.44 | AD27: 69094777.66 | AE27: 399497115.4 | AF27: 397877986.6 | AG27: 1293008.507 | AH27: 1287400.294 | AI27: 30000 | AJ27: 43.10028356 | AK27: 42.91334315 | AL27: 2313.192348 | AM27: 2303.159255 | AN27: 13316.57051 | AO27: 13262.59955 | AP27: 43.10028356 | AQ27: 42.91334315
B28: Female 30-34 | C28: 31.999905 | D28: 81.7999 | E28: female | F28: ALL | H28: =SUM(H66,H104,H142,H180,H218) -> 179608 | I28: 0 | J28: 13580 | K28: 122.8545102 | L28: 122.3215617 | M28: 5995.299483 | N28: 5969.291599 | O28: 27681.46121 | P28: 27569.25915 | Q28: 122.8545102 | R28: 122.3215617 | AA28: =SUM(AA66,AA104,AA142,AA180,AA218) -> 2147392.44 | AB28: 2138080.16 | AC28: 104792740.3 | AD28: 104338301.1 | AE28: 491095913.1 | AF28: 489105459.8 | AG28: 2147392.44 | AH28: 2138080.16 | AI28: 32500 | AJ28: 66.07361353 | AK28: 65.78708184 | AL28: 3224.39201 | AM28: 3210.409265 | AN28: 15110.64348 | AO28: 15049.39876 | AP28: 66.07361353 | AQ28: 65.78708184
B29: Female 35-39 | C29: 36.918118 | D29: 81.89812 | E29: female | F29: ALL | H29: =SUM(H67,H105,H143,H181,H219) -> 166485 | I29: 0 | J29: 12587 | K29: 168.234848 | L29: 167.5132216 | M29: 7398.968952 | N29: 7367.231823 | O29: 28578.84599 | P29: 28463.28332 | Q29: 168.234848 | R29: 167.5132216 | AA29: =SUM(AA67,AA105,AA143,AA181,AA219) -> 3513020.629 | AB29: 3497959.742 | AC29: 154502654.3 | AD29: 153840276.5 | AE29: 598519214.2 | AF29: 596099231.8 | AG29: 3513020.629 | AH29: 3497959.742 | AI29: 35000 | AJ29: 100.372018 | AK29: 99.94170692 | AL29: 4414.361551 | AM29: 4395.43647 | AN29: 17100.54898 | AO29: 17031.40662 | AP29: 100.372018 | AQ29: 99.94170692
B30: Female 40-44 | C30: 42.077438 | D30: 82.30744 | E30: female | F30: ALL | H30: =SUM(H68,H106,H144,H182,H220) -> 172709 | I30: 0 | J30: 13057 | K30: 265.8491194 | L30: 264.7101571 | M30: 10429.26148 | N30: 10384.57999 | O30: 33419.63756 | P30: 33284.52171 | Q30: 265.8491194 | R30: 264.7101571 | AA30: =SUM(AA68,AA106,AA144,AA182,AA220) -> 5446512.014 | AB30: 5423175.108 | AC30: 213666677.2 | AD30: 212751170.3 | AE30: 681457961.7 | AF30: 678702754.6 | AG30: 5446512.014 | AH30: 5423175.108 | AI30: 35000 | AJ30: 155.614629 | AK30: 154.9478602 | AL30: 6104.762206 | AM30: 6078.604866 | AN30: 19470.22748 | AO30: 19391.50728 | AP30: 155.614629 | AQ30: 154.9478602
B31: Female 45-49 | C31: 47.025772 | D31: 82.58577 | E31: female | F31: ALL | H31: =SUM(H69,H107,H145,H183,H221) -> 202829 | I31: 0 | J31: 15336 | K31: 475.6807948 | L31: 473.6644523 | M31: 16439.52732 | N31: 16369.84252 | O31: 44462.66378 | P31: 44283.30222 | Q31: 475.6807948 | R31: 473.6644523 | AA31: =SUM(AA69,AA107,AA145,AA183,AA221) -> 8292695.168 | AB31: 8257523.134 | AC31: 286595528.4 | AD31: 285379983 | AE31: 771783001 | AF31: 768669263.8 | AG31: 8292695.168 | AH31: 8257523.134 | AI31: 35000 | AJ31: 236.9341477 | AK31: 235.9292324 | AL31: 8188.443669 | AM31: 8153.7138 | AN31: 22050.94289 | AO31: 21961.97896 | AP31: 236.9341477 | AQ31: 235.9292324
B32: Female 50-54 | C32: 51.990826 | D32: 82.98083 | E32: female | F32: ALL | H32: =SUM(H70,H108,H146,H184,H222) -> 209262 | I32: 0 | J32: 15821 | K32: 746.8753415 | L32: 743.7141319 | M32: 22398.79448 | N32: 22303.98979 | O32: 51924.44852 | P32: 51715.01453 | Q32: 746.8753415 | R32: 743.7141319 | AA32: =SUM(AA70,AA108,AA146,AA184,AA222) -> 12640998.64 | AB32: 12587452.99 | AC32: 379103599.6 | AD32: 377497765.4 | AE32: 874448019.8 | AF32: 870920454.3 | AG32: 12640998.64 | AH32: 12587452.99 | AI32: 35000 | AJ32: 361.1713896 | AK32: 359.6415139 | AL32: 10831.53142 | AM32: 10785.65044 | AN32: 24984.22914 | AO32: 24883.44155 | AP32: 361.1713896 | AQ32: 359.6415139
B33: Female 55-59 | C33: 56.953041 | D33: 83.47304 | E33: female | F33: ALL | H33: =SUM(H71,H109,H147,H185,H223) -> 190084 | I33: 0 | J33: 14371 | K33: 1032.716875 | L33: 1028.333109 | M33: 26354.93362 | N33: 26243.0599 | O33: 53414.87334 | P33: 53199.20454 | Q33: 1032.716875 | R33: 1028.333109 | AA33: =SUM(AA71,AA109,AA147,AA185,AA223) -> 17881835.41 | AB33: 17805876.83 | AC33: 456344421.7 | AD33: 454405958.9 | AE33: 919934892.6 | AF33: 916220006.5 | AG33: 17881835.41 | AH33: 17805876.83 | AI33: 32500 | AJ33: 550.2103202 | AK33: 547.8731333 | AL33: 14041.36682 | AM33: 13981.72181 | AN33: 28305.689 | AO33: 28191.38481 | AP33: 550.2103202 | AQ33: 547.8731333
B34: Female 60-64 | C34: 61.947388 | D34: 84.16739 | E34: female | F34: ALL | H34: =SUM(H72,H110,H148,H186,H224) -> 165146 | I34: 0 | J34: 12487 | K34: 1358.516769 | L34: 1352.766614 | M34: 28827.72856 | N34: 28705.71025 | O34: 52377.01197 | P34: 52165.52318 | Q34: 1358.516769 | R34: 1352.766614 | AA34: =SUM(AA72,AA110,AA148,AA186,AA224) -> 25199593.18 | AB34: 25092829.08 | AC34: 534735417.6 | AD34: 532469883.3 | AE34: 962839226.4 | AF34: 958950601.3 | AG34: 25199593.18 | AH34: 25092829.08 | AI34: 30000 | AJ34: 839.9864392 | AK34: 836.4276361 | AL34: 17824.51392 | AM34: 17748.99611 | AN34: 32094.64088 | AO34: 31965.02004 | AP34: 839.9864392 | AQ34: 836.4276361
B35: Female 65-69 | C35: 67.063927 | D35: 85.19393 | E35: female | F35: ALL | H35: =SUM(H73,H111,H149,H187,H225) -> 164057 | I35: 0 | J35: 12404 | K35: 2067.111499 | L35: 2058.188687 | M35: 35409.62618 | N35: 35256.77838 | O35: 58973.2205 | P35: 58734.02723 | Q35: 2067.111499 | R35: 2058.188687 | AA35: =SUM(AA73,AA111,AA149,AA187,AA225) -> 35600732.3 | AB35: 35446895.99 | AC35: 609840651.2 | AD35: 607205434.7 | AE35: 1003826931 | AF35: 999754383.5 | AG35: 35600732.3 | AH35: 35446895.99 | AI35: 27500 | AJ35: 1294.572084 | AK35: 1288.978036 | AL35: 22176.02368 | AM35: 22080.19762 | AN35: 36502.79749 | AO35: 36354.70485 | AP35: 1294.572084 | AQ35: 1288.978036
B36: Female 70-74 | C36: 71.938164 | D36: 86.24816 | E36: female | F36: ALL | H36: =SUM(H74,H112,H150,H188,H226) -> 127150 | I36: 0 | J36: 9614 | K36: 2427.954142 | L36: 2417.538311 | M36: 32316.05992 | N36: 32177.42524 | O36: 51815.94224 | P36: 51605.76069 | Q36: 2427.954142 | R36: 2417.538311 | AA36: =SUM(AA74,AA112,AA150,AA188,AA226) -> 48801216.36 | AB36: 48591712.81 | AC36: 649543994.5 | AD36: 646755503.1 | AE36: 1031603609 | AF36: 1027418228 | AG36: 48801216.36 | AH36: 48591712.81 | AI36: 25000 | AJ36: 1952.048654 | AK36: 1943.668512 | AL36: 25981.75978 | AM36: 25870.22012 | AN36: 41264.14437 | AO36: 41096.72913 | AP36: 1952.048654 | AQ36: 1943.668512
B37: Female 75-79 | C37: 76.942825 | D37: 87.81283 | E37: female | F37: ALL | H37: =SUM(H75,H113,H151,H189,H227) -> 104331 | I37: 0 | J37: 7888 | K37: 3079.035894 | L37: 3065.552218 | M37: 30390.09967 | N37: 30257.01572 | O37: 48655.39333 | P37: 48456.81153 | Q37: 0 | R37: 0 | AA37: =SUM(AA75,AA113,AA151,AA189,AA227) -> 59406335.76 | AB37: 59146281.01 | AC37: 586340831 | AD37: 583774089.3 | AE37: 935996664.2 | AF37: 932176532.1 | AG37: 0 | AH37: 0 | AI37: 20000 | AJ37: 2970.316788 | AK37: 2957.314051 | AL37: 29317.04155 | AM37: 29188.70447 | AN37: 46799.83321 | AO37: 46608.82661 | AP37: 0 | AQ37: 0
B38: Female 80-84 | C38: 81.856712 | D38: 89.73671 | E38: female | F38: ALL | H38: =SUM(H76,H114,H152,H190,H228) -> 80217 | I38: 0 | J38: 6064 | K38: 3571.84292 | L38: 3556.448777 | M38: 24574.27215 | N38: 24468.36047 | O38: 42391.15608 | P38: 42218.15947 | Q38: 0 | R38: 0 | AA38: =SUM(AA76,AA114,AA152,AA190,AA228) -> 55891741.96 | AB38: 55650991.82 | AC38: 384535072.9 | AD38: 382878712.4 | AE38: 661963669 | AF38: 659262314.1 | AG38: 0 | AH38: 0 | AI38: 12500 | AJ38: 4471.339357 | AK38: 4452.079346 | AL38: 30762.80583 | AM38: 30630.297 | AN38: 52957.09352 | AO38: 52740.98513 | AP38: 0 | AQ38: 0
B39: Female 85-89 | C39: 86.73082 | D39: 92.22082 | E39: female | F39: ALL | H39: =SUM(H77,H115,H153,H191,H229) -> 49691 | I39: 0 | J39: 3757 | K39: 3275.670034 | L39: 3261.877401 | M39: 14707.75845 | N39: 14645.82953 | O39: 29525.06547 | P39: 29404.55724 | Q39: 0 | R39: 0 | AA39: =SUM(AA77,AA115,AA153,AA191,AA229) -> 50089144.37 | AB39: 49878455.73 | AC39: 224900258.2 | AD39: 223954266.2 | AE39: 448983820.1 | AF39: 447151167.7 | AG39: 0 | AH39: 0 | AI39: 7500 | AJ39: 6678.552583 | AK39: 6650.460764 | AL39: 29986.7011 | AM39: 29860.56883 | AN39: 59864.50934 | AO39: 59620.15569 | AP39: 0 | AQ39: 0
B40: Female 90+ | C40: 92.779343 | D40: 96.27934 | E40: female | F40: ALL | H40: =SUM(H78,H116,H154,H192,H230) -> 29050 | I40: 0 | J40: 2196 | K40: 3078.959764 | L40: 3066.571848 | M40: 7697.390174 | N40: 7666.42042 | O40: 19930.14616 | P40: 19848.82463 | Q40: 0 | R40: 0 | AA40: =SUM(AA78,AA116,AA154,AA192,AA230) -> 54412450.46 | AB40: 54194223.82 | AC40: 136030962.9 | AD40: 135485397 | AE40: 348509125.9 | AF40: 347086884.1 | AG40: 0 | AH40: 0 | AI40: 5000 | AJ40: 10882.49009 | AK40: 10838.84476 | AL40: 27206.19258 | AM40: 27097.0794 | AN40: 69701.82517 | AO40: 69417.37682 | AP40: 0 | AQ40: 0
B41: Male 0-4 | C41: 2.0320823 | D41: 77.402082 | E41: male | F41: ALL | H41: =SUM(H79,H117,H155,H193,H231) -> 0 | I41: 0 | J41: 0 | AA41: =SUM(AA79,AA117,AA155,AA193,AA231) ->  | AI41: 25000
B42: Male 5-9 | C42: 6.9784756 | D42: 77.398476 | E42: male | F42: ALL | H42: =SUM(H80,H118,H156,H194,H232) -> 0 | I42: 0 | J42: 0 | AA42: =SUM(AA80,AA118,AA156,AA194,AA232) ->  | AI42: 27500
B43: Male 10-15 | C43: 12.471144 | D43: 77.92114 | E43: male | F43: ALL | H43: =SUM(H81,H119,H157,H195,H233) -> 0 | I43: 0 | J43: 0 | AA43: =SUM(AA81,AA119,AA157,AA195,AA233) ->  | AI43: 33000
B44: Male 16-19 | C44: 17.556318 | D44: 77.07632 | E44: male | F44: ALL | H44: =SUM(H82,H120,H158,H196,H234) -> 124418 | I44: 0 | J44: 9406 | K44: 56.98385377 | L44: 56.72194386 | M44: 3334.695236 | N44: 3319.368268 | O44: 8826.189231 | P44: 8790.123025 | Q44: 56.98385377 | R44: 56.72194386 | AA44: =SUM(AA82,AA120,AA158,AA196,AA234) -> 1013122.106 | AB44: 1008467.294 | AC44: 59287907.65 | AD44: 59015508.08 | AE44: 156551621.6 | AF44: 155911951.1 | AG44: 1013122.106 | AH44: 1008467.294 | AI44: 22000 | AJ44: 46.0510048 | AK44: 45.83942247 | AL44: 2694.904893 | AM44: 2682.523095 | AN44: 7115.9828 | AO44: 7086.906869 | AP44: 46.0510048 | AQ44: 45.83942247
B45: Male 20-24 | C45: 22.054632 | D45: 77.70463 | E45: male | F45: ALL | H45: =SUM(H83,H121,H159,H197,H235) -> 181688 | I45: 0 | J45: 13736 | K45: 117.531487 | L45: 116.9912917 | M45: 6423.095527 | N45: 6393.573856 | O45: 15171.57336 | P45: 15109.57407 | Q45: 117.531487 | R45: 116.9912917 | AA45: =SUM(AA83,AA121,AA159,AA197,AA235) -> 1940008.109 | AB45: 1931095.927 | AC45: 106021439.3 | AD45: 105534388.5 | AE45: 250437460.6 | AF45: 249414127.9 | AG45: 1940008.109 | AH45: 1931095.927 | AI45: 30000 | AJ45: 64.66693696 | AK45: 64.36986422 | AL45: 3534.047975 | AM45: 3517.812951 | AN45: 8347.915354 | AO45: 8313.804263 | AP45: 64.66693696 | AQ45: 64.36986422
B46: Male 25-29 | C46: 26.959763 | D46: 77.78976 | E46: male | F46: ALL | H46: =SUM(H84,H122,H160,H198,H236) -> 186149 | I46: 0 | J46: 14074 | K46: 180.0721236 | L46: 179.2397778 | M46: 8972.993378 | N46: 8931.517592 | O46: 18844.70775 | P46: 18767.59793 | Q46: 180.0721236 | R46: 179.2397778 | AA46: =SUM(AA84,AA122,AA160,AA198,AA236) -> 2809045.081 | AB46: 2796065.059 | AC46: 139974708 | AD46: 139327913.5 | AE46: 298066844.9 | AF46: 296847241.6 | AG46: 2809045.081 | AH46: 2796065.059 | AI46: 30000 | AJ46: 93.63483604 | AK46: 93.20216864 | AL46: 4665.823599 | AM46: 4644.263784 | AN46: 9935.561496 | AO46: 9894.908053 | AP46: 93.63483604 | AQ46: 93.20216864
B47: Male 30-34 | C47: 31.981522 | D47: 78.06152 | E47: male | F47: ALL | H47: =SUM(H85,H123,H161,H199,H237) -> 172305 | I47: 0 | J47: 13029 | K47: 242.7441954 | L47: 241.6228992 | M47: 10942.90785 | N47: 10892.35981 | O47: 20810.11301 | P47: 20724.95414 | Q47: 242.7441954 | R47: 241.6228992 | AA47: =SUM(AA85,AA123,AA161,AA199,AA237) -> 4444909.223 | AB47: 4424376.773 | AC47: 200376498.9 | AD47: 199450896.1 | AE47: 385911765.1 | AF47: 384332519.1 | AG47: 4444909.223 | AH47: 4424376.773 | AI47: 32500 | AJ47: 136.7664376 | AK47: 136.1346699 | AL47: 6165.430735 | AM47: 6136.950648 | AN47: 11874.20816 | AO47: 11825.61597 | AP47: 136.7664376 | AQ47: 136.1346699
B48: Male 35-39 | C48: 36.92601 | D48: 78.33601 | E48: male | F48: ALL | H48: =SUM(H86,H124,H162,H200,H238) -> 161268 | I48: 0 | J48: 12193 | K48: 321.6673188 | L48: 320.1835923 | M48: 12998.57635 | N48: 12938.61896 | O48: 22880.10876 | P48: 22786.48933 | Q48: 321.6673188 | R48: 320.1835923 | AA48: =SUM(AA86,AA124,AA162,AA200,AA238) -> 6950348.71 | AB48: 6918290.607 | AC48: 280863591.4 | AD48: 279568123.4 | AE48: 495329032.5 | AF48: 493302292.6 | AG48: 6950348.71 | AH48: 6918290.607 | AI48: 35000 | AJ48: 198.5813917 | AK48: 197.6654459 | AL48: 8024.674039 | AM48: 7987.66067 | AN48: 14152.25807 | AO48: 14094.35122 | AP48: 198.5813917 | AQ48: 197.6654459
B49: Male 40-44 | C49: 42.067703 | D49: 78.9077 | E49: male | F49: ALL | H49: =SUM(H87,H125,H163,H201,H239) -> 164929 | I49: 0 | J49: 12470 | K49: 475.9547063 | L49: 473.7613888 | M49: 17058.21525 | N49: 16979.60675 | O49: 27796.41123 | P49: 27682.67567 | Q49: 475.9547063 | R49: 473.7613888 | AA49: =SUM(AA87,AA125,AA163,AA201,AA239) -> 10241126.3 | AB49: 10193935.7 | AC49: 367041936 | AD49: 365350624.9 | AE49: 594504097.5 | AF49: 592071552.1 | AG49: 10241126.3 | AH49: 10193935.7 | AI49: 35000 | AJ49: 292.6036086 | AK49: 291.2553057 | AL49: 10486.91246 | AM49: 10438.58928 | AN49: 16985.83136 | AO49: 16916.33006 | AP49: 292.6036086 | AQ49: 291.2553057
B50: Male 45-49 | C50: 47.038155 | D50: 79.41815 | E50: male | F50: ALL | H50: =SUM(H88,H126,H164,H202,H240) -> 189422 | I50: 0 | J50: 14323 | K50: 794.777771 | L50: 791.1976591 | M50: 24940.12248 | N50: 24827.77859 | O50: 38076.87909 | P50: 37921.60091 | Q50: 794.777771 | R50: 791.1976591 | AA50: =SUM(AA88,AA126,AA164,AA202,AA240) -> 14892462.72 | AB50: 14825402.07 | AC50: 467325405.6 | AD50: 465221042.8 | AE50: 709212168.1 | AF50: 706320129.6 | AG50: 14892462.72 | AH50: 14825402.07 | AI50: 35000 | AJ50: 425.4989348 | AK50: 423.5829163 | AL50: 13352.15445 | AM50: 13292.0298 | AN50: 20263.2048 | AO50: 20180.57513 | AP50: 425.4989348 | AQ50: 423.5829163
B51: Male 50-54 | C51: 51.998646 | D51: 79.98865 | E51: male | F51: ALL | H51: =SUM(H89,H127,H165,H203,H241) -> 197429 | I51: 0 | J51: 14927 | K51: 1202.12681 | L51: 1196.72191 | M51: 32445.4074 | N51: 32299.52913 | O51: 47294.71013 | P51: 47101.8579 | Q51: 1202.12681 | R51: 1196.72191 | AA51: =SUM(AA89,AA127,AA165,AA203,AA241) -> 21632406.61 | AB51: 21535189.71 | AC51: 583858741 | AD51: 581234856.3 | AE51: 845753788.7 | AF51: 842305286.2 | AG51: 21632406.61 | AH51: 21535189.71 | AI51: 35000 | AJ51: 618.0687604 | AK51: 615.2911345 | AL51: 16681.67832 | AM51: 16606.71018 | AN51: 24164.39396 | AO51: 24065.86532 | AP51: 618.0687604 | AQ51: 615.2911345
B52: Male 55-59 | C52: 56.950867 | D52: 80.66087 | E52: male | F52: ALL | H52: =SUM(H90,H128,H166,H204,H242) -> 180737 | I52: 0 | J52: 13666 | K52: 1595.219283 | L52: 1588.247976 | M52: 36227.4347 | N52: 36069.1163 | O52: 51591.13693 | P52: 51381.83136 | Q52: 1595.219283 | R52: 1588.247976 | AA52: =SUM(AA90,AA128,AA166,AA204,AA242) -> 29144253.05 | AB52: 29016852.49 | AC52: 661866074.3 | AD52: 658972807.1 | AE52: 936266656.8 | AF52: 932467875.5 | AG52: 29144253.05 | AH52: 29016852.49 | AI52: 32500 | AJ52: 896.7462478 | AK52: 892.8262305 | AL52: 20365.10998 | AM52: 20276.08637 | AN52: 28808.20482 | AO52: 28691.31925 | AP52: 896.7462478 | AQ52: 892.8262305
B53: Male 60-64 | C53: 61.942989 | D53: 81.61299 | E53: male | F53: ALL | H53: =SUM(H91,H129,H167,H205,H243) -> 156406 | I53: 0 | J53: 11826 | K53: 1989.736791 | L53: 1981.07519 | M53: 37148.38787 | N53: 36986.67579 | O53: 53033.32073 | P53: 52818.17675 | Q53: 1989.736791 | R53: 1981.07519 | AA53: =SUM(AA91,AA129,AA167,AA205,AA243) -> 39119425.64 | AB53: 38949099.94 | AC53: 730359715.8 | AD53: 727179734.9 | AE53: 1031793596 | AF53: 1027607395 | AG53: 39119425.64 | AH53: 38949099.94 | AI53: 30000 | AJ53: 1303.980855 | AK53: 1298.303331 | AL53: 24345.32386 | AM53: 24239.3245 | AN53: 34393.11986 | AO53: 34253.57983 | AP53: 1303.980855 | AQ53: 1298.303331
B54: Male 65-69 | C54: 67.05442 | D54: 82.95442 | E54: male | F54: ALL | H54: =SUM(H92,H130,H168,H206,H244) -> 153467 | I54: 0 | J54: 11604 | K54: 2843.75251 | L54: 2831.193705 | M54: 42371.9124 | N54: 42184.7862 | O54: 62174.33177 | P54: 61921.1481 | Q54: 2843.75251 | R54: 2831.193705 | AA54: =SUM(AA92,AA130,AA168,AA206,AA244) -> 52552496.67 | AB54: 52320403.73 | AC54: 783032200.4 | AD54: 779574015.6 | AE54: 1133962873 | AF54: 1129344662 | AG54: 52552496.67 | AH54: 52320403.73 | AI54: 27500 | AJ54: 1910.999879 | AK54: 1902.560136 | AL54: 28473.8982 | AM54: 28348.14602 | AN54: 41235.01357 | AO54: 41067.07863 | AP54: 1910.999879 | AQ54: 1902.560136
B55: Male 70-74 | C55: 71.891098 | D55: 84.3411 | E55: male | F55: ALL | H55: =SUM(H93,H131,H169,H207,H245) -> 111869 | I55: 0 | J55: 8458 | K55: 2972.258783 | L55: 2959.238533 | M55: 34032.36901 | N55: 33883.28712 | O55: 53814.8044 | P55: 53595.67599 | Q55: 2972.258783 | R55: 2959.238533 | AA55: =SUM(AA93,AA131,AA169,AA207,AA245) -> 68480997.66 | AB55: 68181110.59 | AC55: 784107560.2 | AD55: 780673852.6 | AE55: 1223954580 | AF55: 1218970238 | AG55: 68480997.66 | AH55: 68181110.59 | AI55: 25000 | AJ55: 2739.239907 | AK55: 2727.244424 | AL55: 31364.30241 | AM55: 31226.9541 | AN55: 48958.18319 | AO55: 48758.80951 | AP55: 2739.239907 | AQ55: 2727.244424
B56: Male 75-79 | C56: 76.9077 | D56: 86.3577 | E56: male | F56: ALL | H56: =SUM(H94,H132,H170,H208,H246) -> 82515 | I56: 0 | J56: 6239 | K56: 3202.328784 | L56: 3187.629929 | M56: 27059.67823 | N56: 26935.4729 | O56: 47629.86304 | P56: 47433.83518 | Q56: 0 | R56: 0 | AA56: =SUM(AA94,AA132,AA170,AA208,AA246) -> 79435207.12 | AB56: 79070546.85 | AC56: 671227500.2 | AD56: 668146120.9 | AE56: 1170005852 | AF56: 1165189352 | AG56: 0 | AH56: 0 | AI56: 20000 | AJ56: 3971.760356 | AK56: 3953.527343 | AL56: 33561.37501 | AM56: 33407.30605 | AN56: 58500.29258 | AO56: 58259.4676 | AP56: 0 | AQ56: 0
B57: Male 80-84 | C57: 81.797089 | D57: 88.62709 | E57: male | F57: ALL | H57: =SUM(H95,H133,H171,H209,H247) -> 56201 | I57: 0 | J57: 4250 | K57: 3100.353105 | L57: 3086.396007 | M57: 18075.0617 | N57: 17993.69181 | O57: 38436.06303 | P57: 38277.86245 | Q57: 0 | R57: 0 | AA57: =SUM(AA95,AA133,AA171,AA209,AA247) -> 71057005.36 | AB57: 70737330.5 | AC57: 414262412.3 | AD57: 412398707.5 | AE57: 869840774.2 | AF57: 866259641 | AG57: 0 | AH57: 0 | AI57: 12500 | AJ57: 5684.560429 | AK57: 5658.98644 | AL57: 33140.99299 | AM57: 32991.8966 | AN57: 69587.26194 | AO57: 69300.77128 | AP57: 0 | AQ57: 0
B58: Male 85-89 | C58: 86.630753 | D58: 91.42075 | E58: male | F58: ALL | H58: =SUM(H96,H134,H172,H210,H248) -> 28287 | I58: 0 | J58: 2139 | K58: 2194.278645 | L58: 2184.67066 | M58: 8316.309481 | N58: 8279.895249 | O58: 22836.6917 | P58: 22742.72207 | Q58: 0 | R58: 0 | AA58: =SUM(AA96,AA134,AA172,AA210,AA248) -> 60496205.26 | AB58: 60231833.63 | AC58: 229280436.4 | AD58: 228278468.8 | AE58: 619589003.4 | AF58: 617038616.3 | AG58: 0 | AH58: 0 | AI58: 7500 | AJ58: 8066.160701 | AK58: 8030.911151 | AL58: 30570.72486 | AM58: 30437.12917 | AN58: 82611.86713 | AO58: 82271.8155 | AP58: 0 | AQ58: 0
B59: Male 90+ | C59: 92.215477 | D59: 95.51548 | E59: male | F59: ALL | H59: =SUM(H97,H135,H173,H211,H249) -> 12017 | I59: 0 | J59: 908 | K59: 1384.166015 | L59: 1378.38295 | M59: 3183.585988 | N59: 3170.28492 | O59: 11815.7848 | P59: 11767.18221 | Q59: 0 | R59: 0 | AA59: =SUM(AA97,AA135,AA173,AA211,AA249) -> 59937375.32 | AB59: 59687988.19 | AC59: 137856143 | AD59: 137282551.9 | AE59: 503620030.1 | AF59: 501547330.4 | AG59: 0 | AH59: 0 | AI59: 5000 | AJ59: =AA59/$AI59 -> 11987.47506 | AK59: 11937.59764 | AL59: =AC59/$AI59 -> 27571.22861 | AM59: 27456.51038 | AN59: 100724.006 | AO59: 100309.4661 | AP59: 0 | AQ59: 0
B60: Female 0-4 | C60: 2.0384007 | D60: 81.468401 | E60: female | F60: 1 | G60: =HLOOKUP(Calculations!$E$2,'Prevalence Rates'!$C$3:$BC$249,'Prevalence Rates'!$BD60,FALSE) -> 0 | H60: =HLOOKUP(Calculations!$E$2,'Population 2016'!$C$3:$BC$249,'Population 2016'!BD60,FALSE) -> 0 | I60: 0 | J60: =HLOOKUP(Results!E$4,Targeting!$C$3:$F$249,Targeting!$G60,FALSE) -> 0 | K60: =IF(AND(OR(Calculations!$E$2="Orkney Health Board",Calculations!$E$2="Orkney Islands Local Authority"),$F60=1),0,IF(AND(OR(Calculations!$E$2="Shetland Health Board",Calculations!$E$2="Western Isles Health Board",Calculations!$E$2="Shetland Islands Local Authority",Calculations!$E$2="Eilean Siar Local Authority"),OR($F60=1,$F60=5)),0,new_ci(VALUE(LEFT(Options!$B$24,2)),$C60,$E60,$F60,2016,$I60,1,$H60,$G60*$H60,Options!B8))) ->  | L60: =IF(AND(OR(Calculations!$E$2="Orkney Health Board",Calculations!$E$2="Orkney Islands Local Authority"),$F60=1),0,IF(AND(OR(Calculations!$E$2="Shetland Health Board",Calculations!$E$2="Western Isles Health Board",Calculations!$E$2="Shetland Islands Local Authority",Calculations!$E$2="Eilean Siar Local Authority"),OR($F60=1,$F60=5)),0,new_ci(VALUE(LEFT(Options!$B$24,2)),$C60,$E60,$F60,2016,$I60+$J60,1,$H60,$G60*$H60,Options!B8))) ->  | M60: =IF(AND(OR(Calculations!$E$2="Orkney Health Board",Calculations!$E$2="Orkney Islands Local Authority"),$F60=1),0,IF(AND(OR(Calculations!$E$2="Shetland Health Board",Calculations!$E$2="Western Isles Health Board",Calculations!$E$2="Shetland Islands Local Authority",Calculations!$E$2="Eilean Siar Local Authority"),OR($F60=1,$F60=5)),0,new_yllv2(VALUE(LEFT(Options!$B$24,2)),$C60,$D60,$E60,$F60,2016,$I60,1,$H60,$G60*$H60,Options!B8))) ->  | N60: =IF(AND(OR(Calculations!$E$2="Orkney Health Board",Calculations!$E$2="Orkney Islands Local Authority"),$F60=1),0,IF(AND(OR(Calculations!$E$2="Shetland Health Board",Calculations!$E$2="Western Isles Health Board",Calculations!$E$2="Shetland Islands Local Authority",Calculations!$E$2="Eilean Siar Local Authority"),OR($F60=1,$F60=5)),0,new_yllv2(VALUE(LEFT(Options!$B$24,2)),$C60,$D60,$E60,$F60,2016,$I60+$J60,1,$H60,$G60*$H60,Options!B8))) ->  | O60: =IF(AND(OR(Calculations!$E$2="Orkney Health Board",Calculations!$E$2="Orkney Islands Local Authority"),$F60=1),0,IF(AND(OR(Calculations!$E$2="Shetland Health Board",Calculations!$E$2="Western Isles Health Board",Calculations!$E$2="Shetland Islands Local Authority",Calculations!$E$2="Eilean Siar Local Authority"),OR($F60=1,$F60=5)),0,hosp_count(VALUE(LEFT(Options!$B$24,2)),$C60,$E60,$F60,2016,$I60,1,$H60,$G60*$H60, Options!B8))) ->  | P60: =IF(AND(OR(Calculations!$E$2="Orkney Health Board",Calculations!$E$2="Orkney Islands Local Authority"),$F60=1),0,IF(AND(OR(Calculations!$E$2="Shetland Health Board",Calculations!$E$2="Western Isles Health Board",Calculations!$E$2="Shetland Islands Local Authority",Calculations!$E$2="Eilean Siar Local Authority"),OR($F60=1,$F60=5)),0,hosp_count(VALUE(LEFT(Options!$B$24,2)),$C60,$E60,$F60,2016,$I60+$J60,1,$H60,$G60*$H60, Options!B8))) ->  | Q60: =IF(AND(OR(Calculations!$E$2="Orkney Health Board",Calculations!$E$2="Orkney Islands Local Authority"),$F60=1),0,IF(AND(OR(Calculations!$E$2="Shetland Health Board",Calculations!$E$2="Western Isles Health Board",Calculations!$E$2="Shetland Islands Local Authority",Calculations!$E$2="Eilean Siar Local Authority"),OR($F60=1,$F60=5)),0,prem_mort(VALUE(LEFT(Options!$B$24,2)),$C60,$E60,$F60,2016,$I60,1,$H60,$G60*$H60,Options!B8))) ->  | R60: =IF(AND(OR(Calculations!$E$2="Orkney Health Board",Calculations!$E$2="Orkney Islands Local Authority"),$F60=1),0,IF(AND(OR(Calculations!$E$2="Shetland Health Board",Calculations!$E$2="Western Isles Health Board",Calculations!$E$2="Shetland Islands Local Authority",Calculations!$E$2="Eilean Siar Local Authority"),OR($F60=1,$F60=5)),0,prem_mort(VALUE(LEFT(Options!$B$24,2)),$C60,$E60,$F60,2016,$I60+$J60,1,$H60,$G60*$H60,Options!B8))) ->  | S60: =K60*100000/$H60 ->  | AA60: =S60*$AI60 ->  | AB60: =T60*$AI60 ->  | AC60: =U60*$AI60 ->  | AD60: =V60*$AI60 ->  | AE60: =W60*$AI60 ->  | AF60: =X60*$AI60 ->  | AG60: =Y60*$AI60 ->  | AH60: =Z60*$AI60 ->  | AI60: 5000
B61: Female 5-9 | C61: 6.9792795 | D61: 81.43928 | E61: female | F61: 1 | G61: =HLOOKUP(Calculations!$E$2,'Prevalence Rates'!$C$3:$BC$249,'Prevalence Rates'!$BD61,FALSE) -> 0 | H61: =HLOOKUP(Calculations!$E$2,'Population 2016'!$C$3:$BC$249,'Population 2016'!BD61,FALSE) -> 0 | I61: 0 | J61: =HLOOKUP(Results!E$4,Targeting!$C$3:$F$249,Targeting!$G61,FALSE) -> 0 | K61: =IF(AND(OR(Calculations!$E$2="Orkney Health Board",Calculations!$E$2="Orkney Islands Local Authority"),$F61=1),0,IF(AND(OR(Calculations!$E$2="Shetland Health Board",Calculations!$E$2="Western Isles Health Board",Calculations!$E$2="Shetland Islands Local Authority",Calculations!$E$2="Eilean Siar Local Authority"),OR($F61=1,$F61=5)),0,new_ci(VALUE(LEFT(Options!$B$24,2)),$C61,$E61,$F61,2016,$I61,1,$H61,$G61*$H61,Options!B8))) ->  | L61: =IF(AND(OR(Calculations!$E$2="Orkney Health Board",Calculations!$E$2="Orkney Islands Local Authority"),$F61=1),0,IF(AND(OR(Calculations!$E$2="Shetland Health Board",Calculations!$E$2="Western Isles Health Board",Calculations!$E$2="Shetland Islands Local Authority",Calculations!$E$2="Eilean Siar Local Authority"),OR($F61=1,$F61=5)),0,new_ci(VALUE(LEFT(Options!$B$24,2)),$C61,$E61,$F61,2016,$I61+$J61,1,$H61,$G61*$H61,Options!B8))) ->  | M61: =IF(AND(OR(Calculations!$E$2="Orkney Health Board",Calculations!$E$2="Orkney Islands Local Authority"),$F61=1),0,IF(AND(OR(Calculations!$E$2="Shetland Health Board",Calculations!$E$2="Western Isles Health Board",Calculations!$E$2="Shetland Islands Local Authority",Calculations!$E$2="Eilean Siar Local Authority"),OR($F61=1,$F61=5)),0,new_yllv2(VALUE(LEFT(Options!$B$24,2)),$C61,$D61,$E61,$F61,2016,$I61,1,$H61,$G61*$H61,Options!B8))) ->  | N61: =IF(AND(OR(Calculations!$E$2="Orkney Health Board",Calculations!$E$2="Orkney Islands Local Authority"),$F61=1),0,IF(AND(OR(Calculations!$E$2="Shetland Health Board",Calculations!$E$2="Western Isles Health Board",Calculations!$E$2="Shetland Islands Local Authority",Calculations!$E$2="Eilean Siar Local Authority"),OR($F61=1,$F61=5)),0,new_yllv2(VALUE(LEFT(Options!$B$24,2)),$C61,$D61,$E61,$F61,2016,$I61+$J61,1,$H61,$G61*$H61,Options!B8))) ->  | O61: =IF(AND(OR(Calculations!$E$2="Orkney Health Board",Calculations!$E$2="Orkney Islands Local Authority"),$F61=1),0,IF(AND(OR(Calculations!$E$2="Shetland Health Board",Calculations!$E$2="Western Isles Health Board",Calculations!$E$2="Shetland Islands Local Authority",Calculations!$E$2="Eilean Siar Local Authority"),OR($F61=1,$F61=5)),0,hosp_count(VALUE(LEFT(Options!$B$24,2)),$C61,$E61,$F61,2016,$I61,1,$H61,$G61*$H61, Options!B8))) ->  | P61: =IF(AND(OR(Calculations!$E$2="Orkney Health Board",Calculations!$E$2="Orkney Islands Local Authority"),$F61=1),0,IF(AND(OR(Calculations!$E$2="Shetland Health Board",Calculations!$E$2="Western Isles Health Board",Calculations!$E$2="Shetland Islands Local Authority",Calculations!$E$2="Eilean Siar Local Authority"),OR($F61=1,$F61=5)),0,hosp_count(VALUE(LEFT(Options!$B$24,2)),$C61,$E61,$F61,2016,$I61+$J61,1,$H61,$G61*$H61, Options!B8))) ->  | Q61: =IF(AND(OR(Calculations!$E$2="Orkney Health Board",Calculations!$E$2="Orkney Islands Local Authority"),$F61=1),0,IF(AND(OR(Calculations!$E$2="Shetland Health Board",Calculations!$E$2="Western Isles Health Board",Calculations!$E$2="Shetland Islands Local Authority",Calculations!$E$2="Eilean Siar Local Authority"),OR($F61=1,$F61=5)),0,prem_mort(VALUE(LEFT(Options!$B$24,2)),$C61,$E61,$F61,2016,$I61,1,$H61,$G61*$H61,Options!B8))) ->  | R61: =IF(AND(OR(Calculations!$E$2="Orkney Health Board",Calculations!$E$2="Orkney Islands Local Authority"),$F61=1),0,IF(AND(OR(Calculations!$E$2="Shetland Health Board",Calculations!$E$2="Western Isles Health Board",Calculations!$E$2="Shetland Islands Local Authority",Calculations!$E$2="Eilean Siar Local Authority"),OR($F61=1,$F61=5)),0,prem_mort(VALUE(LEFT(Options!$B$24,2)),$C61,$E61,$F61,2016,$I61+$J61,1,$H61,$G61*$H61,Options!B8))) ->  | S61: =K61*100000/$H61 ->  | T61: =L61*100000/$H61 ->  | U61: =M61*100000/$H61 ->  | V61: =N61*100000/$H61 ->  | W61: =O61*100000/$H61 ->  | X61: =P61*100000/$H61 ->  | Y61: =Q61*100000/$H61 ->  | Z61: =R61*100000/$H61 ->  | AA61: =S61*$AI61 ->  | AB61: =T61*$AI61 ->  | AC61: =U61*$AI61 ->  | AI61: 5500
B62: Female 10-15 | C62: 12.478312 | D62: 81.94831 | E62: female | F62: 1 | G62: =HLOOKUP(Calculations!$E$2,'Prevalence Rates'!$C$3:$BC$249,'Prevalence Rates'!$BD62,FALSE) -> 0 | H62: =HLOOKUP(Calculations!$E$2,'Population 2016'!$C$3:$BC$249,'Population 2016'!BD62,FALSE) -> 0 | I62: 0 | J62: =HLOOKUP(Results!E$4,Targeting!$C$3:$F$249,Targeting!$G62,FALSE) -> 0 | K62: =IF(AND(OR(Calculations!$E$2="Orkney Health Board",Calculations!$E$2="Orkney Islands Local Authority"),$F62=1),0,IF(AND(OR(Calculations!$E$2="Shetland Health Board",Calculations!$E$2="Western Isles Health Board",Calculations!$E$2="Shetland Islands Local Authority",Calculations!$E$2="Eilean Siar Local Authority"),OR($F62=1,$F62=5)),0,new_ci(VALUE(LEFT(Options!$B$24,2)),$C62,$E62,$F62,2016,$I62,1,$H62,$G62*$H62,Options!B8))) ->  | L62: =IF(AND(OR(Calculations!$E$2="Orkney Health Board",Calculations!$E$2="Orkney Islands Local Authority"),$F62=1),0,IF(AND(OR(Calculations!$E$2="Shetland Health Board",Calculations!$E$2="Western Isles Health Board",Calculations!$E$2="Shetland Islands Local Authority",Calculations!$E$2="Eilean Siar Local Authority"),OR($F62=1,$F62=5)),0,new_ci(VALUE(LEFT(Options!$B$24,2)),$C62,$E62,$F62,2016,$I62+$J62,1,$H62,$G62*$H62,Options!B8))) ->  | M62: =IF(AND(OR(Calculations!$E$2="Orkney Health Board",Calculations!$E$2="Orkney Islands Local Authority"),$F62=1),0,IF(AND(OR(Calculations!$E$2="Shetland Health Board",Calculations!$E$2="Western Isles Health Board",Calculations!$E$2="Shetland Islands Local Authority",Calculations!$E$2="Eilean Siar Local Authority"),OR($F62=1,$F62=5)),0,new_yllv2(VALUE(LEFT(Options!$B$24,2)),$C62,$D62,$E62,$F62,2016,$I62,1,$H62,$G62*$H62,Options!B8))) ->  | N62: =IF(AND(OR(Calculations!$E$2="Orkney Health Board",Calculations!$E$2="Orkney Islands Local Authority"),$F62=1),0,IF(AND(OR(Calculations!$E$2="Shetland Health Board",Calculations!$E$2="Western Isles Health Board",Calculations!$E$2="Shetland Islands Local Authority",Calculations!$E$2="Eilean Siar Local Authority"),OR($F62=1,$F62=5)),0,new_yllv2(VALUE(LEFT(Options!$B$24,2)),$C62,$D62,$E62,$F62,2016,$I62+$J62,1,$H62,$G62*$H62,Options!B8))) ->  | O62: =IF(AND(OR(Calculations!$E$2="Orkney Health Board",Calculations!$E$2="Orkney Islands Local Authority"),$F62=1),0,IF(AND(OR(Calculations!$E$2="Shetland Health Board",Calculations!$E$2="Western Isles Health Board",Calculations!$E$2="Shetland Islands Local Authority",Calculations!$E$2="Eilean Siar Local Authority"),OR($F62=1,$F62=5)),0,hosp_count(VALUE(LEFT(Options!$B$24,2)),$C62,$E62,$F62,2016,$I62,1,$H62,$G62*$H62, Options!B8))) ->  | P62: =IF(AND(OR(Calculations!$E$2="Orkney Health Board",Calculations!$E$2="Orkney Islands Local Authority"),$F62=1),0,IF(AND(OR(Calculations!$E$2="Shetland Health Board",Calculations!$E$2="Western Isles Health Board",Calculations!$E$2="Shetland Islands Local Authority",Calculations!$E$2="Eilean Siar Local Authority"),OR($F62=1,$F62=5)),0,hosp_count(VALUE(LEFT(Options!$B$24,2)),$C62,$E62,$F62,2016,$I62+$J62,1,$H62,$G62*$H62, Options!B8))) ->  | Q62: =IF(AND(OR(Calculations!$E$2="Orkney Health Board",Calculations!$E$2="Orkney Islands Local Authority"),$F62=1),0,IF(AND(OR(Calculations!$E$2="Shetland Health Board",Calculations!$E$2="Western Isles Health Board",Calculations!$E$2="Shetland Islands Local Authority",Calculations!$E$2="Eilean Siar Local Authority"),OR($F62=1,$F62=5)),0,prem_mort(VALUE(LEFT(Options!$B$24,2)),$C62,$E62,$F62,2016,$I62,1,$H62,$G62*$H62,Options!B8))) ->  | R62: =IF(AND(OR(Calculations!$E$2="Orkney Health Board",Calculations!$E$2="Orkney Islands Local Authority"),$F62=1),0,IF(AND(OR(Calculations!$E$2="Shetland Health Board",Calculations!$E$2="Western Isles Health Board",Calculations!$E$2="Shetland Islands Local Authority",Calculations!$E$2="Eilean Siar Local Authority"),OR($F62=1,$F62=5)),0,prem_mort(VALUE(LEFT(Options!$B$24,2)),$C62,$E62,$F62,2016,$I62+$J62,1,$H62,$G62*$H62,Options!B8))) ->  | AI62: 6600
A63: SIMD Q1 (most deprived) | B63: Female 16-19 | C63: 17.570053 | D63: 81.10005 | E63: female | F63: 1 | G63: =HLOOKUP(Calculations!$E$2,'Prevalence Rates'!$C$3:$BC$249,'Prevalence Rates'!$BD63,FALSE) -> 0.1974932852 | H63: =HLOOKUP(Calculations!$E$2,'Population 2016'!$C$3:$BC$249,'Population 2016'!BD63,FALSE) -> 24142 | I63: 0 | J63: =HLOOKUP(Results!E$4,Targeting!$C$3:$F$249,Targeting!$G63,FALSE) -> 1825 | K63: =IF(AND(OR(Calculations!$E$2="Orkney Health Board",Calculations!$E$2="Orkney Islands Local Authority"),$F63=1),0,IF(AND(OR(Calculations!$E$2="Shetland Health Board",Calculations!$E$2="Western Isles Health Board",Calculations!$E$2="Shetland Islands Local Authority",Calculations!$E$2="Eilean Siar Local Authority"),OR($F63=1,$F63=5)),0,new_ci(VALUE(LEFT(Options!$B$24,2)),$C63,$E63,$F63,2016,$I63,1,$H63,$G63*$H63,Options!B8))) -> 7.677671393 | L63: =IF(AND(OR(Calculations!$E$2="Orkney Health Board",Calculations!$E$2="Orkney Islands Local Authority"),$F63=1),0,IF(AND(OR(Calculations!$E$2="Shetland Health Board",Calculations!$E$2="Western Isles Health Board",Calculations!$E$2="Shetland Islands Local Authority",Calculations!$E$2="Eilean Siar Local Authority"),OR($F63=1,$F63=5)),0,new_ci(VALUE(LEFT(Options!$B$24,2)),$C63,$E63,$F63,2016,$I63+$J63,1,$H63,$G63*$H63,Options!B8))) -> 7.645202818 | M63: =IF(AND(OR(Calculations!$E$2="Orkney Health Board",Calculations!$E$2="Orkney Islands Local Authority"),$F63=1),0,IF(AND(OR(Calculations!$E$2="Shetland Health Board",Calculations!$E$2="Western Isles Health Board",Calculations!$E$2="Shetland Islands Local Authority",Calculations!$E$2="Eilean Siar Local Authority"),OR($F63=1,$F63=5)),0,new_yllv2(VALUE(LEFT(Options!$B$24,2)),$C63,$D63,$E63,$F63,2016,$I63,1,$H63,$G63*$H63,Options!B8))) -> 480.0847692 | N63: =IF(AND(OR(Calculations!$E$2="Orkney Health Board",Calculations!$E$2="Orkney Islands Local Authority"),$F63=1),0,IF(AND(OR(Calculations!$E$2="Shetland Health Board",Calculations!$E$2="Western Isles Health Board",Calculations!$E$2="Shetland Islands Local Authority",Calculations!$E$2="Eilean Siar Local Authority"),OR($F63=1,$F63=5)),0,new_yllv2(VALUE(LEFT(Options!$B$24,2)),$C63,$D63,$E63,$F63,2016,$I63+$J63,1,$H63,$G63*$H63,Options!B8))) -> 478.0545093 | O63: =IF(AND(OR(Calculations!$E$2="Orkney Health Board",Calculations!$E$2="Orkney Islands Local Authority"),$F63=1),0,IF(AND(OR(Calculations!$E$2="Shetland Health Board",Calculations!$E$2="Western Isles Health Board",Calculations!$E$2="Shetland Islands Local Authority",Calculations!$E$2="Eilean Siar Local Authority"),OR($F63=1,$F63=5)),0,hosp_count(VALUE(LEFT(Options!$B$24,2)),$C63,$E63,$F63,2016,$I63,1,$H63,$G63*$H63, Options!B8))) -> 3441.218007 | P63: =IF(AND(OR(Calculations!$E$2="Orkney Health Board",Calculations!$E$2="Orkney Islands Local Authority"),$F63=1),0,IF(AND(OR(Calculations!$E$2="Shetland Health Board",Calculations!$E$2="Western Isles Health Board",Calculations!$E$2="Shetland Islands Local Authority",Calculations!$E$2="Eilean Siar Local Authority"),OR($F63=1,$F63=5)),0,hosp_count(VALUE(LEFT(Options!$B$24,2)),$C63,$E63,$F63,2016,$I63+$J63,1,$H63,$G63*$H63, Options!B8))) -> 3427.33818 | Q63: =IF(AND(OR(Calculations!$E$2="Orkney Health Board",Calculations!$E$2="Orkney Islands Local Authority"),$F63=1),0,IF(AND(OR(Calculations!$E$2="Shetland Health Board",Calculations!$E$2="Western Isles Health Board",Calculations!$E$2="Shetland Islands Local Authority",Calculations!$E$2="Eilean Siar Local Authority"),OR($F63=1,$F63=5)),0,prem_mort(VALUE(LEFT(Options!$B$24,2)),$C63,$E63,$F63,2016,$I63,1,$H63,$G63*$H63,Options!B8))) -> 7.677671393 | R63: =IF(AND(OR(Calculations!$E$2="Orkney Health Board",Calculations!$E$2="Orkney Islands Local Authority"),$F63=1),0,IF(AND(OR(Calculations!$E$2="Shetland Health Board",Calculations!$E$2="Western Isles Health Board",Calculations!$E$2="Shetland Islands Local Authority",Calculations!$E$2="Eilean Siar Local Authority"),OR($F63=1,$F63=5)),0,prem_mort(VALUE(LEFT(Options!$B$24,2)),$C63,$E63,$F63,2016,$I63+$J63,1,$H63,$G63*$H63,Options!B8))) -> 7.645202818 | S63: 31.80213484 | T63: 31.66764484 | U63: 1988.587396 | V63: 1980.177737 | W63: 14254.07177 | X63: 14196.57932 | Y63: 31.80213484 | Z63: 31.66764484 | AA63: =S63*$AI63 -> 139929.3933 | AB63: 139337.6373 | AC63: 8749784.543 | AD63: 8712782.043 | AE63: 62717915.79 | AF63: 62464949.01 | AG63: 139929.3933 | AH63: =Z63*$AI63 -> 139337.6373 | AI63: 4400
B64: Female 20-24 | C64: 22.077057 | D64: 81.66706 | E64: female | F64: 1 | G64: =HLOOKUP(Calculations!$E$2,'Prevalence Rates'!$C$3:$BC$249,'Prevalence Rates'!$BD64,FALSE) -> 0.1974932852 | H64: =HLOOKUP(Calculations!$E$2,'Population 2016'!$C$3:$BC$249,'Population 2016'!BD64,FALSE) -> 37624 | I64: 0 | J64: =HLOOKUP(Results!E$4,Targeting!$C$3:$F$249,Targeting!$G64,FALSE) -> 2845 | K64: =IF(AND(OR(Calculations!$E$2="Orkney Health Board",Calculations!$E$2="Orkney Islands Local Authority"),$F64=1),0,IF(AND(OR(Calculations!$E$2="Shetland Health Board",Calculations!$E$2="Western Isles Health Board",Calculations!$E$2="Shetland Islands Local Authority",Calculations!$E$2="Eilean Siar Local Authority"),OR($F64=1,$F64=5)),0,new_ci(VALUE(LEFT(Options!$B$24,2)),$C64,$E64,$F64,2016,$I64,1,$H64,$G64*$H64,Options!B8))) -> 17.55378291 | L64: =IF(AND(OR(Calculations!$E$2="Orkney Health Board",Calculations!$E$2="Orkney Islands Local Authority"),$F64=1),0,IF(AND(OR(Calculations!$E$2="Shetland Health Board",Calculations!$E$2="Western Isles Health Board",Calculations!$E$2="Shetland Islands Local Authority",Calculations!$E$2="Eilean Siar Local Authority"),OR($F64=1,$F64=5)),0,new_ci(VALUE(LEFT(Options!$B$24,2)),$C64,$E64,$F64,2016,$I64+$J64,1,$H64,$G64*$H64,Options!B8))) -> 17.47953552 | M64: =IF(AND(OR(Calculations!$E$2="Orkney Health Board",Calculations!$E$2="Orkney Islands Local Authority"),$F64=1),0,IF(AND(OR(Calculations!$E$2="Shetland Health Board",Calculations!$E$2="Western Isles Health Board",Calculations!$E$2="Shetland Islands Local Authority",Calculations!$E$2="Eilean Siar Local Authority"),OR($F64=1,$F64=5)),0,new_yllv2(VALUE(LEFT(Options!$B$24,2)),$C64,$D64,$E64,$F64,2016,$I64,1,$H64,$G64*$H64,Options!B8))) -> 1028.476193 | N64: =IF(AND(OR(Calculations!$E$2="Orkney Health Board",Calculations!$E$2="Orkney Islands Local Authority"),$F64=1),0,IF(AND(OR(Calculations!$E$2="Shetland Health Board",Calculations!$E$2="Western Isles Health Board",Calculations!$E$2="Shetland Islands Local Authority",Calculations!$E$2="Eilean Siar Local Authority"),OR($F64=1,$F64=5)),0,new_yllv2(VALUE(LEFT(Options!$B$24,2)),$C64,$D64,$E64,$F64,2016,$I64+$J64,1,$H64,$G64*$H64,Options!B8))) -> 1024.126039 | O64: =IF(AND(OR(Calculations!$E$2="Orkney Health Board",Calculations!$E$2="Orkney Islands Local Authority"),$F64=1),0,IF(AND(OR(Calculations!$E$2="Shetland Health Board",Calculations!$E$2="Western Isles Health Board",Calculations!$E$2="Shetland Islands Local Authority",Calculations!$E$2="Eilean Siar Local Authority"),OR($F64=1,$F64=5)),0,hosp_count(VALUE(LEFT(Options!$B$24,2)),$C64,$E64,$F64,2016,$I64,1,$H64,$G64*$H64, Options!B8))) -> 6006.741035 | P64: =IF(AND(OR(Calculations!$E$2="Orkney Health Board",Calculations!$E$2="Orkney Islands Local Authority"),$F64=1),0,IF(AND(OR(Calculations!$E$2="Shetland Health Board",Calculations!$E$2="Western Isles Health Board",Calculations!$E$2="Shetland Islands Local Authority",Calculations!$E$2="Eilean Siar Local Authority"),OR($F64=1,$F64=5)),0,hosp_count(VALUE(LEFT(Options!$B$24,2)),$C64,$E64,$F64,2016,$I64+$J64,1,$H64,$G64*$H64, Options!B8))) -> 5982.50629 | Q64: =IF(AND(OR(Calculations!$E$2="Orkney Health Board",Calculations!$E$2="Orkney Islands Local Authority"),$F64=1),0,IF(AND(OR(Calculations!$E$2="Shetland Health Board",Calculations!$E$2="Western Isles Health Board",Calculations!$E$2="Shetland Islands Local Authority",Calculations!$E$2="Eilean Siar Local Authority"),OR($F64=1,$F64=5)),0,prem_mort(VALUE(LEFT(Options!$B$24,2)),$C64,$E64,$F64,2016,$I64,1,$H64,$G64*$H64,Options!B8))) -> 17.55378291 | R64: =IF(AND(OR(Calculations!$E$2="Orkney Health Board",Calculations!$E$2="Orkney Islands Local Authority"),$F64=1),0,IF(AND(OR(Calculations!$E$2="Shetland Health Board",Calculations!$E$2="Western Isles Health Board",Calculations!$E$2="Shetland Islands Local Authority",Calculations!$E$2="Eilean Siar Local Authority"),OR($F64=1,$F64=5)),0,prem_mort(VALUE(LEFT(Options!$B$24,2)),$C64,$E64,$F64,2016,$I64+$J64,1,$H64,$G64*$H64,Options!B8))) -> 17.47953552 | S64: 46.65581254 | T64: 46.45847205 | U64: 2733.564197 | V64: 2722.002017 | W64: 15965.18455 | X64: 15900.77155 | Y64: 46.65581254 | Z64: 46.45847205 | AA64: 279934.8752 | AB64: 278750.8323 | AC64: 16401385.18 | AD64: 16332012.1 | AE64: 95791107.3 | AF64: 95404629.33 | AG64: 279934.8752 | AH64: 278750.8323 | AI64: 6000
B65: Female 25-29 | C65: 26.975187 | D65: 81.64519 | E65: female | F65: 1 | G65: =HLOOKUP(Calculations!$E$2,'Prevalence Rates'!$C$3:$BC$249,'Prevalence Rates'!$BD65,FALSE) -> 0.1183524197 | H65: =HLOOKUP(Calculations!$E$2,'Population 2016'!$C$3:$BC$249,'Population 2016'!BD65,FALSE) -> 45129 | I65: 0 | J65: =HLOOKUP(Results!E$4,Targeting!$C$3:$F$249,Targeting!$G65,FALSE) -> 3412 | K65: =IF(AND(OR(Calculations!$E$2="Orkney Health Board",Calculations!$E$2="Orkney Islands Local Authority"),$F65=1),0,IF(AND(OR(Calculations!$E$2="Shetland Health Board",Calculations!$E$2="Western Isles Health Board",Calculations!$E$2="Shetland Islands Local Authority",Calculations!$E$2="Eilean Siar Local Authority"),OR($F65=1,$F65=5)),0,new_ci(VALUE(LEFT(Options!$B$24,2)),$C65,$E65,$F65,2016,$I65,1,$H65,$G65*$H65,Options!B8))) -> 31.93294919 | L65: =IF(AND(OR(Calculations!$E$2="Orkney Health Board",Calculations!$E$2="Orkney Islands Local Authority"),$F65=1),0,IF(AND(OR(Calculations!$E$2="Shetland Health Board",Calculations!$E$2="Western Isles Health Board",Calculations!$E$2="Shetland Islands Local Authority",Calculations!$E$2="Eilean Siar Local Authority"),OR($F65=1,$F65=5)),0,new_ci(VALUE(LEFT(Options!$B$24,2)),$C65,$E65,$F65,2016,$I65+$J65,1,$H65,$G65*$H65,Options!B8))) -> 31.79336734 | M65: =IF(AND(OR(Calculations!$E$2="Orkney Health Board",Calculations!$E$2="Orkney Islands Local Authority"),$F65=1),0,IF(AND(OR(Calculations!$E$2="Shetland Health Board",Calculations!$E$2="Western Isles Health Board",Calculations!$E$2="Shetland Islands Local Authority",Calculations!$E$2="Eilean Siar Local Authority"),OR($F65=1,$F65=5)),0,new_yllv2(VALUE(LEFT(Options!$B$24,2)),$C65,$D65,$E65,$F65,2016,$I65,1,$H65,$G65*$H65,Options!B8))) -> 1713.841479 | N65: =IF(AND(OR(Calculations!$E$2="Orkney Health Board",Calculations!$E$2="Orkney Islands Local Authority"),$F65=1),0,IF(AND(OR(Calculations!$E$2="Shetland Health Board",Calculations!$E$2="Western Isles Health Board",Calculations!$E$2="Shetland Islands Local Authority",Calculations!$E$2="Eilean Siar Local Authority"),OR($F65=1,$F65=5)),0,new_yllv2(VALUE(LEFT(Options!$B$24,2)),$C65,$D65,$E65,$F65,2016,$I65+$J65,1,$H65,$G65*$H65,Options!B8))) -> 1706.35012 | O65: =IF(AND(OR(Calculations!$E$2="Orkney Health Board",Calculations!$E$2="Orkney Islands Local Authority"),$F65=1),0,IF(AND(OR(Calculations!$E$2="Shetland Health Board",Calculations!$E$2="Western Isles Health Board",Calculations!$E$2="Shetland Islands Local Authority",Calculations!$E$2="Eilean Siar Local Authority"),OR($F65=1,$F65=5)),0,hosp_count(VALUE(LEFT(Options!$B$24,2)),$C65,$E65,$F65,2016,$I65,1,$H65,$G65*$H65, Options!B8))) -> 8149.619987 | P65: =IF(AND(OR(Calculations!$E$2="Orkney Health Board",Calculations!$E$2="Orkney Islands Local Authority"),$F65=1),0,IF(AND(OR(Calculations!$E$2="Shetland Health Board",Calculations!$E$2="Western Isles Health Board",Calculations!$E$2="Shetland Islands Local Authority",Calculations!$E$2="Eilean Siar Local Authority"),OR($F65=1,$F65=5)),0,hosp_count(VALUE(LEFT(Options!$B$24,2)),$C65,$E65,$F65,2016,$I65+$J65,1,$H65,$G65*$H65, Options!B8))) -> 8116.538253 | Q65: =IF(AND(OR(Calculations!$E$2="Orkney Health Board",Calculations!$E$2="Orkney Islands Local Authority"),$F65=1),0,IF(AND(OR(Calculations!$E$2="Shetland Health Board",Calculations!$E$2="Western Isles Health Board",Calculations!$E$2="Shetland Islands Local Authority",Calculations!$E$2="Eilean Siar Local Authority"),OR($F65=1,$F65=5)),0,prem_mort(VALUE(LEFT(Options!$B$24,2)),$C65,$E65,$F65,2016,$I65,1,$H65,$G65*$H65,Options!B8))) -> 31.93294919 | R65: =IF(AND(OR(Calculations!$E$2="Orkney Health Board",Calculations!$E$2="Orkney Islands Local Authority"),$F65=1),0,IF(AND(OR(Calculations!$E$2="Shetland Health Board",Calculations!$E$2="Western Isles Health Board",Calculations!$E$2="Shetland Islands Local Authority",Calculations!$E$2="Eilean Siar Local Authority"),OR($F65=1,$F65=5)),0,prem_mort(VALUE(LEFT(Options!$B$24,2)),$C65,$E65,$F65,2016,$I65+$J65,1,$H65,$G65*$H65,Options!B8))) -> 31.79336734 | S65: 70.75926608 | T65: 70.44997084 | U65: 3797.650023 | V65: 3781.050146 | W65: 18058.49894 | X65: 17985.19412 | Y65: 70.75926608 | Z65: 70.44997084 | AA65: 424555.5965 | AB65: 422699.825 | AC65: 22785900.14 | AD65: 22686300.88 | AE65: 108350993.6 | AF65: 107911164.7 | AG65: 424555.5965 | AH65: 422699.825 | AI65: 6000
B66: Female 30-34 | C66: 31.999905 | D66: 81.7999 | E66: female | F66: 1 | G66: =HLOOKUP(Calculations!$E$2,'Prevalence Rates'!$C$3:$BC$249,'Prevalence Rates'!$BD66,FALSE) -> 0.1183524197 | H66: =HLOOKUP(Calculations!$E$2,'Population 2016'!$C$3:$BC$249,'Population 2016'!BD66,FALSE) -> 41240 | I66: 0 | J66: =HLOOKUP(Results!E$4,Targeting!$C$3:$F$249,Targeting!$G66,FALSE) -> 3118 | K66: =IF(AND(OR(Calculations!$E$2="Orkney Health Board",Calculations!$E$2="Orkney Islands Local Authority"),$F66=1),0,IF(AND(OR(Calculations!$E$2="Shetland Health Board",Calculations!$E$2="Western Isles Health Board",Calculations!$E$2="Shetland Islands Local Authority",Calculations!$E$2="Eilean Siar Local Authority"),OR($F66=1,$F66=5)),0,new_ci(VALUE(LEFT(Options!$B$24,2)),$C66,$E66,$F66,2016,$I66,1,$H66,$G66*$H66,Options!B8))) -> 44.73265685 | L66: =IF(AND(OR(Calculations!$E$2="Orkney Health Board",Calculations!$E$2="Orkney Islands Local Authority"),$F66=1),0,IF(AND(OR(Calculations!$E$2="Shetland Health Board",Calculations!$E$2="Western Isles Health Board",Calculations!$E$2="Shetland Islands Local Authority",Calculations!$E$2="Eilean Siar Local Authority"),OR($F66=1,$F66=5)),0,new_ci(VALUE(LEFT(Options!$B$24,2)),$C66,$E66,$F66,2016,$I66+$J66,1,$H66,$G66*$H66,Options!B8))) -> 44.53718569 | M66: =IF(AND(OR(Calculations!$E$2="Orkney Health Board",Calculations!$E$2="Orkney Islands Local Authority"),$F66=1),0,IF(AND(OR(Calculations!$E$2="Shetland Health Board",Calculations!$E$2="Western Isles Health Board",Calculations!$E$2="Shetland Islands Local Authority",Calculations!$E$2="Eilean Siar Local Authority"),OR($F66=1,$F66=5)),0,new_yllv2(VALUE(LEFT(Options!$B$24,2)),$C66,$D66,$E66,$F66,2016,$I66,1,$H66,$G66*$H66,Options!B8))) -> 2182.953431 | N66: =IF(AND(OR(Calculations!$E$2="Orkney Health Board",Calculations!$E$2="Orkney Islands Local Authority"),$F66=1),0,IF(AND(OR(Calculations!$E$2="Shetland Health Board",Calculations!$E$2="Western Isles Health Board",Calculations!$E$2="Shetland Islands Local Authority",Calculations!$E$2="Eilean Siar Local Authority"),OR($F66=1,$F66=5)),0,new_yllv2(VALUE(LEFT(Options!$B$24,2)),$C66,$D66,$E66,$F66,2016,$I66+$J66,1,$H66,$G66*$H66,Options!B8))) -> 2173.414439 | O66: =IF(AND(OR(Calculations!$E$2="Orkney Health Board",Calculations!$E$2="Orkney Islands Local Authority"),$F66=1),0,IF(AND(OR(Calculations!$E$2="Shetland Health Board",Calculations!$E$2="Western Isles Health Board",Calculations!$E$2="Shetland Islands Local Authority",Calculations!$E$2="Eilean Siar Local Authority"),OR($F66=1,$F66=5)),0,hosp_count(VALUE(LEFT(Options!$B$24,2)),$C66,$E66,$F66,2016,$I66,1,$H66,$G66*$H66, Options!B8))) -> 8450.664705 | P66: =IF(AND(OR(Calculations!$E$2="Orkney Health Board",Calculations!$E$2="Orkney Islands Local Authority"),$F66=1),0,IF(AND(OR(Calculations!$E$2="Shetland Health Board",Calculations!$E$2="Western Isles Health Board",Calculations!$E$2="Shetland Islands Local Authority",Calculations!$E$2="Eilean Siar Local Authority"),OR($F66=1,$F66=5)),0,hosp_count(VALUE(LEFT(Options!$B$24,2)),$C66,$E66,$F66,2016,$I66+$J66,1,$H66,$G66*$H66, Options!B8))) -> 8416.360614 | Q66: =IF(AND(OR(Calculations!$E$2="Orkney Health Board",Calculations!$E$2="Orkney Islands Local Authority"),$F66=1),0,IF(AND(OR(Calculations!$E$2="Shetland Health Board",Calculations!$E$2="Western Isles Health Board",Calculations!$E$2="Shetland Islands Local Authority",Calculations!$E$2="Eilean Siar Local Authority"),OR($F66=1,$F66=5)),0,prem_mort(VALUE(LEFT(Options!$B$24,2)),$C66,$E66,$F66,2016,$I66,1,$H66,$G66*$H66,Options!B8))) -> 44.73265685 | R66: =IF(AND(OR(Calculations!$E$2="Orkney Health Board",Calculations!$E$2="Orkney Islands Local Authority"),$F66=1),0,IF(AND(OR(Calculations!$E$2="Shetland Health Board",Calculations!$E$2="Western Isles Health Board",Calculations!$E$2="Shetland Islands Local Authority",Calculations!$E$2="Eilean Siar Local Authority"),OR($F66=1,$F66=5)),0,prem_mort(VALUE(LEFT(Options!$B$24,2)),$C66,$E66,$F66,2016,$I66+$J66,1,$H66,$G66*$H66,Options!B8))) -> 44.53718569 | S66: 108.4691 | T66: 107.9951156 | U66: 5293.291539 | V66: 5270.161103 | W66: 20491.42751 | X66: 20408.24591 | Y66: 108.4691 | Z66: 107.9951156 | AA66: 705049.1502 | AB66: 701968.2516 | AC66: 34406395 | AD66: 34256047.17 | AE66: 133194278.8 | AF66: 132653598.4 | AG66: 705049.1502 | AH66: 701968.2516 | AI66: 6500
B67: Female 35-39 | C67: 36.918118 | D67: 81.89812 | E67: female | F67: 1 | G67: =HLOOKUP(Calculations!$E$2,'Prevalence Rates'!$C$3:$BC$249,'Prevalence Rates'!$BD67,FALSE) -> 0.1119134439 | H67: =HLOOKUP(Calculations!$E$2,'Population 2016'!$C$3:$BC$249,'Population 2016'!BD67,FALSE) -> 35038 | I67: 0 | J67: =HLOOKUP(Results!E$4,Targeting!$C$3:$F$249,Targeting!$G67,FALSE) -> 2649 | K67: =IF(AND(OR(Calculations!$E$2="Orkney Health Board",Calculations!$E$2="Orkney Islands Local Authority"),$F67=1),0,IF(AND(OR(Calculations!$E$2="Shetland Health Board",Calculations!$E$2="Western Isles Health Board",Calculations!$E$2="Shetland Islands Local Authority",Calculations!$E$2="Eilean Siar Local Authority"),OR($F67=1,$F67=5)),0,new_ci(VALUE(LEFT(Options!$B$24,2)),$C67,$E67,$F67,2016,$I67,1,$H67,$G67*$H67,Options!B8))) -> 57.72885716 | L67: =IF(AND(OR(Calculations!$E$2="Orkney Health Board",Calculations!$E$2="Orkney Islands Local Authority"),$F67=1),0,IF(AND(OR(Calculations!$E$2="Shetland Health Board",Calculations!$E$2="Western Isles Health Board",Calculations!$E$2="Shetland Islands Local Authority",Calculations!$E$2="Eilean Siar Local Authority"),OR($F67=1,$F67=5)),0,new_ci(VALUE(LEFT(Options!$B$24,2)),$C67,$E67,$F67,2016,$I67+$J67,1,$H67,$G67*$H67,Options!B8))) -> 57.47602972 | M67: =IF(AND(OR(Calculations!$E$2="Orkney Health Board",Calculations!$E$2="Orkney Islands Local Authority"),$F67=1),0,IF(AND(OR(Calculations!$E$2="Shetland Health Board",Calculations!$E$2="Western Isles Health Board",Calculations!$E$2="Shetland Islands Local Authority",Calculations!$E$2="Eilean Siar Local Authority"),OR($F67=1,$F67=5)),0,new_yllv2(VALUE(LEFT(Options!$B$24,2)),$C67,$D67,$E67,$F67,2016,$I67,1,$H67,$G67*$H67,Options!B8))) -> 2538.915254 | N67: =IF(AND(OR(Calculations!$E$2="Orkney Health Board",Calculations!$E$2="Orkney Islands Local Authority"),$F67=1),0,IF(AND(OR(Calculations!$E$2="Shetland Health Board",Calculations!$E$2="Western Isles Health Board",Calculations!$E$2="Shetland Islands Local Authority",Calculations!$E$2="Eilean Siar Local Authority"),OR($F67=1,$F67=5)),0,new_yllv2(VALUE(LEFT(Options!$B$24,2)),$C67,$D67,$E67,$F67,2016,$I67+$J67,1,$H67,$G67*$H67,Options!B8))) -> 2527.795902 | O67: =IF(AND(OR(Calculations!$E$2="Orkney Health Board",Calculations!$E$2="Orkney Islands Local Authority"),$F67=1),0,IF(AND(OR(Calculations!$E$2="Shetland Health Board",Calculations!$E$2="Western Isles Health Board",Calculations!$E$2="Shetland Islands Local Authority",Calculations!$E$2="Eilean Siar Local Authority"),OR($F67=1,$F67=5)),0,hosp_count(VALUE(LEFT(Options!$B$24,2)),$C67,$E67,$F67,2016,$I67,1,$H67,$G67*$H67, Options!B8))) -> 8125.285242 | P67: =IF(AND(OR(Calculations!$E$2="Orkney Health Board",Calculations!$E$2="Orkney Islands Local Authority"),$F67=1),0,IF(AND(OR(Calculations!$E$2="Shetland Health Board",Calculations!$E$2="Western Isles Health Board",Calculations!$E$2="Shetland Islands Local Authority",Calculations!$E$2="Eilean Siar Local Authority"),OR($F67=1,$F67=5)),0,hosp_count(VALUE(LEFT(Options!$B$24,2)),$C67,$E67,$F67,2016,$I67+$J67,1,$H67,$G67*$H67, Options!B8))) -> 8092.286261 | Q67: =IF(AND(OR(Calculations!$E$2="Orkney Health Board",Calculations!$E$2="Orkney Islands Local Authority"),$F67=1),0,IF(AND(OR(Calculations!$E$2="Shetland Health Board",Calculations!$E$2="Western Isles Health Board",Calculations!$E$2="Shetland Islands Local Authority",Calculations!$E$2="Eilean Siar Local Authority"),OR($F67=1,$F67=5)),0,prem_mort(VALUE(LEFT(Options!$B$24,2)),$C67,$E67,$F67,2016,$I67,1,$H67,$G67*$H67,Options!B8))) -> 57.72885716 | R67: =IF(AND(OR(Calculations!$E$2="Orkney Health Board",Calculations!$E$2="Orkney Islands Local Authority"),$F67=1),0,IF(AND(OR(Calculations!$E$2="Shetland Health Board",Calculations!$E$2="Western Isles Health Board",Calculations!$E$2="Shetland Islands Local Authority",Calculations!$E$2="Eilean Siar Local Authority"),OR($F67=1,$F67=5)),0,prem_mort(VALUE(LEFT(Options!$B$24,2)),$C67,$E67,$F67,2016,$I67+$J67,1,$H67,$G67*$H67,Options!B8))) -> 57.47602972 | S67: 164.7607088 | T67: 164.0391281 | U67: 7246.176304 | V67: 7214.441184 | W67: 23189.92306 | X67: 23095.74251 | Y67: 164.7607088 | Z67: 164.0391281 | AA67: 1153324.962 | AB67: 1148273.897 | AC67: 50723234.13 | AD67: 50501088.29 | AE67: 162329461.4 | AF67: 161670197.6 | AG67: 1153324.962 | AH67: 1148273.897 | AI67: 7000
B68: Female 40-44 | C68: 42.077438 | D68: 82.30744 | E68: female | F68: 1 | G68: =HLOOKUP(Calculations!$E$2,'Prevalence Rates'!$C$3:$BC$249,'Prevalence Rates'!$BD68,FALSE) -> 0.1119134439 | H68: =HLOOKUP(Calculations!$E$2,'Population 2016'!$C$3:$BC$249,'Population 2016'!BD68,FALSE) -> 33663 | I68: 0 | J68: =HLOOKUP(Results!E$4,Targeting!$C$3:$F$249,Targeting!$G68,FALSE) -> 2545 | K68: =IF(AND(OR(Calculations!$E$2="Orkney Health Board",Calculations!$E$2="Orkney Islands Local Authority"),$F68=1),0,IF(AND(OR(Calculations!$E$2="Shetland Health Board",Calculations!$E$2="Western Isles Health Board",Calculations!$E$2="Shetland Islands Local Authority",Calculations!$E$2="Eilean Siar Local Authority"),OR($F68=1,$F68=5)),0,new_ci(VALUE(LEFT(Options!$B$24,2)),$C68,$E68,$F68,2016,$I68,1,$H68,$G68*$H68,Options!B8))) -> 85.97731727 | L68: =IF(AND(OR(Calculations!$E$2="Orkney Health Board",Calculations!$E$2="Orkney Islands Local Authority"),$F68=1),0,IF(AND(OR(Calculations!$E$2="Shetland Health Board",Calculations!$E$2="Western Isles Health Board",Calculations!$E$2="Shetland Islands Local Authority",Calculations!$E$2="Eilean Siar Local Authority"),OR($F68=1,$F68=5)),0,new_ci(VALUE(LEFT(Options!$B$24,2)),$C68,$E68,$F68,2016,$I68+$J68,1,$H68,$G68*$H68,Options!B8))) -> 85.60106879 | M68: =IF(AND(OR(Calculations!$E$2="Orkney Health Board",Calculations!$E$2="Orkney Islands Local Authority"),$F68=1),0,IF(AND(OR(Calculations!$E$2="Shetland Health Board",Calculations!$E$2="Western Isles Health Board",Calculations!$E$2="Shetland Islands Local Authority",Calculations!$E$2="Eilean Siar Local Authority"),OR($F68=1,$F68=5)),0,new_yllv2(VALUE(LEFT(Options!$B$24,2)),$C68,$D68,$E68,$F68,2016,$I68,1,$H68,$G68*$H68,Options!B8))) -> 3372.890328 | N68: =IF(AND(OR(Calculations!$E$2="Orkney Health Board",Calculations!$E$2="Orkney Islands Local Authority"),$F68=1),0,IF(AND(OR(Calculations!$E$2="Shetland Health Board",Calculations!$E$2="Western Isles Health Board",Calculations!$E$2="Shetland Islands Local Authority",Calculations!$E$2="Eilean Siar Local Authority"),OR($F68=1,$F68=5)),0,new_yllv2(VALUE(LEFT(Options!$B$24,2)),$C68,$D68,$E68,$F68,2016,$I68+$J68,1,$H68,$G68*$H68,Options!B8))) -> 3358.1301 | O68: =IF(AND(OR(Calculations!$E$2="Orkney Health Board",Calculations!$E$2="Orkney Islands Local Authority"),$F68=1),0,IF(AND(OR(Calculations!$E$2="Shetland Health Board",Calculations!$E$2="Western Isles Health Board",Calculations!$E$2="Shetland Islands Local Authority",Calculations!$E$2="Eilean Siar Local Authority"),OR($F68=1,$F68=5)),0,hosp_count(VALUE(LEFT(Options!$B$24,2)),$C68,$E68,$F68,2016,$I68,1,$H68,$G68*$H68, Options!B8))) -> 8888.185251 | P68: =IF(AND(OR(Calculations!$E$2="Orkney Health Board",Calculations!$E$2="Orkney Islands Local Authority"),$F68=1),0,IF(AND(OR(Calculations!$E$2="Shetland Health Board",Calculations!$E$2="Western Isles Health Board",Calculations!$E$2="Shetland Islands Local Authority",Calculations!$E$2="Eilean Siar Local Authority"),OR($F68=1,$F68=5)),0,hosp_count(VALUE(LEFT(Options!$B$24,2)),$C68,$E68,$F68,2016,$I68+$J68,1,$H68,$G68*$H68, Options!B8))) -> 8852.088565 | Q68: =IF(AND(OR(Calculations!$E$2="Orkney Health Board",Calculations!$E$2="Orkney Islands Local Authority"),$F68=1),0,IF(AND(OR(Calculations!$E$2="Shetland Health Board",Calculations!$E$2="Western Isles Health Board",Calculations!$E$2="Shetland Islands Local Authority",Calculations!$E$2="Eilean Siar Local Authority"),OR($F68=1,$F68=5)),0,prem_mort(VALUE(LEFT(Options!$B$24,2)),$C68,$E68,$F68,2016,$I68,1,$H68,$G68*$H68,Options!B8))) -> 85.97731727 | R68: =IF(AND(OR(Calculations!$E$2="Orkney Health Board",Calculations!$E$2="Orkney Islands Local Authority"),$F68=1),0,IF(AND(OR(Calculations!$E$2="Shetland Health Board",Calculations!$E$2="Western Isles Health Board",Calculations!$E$2="Shetland Islands Local Authority",Calculations!$E$2="Eilean Siar Local Authority"),OR($F68=1,$F68=5)),0,prem_mort(VALUE(LEFT(Options!$B$24,2)),$C68,$E68,$F68,2016,$I68+$J68,1,$H68,$G68*$H68,Options!B8))) -> 85.60106879 | S68: 255.4059866 | T68: 254.2882951 | U68: 10019.57737 | V68: 9975.730327 | W68: 26403.42587 | X68: 26296.19631 | Y68: 255.4059866 | Z68: 254.2882951 | AA68: 1787841.906 | AB68: 1780018.066 | AC68: 70137041.56 | AD68: 69830112.29 | AE68: 184823981.1 | AF68: 184073374.2 | AG68: 1787841.906 | AH68: 1780018.066 | AI68: 7000
B69: Female 45-49 | C69: 47.025772 | D69: 82.58577 | E69: female | F69: 1 | G69: =HLOOKUP(Calculations!$E$2,'Prevalence Rates'!$C$3:$BC$249,'Prevalence Rates'!$BD69,FALSE) -> 0.1098436971 | H69: =HLOOKUP(Calculations!$E$2,'Population 2016'!$C$3:$BC$249,'Population 2016'!BD69,FALSE) -> 39197 | I69: 0 | J69: =HLOOKUP(Results!E$4,Targeting!$C$3:$F$249,Targeting!$G69,FALSE) -> 2964 | K69: =IF(AND(OR(Calculations!$E$2="Orkney Health Board",Calculations!$E$2="Orkney Islands Local Authority"),$F69=1),0,IF(AND(OR(Calculations!$E$2="Shetland Health Board",Calculations!$E$2="Western Isles Health Board",Calculations!$E$2="Shetland Islands Local Authority",Calculations!$E$2="Eilean Siar Local Authority"),OR($F69=1,$F69=5)),0,new_ci(VALUE(LEFT(Options!$B$24,2)),$C69,$E69,$F69,2016,$I69,1,$H69,$G69*$H69,Options!B8))) -> 152.3958219 | L69: =IF(AND(OR(Calculations!$E$2="Orkney Health Board",Calculations!$E$2="Orkney Islands Local Authority"),$F69=1),0,IF(AND(OR(Calculations!$E$2="Shetland Health Board",Calculations!$E$2="Western Isles Health Board",Calculations!$E$2="Shetland Islands Local Authority",Calculations!$E$2="Eilean Siar Local Authority"),OR($F69=1,$F69=5)),0,new_ci(VALUE(LEFT(Options!$B$24,2)),$C69,$E69,$F69,2016,$I69+$J69,1,$H69,$G69*$H69,Options!B8))) -> 151.7289418 | M69: =IF(AND(OR(Calculations!$E$2="Orkney Health Board",Calculations!$E$2="Orkney Islands Local Authority"),$F69=1),0,IF(AND(OR(Calculations!$E$2="Shetland Health Board",Calculations!$E$2="Western Isles Health Board",Calculations!$E$2="Shetland Islands Local Authority",Calculations!$E$2="Eilean Siar Local Authority"),OR($F69=1,$F69=5)),0,new_yllv2(VALUE(LEFT(Options!$B$24,2)),$C69,$D69,$E69,$F69,2016,$I69,1,$H69,$G69*$H69,Options!B8))) -> 5266.799301 | N69: =IF(AND(OR(Calculations!$E$2="Orkney Health Board",Calculations!$E$2="Orkney Islands Local Authority"),$F69=1),0,IF(AND(OR(Calculations!$E$2="Shetland Health Board",Calculations!$E$2="Western Isles Health Board",Calculations!$E$2="Shetland Islands Local Authority",Calculations!$E$2="Eilean Siar Local Authority"),OR($F69=1,$F69=5)),0,new_yllv2(VALUE(LEFT(Options!$B$24,2)),$C69,$D69,$E69,$F69,2016,$I69+$J69,1,$H69,$G69*$H69,Options!B8))) -> 5243.751925 | O69: =IF(AND(OR(Calculations!$E$2="Orkney Health Board",Calculations!$E$2="Orkney Islands Local Authority"),$F69=1),0,IF(AND(OR(Calculations!$E$2="Shetland Health Board",Calculations!$E$2="Western Isles Health Board",Calculations!$E$2="Shetland Islands Local Authority",Calculations!$E$2="Eilean Siar Local Authority"),OR($F69=1,$F69=5)),0,hosp_count(VALUE(LEFT(Options!$B$24,2)),$C69,$E69,$F69,2016,$I69,1,$H69,$G69*$H69, Options!B8))) -> 11721.12367 | P69: =IF(AND(OR(Calculations!$E$2="Orkney Health Board",Calculations!$E$2="Orkney Islands Local Authority"),$F69=1),0,IF(AND(OR(Calculations!$E$2="Shetland Health Board",Calculations!$E$2="Western Isles Health Board",Calculations!$E$2="Shetland Islands Local Authority",Calculations!$E$2="Eilean Siar Local Authority"),OR($F69=1,$F69=5)),0,hosp_count(VALUE(LEFT(Options!$B$24,2)),$C69,$E69,$F69,2016,$I69+$J69,1,$H69,$G69*$H69, Options!B8))) -> 11673.50414 | Q69: =IF(AND(OR(Calculations!$E$2="Orkney Health Board",Calculations!$E$2="Orkney Islands Local Authority"),$F69=1),0,IF(AND(OR(Calculations!$E$2="Shetland Health Board",Calculations!$E$2="Western Isles Health Board",Calculations!$E$2="Shetland Islands Local Authority",Calculations!$E$2="Eilean Siar Local Authority"),OR($F69=1,$F69=5)),0,prem_mort(VALUE(LEFT(Options!$B$24,2)),$C69,$E69,$F69,2016,$I69,1,$H69,$G69*$H69,Options!B8))) -> 152.3958219 | R69: =IF(AND(OR(Calculations!$E$2="Orkney Health Board",Calculations!$E$2="Orkney Islands Local Authority"),$F69=1),0,IF(AND(OR(Calculations!$E$2="Shetland Health Board",Calculations!$E$2="Western Isles Health Board",Calculations!$E$2="Shetland Islands Local Authority",Calculations!$E$2="Eilean Siar Local Authority"),OR($F69=1,$F69=5)),0,prem_mort(VALUE(LEFT(Options!$B$24,2)),$C69,$E69,$F69,2016,$I69+$J69,1,$H69,$G69*$H69,Options!B8))) -> 151.7289418 | S69: 388.7946065 | T69: 387.0932515 | U69: 13436.74082 | V69: 13377.942 | W69: 29903.1142 | X69: 29781.6265 | Y69: 388.7946065 | Z69: 387.0932515 | AA69: 2721562.246 | AB69: 2709652.76 | AC69: 94057185.77 | AD69: 93645593.98 | AE69: 209321799.4 | AF69: 208471385.5 | AG69: 2721562.246 | AH69: 2709652.76 | AI69: 7000
B70: Female 50-54 | C70: 51.990826 | D70: 82.98083 | E70: female | F70: 1 | G70: =HLOOKUP(Calculations!$E$2,'Prevalence Rates'!$C$3:$BC$249,'Prevalence Rates'!$BD70,FALSE) -> 0.1098436971 | H70: =HLOOKUP(Calculations!$E$2,'Population 2016'!$C$3:$BC$249,'Population 2016'!BD70,FALSE) -> 39704 | I70: 0 | J70: =HLOOKUP(Results!E$4,Targeting!$C$3:$F$249,Targeting!$G70,FALSE) -> 3002 | K70: =IF(AND(OR(Calculations!$E$2="Orkney Health Board",Calculations!$E$2="Orkney Islands Local Authority"),$F70=1),0,IF(AND(OR(Calculations!$E$2="Shetland Health Board",Calculations!$E$2="Western Isles Health Board",Calculations!$E$2="Shetland Islands Local Authority",Calculations!$E$2="Eilean Siar Local Authority"),OR($F70=1,$F70=5)),0,new_ci(VALUE(LEFT(Options!$B$24,2)),$C70,$E70,$F70,2016,$I70,1,$H70,$G70*$H70,Options!B8))) -> 235.236488 | L70: =IF(AND(OR(Calculations!$E$2="Orkney Health Board",Calculations!$E$2="Orkney Islands Local Authority"),$F70=1),0,IF(AND(OR(Calculations!$E$2="Shetland Health Board",Calculations!$E$2="Western Isles Health Board",Calculations!$E$2="Shetland Islands Local Authority",Calculations!$E$2="Eilean Siar Local Authority"),OR($F70=1,$F70=5)),0,new_ci(VALUE(LEFT(Options!$B$24,2)),$C70,$E70,$F70,2016,$I70+$J70,1,$H70,$G70*$H70,Options!B8))) -> 234.2089926 | M70: =IF(AND(OR(Calculations!$E$2="Orkney Health Board",Calculations!$E$2="Orkney Islands Local Authority"),$F70=1),0,IF(AND(OR(Calculations!$E$2="Shetland Health Board",Calculations!$E$2="Western Isles Health Board",Calculations!$E$2="Shetland Islands Local Authority",Calculations!$E$2="Eilean Siar Local Authority"),OR($F70=1,$F70=5)),0,new_yllv2(VALUE(LEFT(Options!$B$24,2)),$C70,$D70,$E70,$F70,2016,$I70,1,$H70,$G70*$H70,Options!B8))) -> 7054.743216 | N70: =IF(AND(OR(Calculations!$E$2="Orkney Health Board",Calculations!$E$2="Orkney Islands Local Authority"),$F70=1),0,IF(AND(OR(Calculations!$E$2="Shetland Health Board",Calculations!$E$2="Western Isles Health Board",Calculations!$E$2="Shetland Islands Local Authority",Calculations!$E$2="Eilean Siar Local Authority"),OR($F70=1,$F70=5)),0,new_yllv2(VALUE(LEFT(Options!$B$24,2)),$C70,$D70,$E70,$F70,2016,$I70+$J70,1,$H70,$G70*$H70,Options!B8))) -> 7023.928624 | O70: =IF(AND(OR(Calculations!$E$2="Orkney Health Board",Calculations!$E$2="Orkney Islands Local Authority"),$F70=1),0,IF(AND(OR(Calculations!$E$2="Shetland Health Board",Calculations!$E$2="Western Isles Health Board",Calculations!$E$2="Shetland Islands Local Authority",Calculations!$E$2="Eilean Siar Local Authority"),OR($F70=1,$F70=5)),0,hosp_count(VALUE(LEFT(Options!$B$24,2)),$C70,$E70,$F70,2016,$I70,1,$H70,$G70*$H70, Options!B8))) -> 13452.08093 | P70: =IF(AND(OR(Calculations!$E$2="Orkney Health Board",Calculations!$E$2="Orkney Islands Local Authority"),$F70=1),0,IF(AND(OR(Calculations!$E$2="Shetland Health Board",Calculations!$E$2="Western Isles Health Board",Calculations!$E$2="Shetland Islands Local Authority",Calculations!$E$2="Eilean Siar Local Authority"),OR($F70=1,$F70=5)),0,hosp_count(VALUE(LEFT(Options!$B$24,2)),$C70,$E70,$F70,2016,$I70+$J70,1,$H70,$G70*$H70, Options!B8))) -> 13397.43518 | Q70: =IF(AND(OR(Calculations!$E$2="Orkney Health Board",Calculations!$E$2="Orkney Islands Local Authority"),$F70=1),0,IF(AND(OR(Calculations!$E$2="Shetland Health Board",Calculations!$E$2="Western Isles Health Board",Calculations!$E$2="Shetland Islands Local Authority",Calculations!$E$2="Eilean Siar Local Authority"),OR($F70=1,$F70=5)),0,prem_mort(VALUE(LEFT(Options!$B$24,2)),$C70,$E70,$F70,2016,$I70,1,$H70,$G70*$H70,Options!B8))) -> 235.236488 | R70: =IF(AND(OR(Calculations!$E$2="Orkney Health Board",Calculations!$E$2="Orkney Islands Local Authority"),$F70=1),0,IF(AND(OR(Calculations!$E$2="Shetland Health Board",Calculations!$E$2="Western Isles Health Board",Calculations!$E$2="Shetland Islands Local Authority",Calculations!$E$2="Eilean Siar Local Authority"),OR($F70=1,$F70=5)),0,prem_mort(VALUE(LEFT(Options!$B$24,2)),$C70,$E70,$F70,2016,$I70+$J70,1,$H70,$G70*$H70,Options!B8))) -> 234.2089926 | S70: 592.475539 | T70: 589.88765 | U70: 17768.34378 | V70: 17690.73298 | W70: 33880.92115 | X70: 33743.28828 | Y70: 592.475539 | Z70: 589.88765 | AA70: 4147328.773 | AB70: 4129213.55 | AC70: 124378406.5 | AD70: 123835130.9 | AE70: 237166448.1 | AF70: 236203017.9 | AG70: 4147328.773 | AH70: 4129213.55 | AI70: 7000
B71: Female 55-59 | C71: 56.953041 | D71: 83.47304 | E71: female | F71: 1 | G71: =HLOOKUP(Calculations!$E$2,'Prevalence Rates'!$C$3:$BC$249,'Prevalence Rates'!$BD71,FALSE) -> 0.1353569083 | H71: =HLOOKUP(Calculations!$E$2,'Population 2016'!$C$3:$BC$249,'Population 2016'!BD71,FALSE) -> 35528 | I71: 0 | J71: =HLOOKUP(Results!E$4,Targeting!$C$3:$F$249,Targeting!$G71,FALSE) -> 2686 | K71: =IF(AND(OR(Calculations!$E$2="Orkney Health Board",Calculations!$E$2="Orkney Islands Local Authority"),$F71=1),0,IF(AND(OR(Calculations!$E$2="Shetland Health Board",Calculations!$E$2="Western Isles Health Board",Calculations!$E$2="Shetland Islands Local Authority",Calculations!$E$2="Eilean Siar Local Authority"),OR($F71=1,$F71=5)),0,new_ci(VALUE(LEFT(Options!$B$24,2)),$C71,$E71,$F71,2016,$I71,1,$H71,$G71*$H71,Options!B8))) -> 320.5115879 | L71: =IF(AND(OR(Calculations!$E$2="Orkney Health Board",Calculations!$E$2="Orkney Islands Local Authority"),$F71=1),0,IF(AND(OR(Calculations!$E$2="Shetland Health Board",Calculations!$E$2="Western Isles Health Board",Calculations!$E$2="Shetland Islands Local Authority",Calculations!$E$2="Eilean Siar Local Authority"),OR($F71=1,$F71=5)),0,new_ci(VALUE(LEFT(Options!$B$24,2)),$C71,$E71,$F71,2016,$I71+$J71,1,$H71,$G71*$H71,Options!B8))) -> 319.1303395 | M71: =IF(AND(OR(Calculations!$E$2="Orkney Health Board",Calculations!$E$2="Orkney Islands Local Authority"),$F71=1),0,IF(AND(OR(Calculations!$E$2="Shetland Health Board",Calculations!$E$2="Western Isles Health Board",Calculations!$E$2="Shetland Islands Local Authority",Calculations!$E$2="Eilean Siar Local Authority"),OR($F71=1,$F71=5)),0,new_yllv2(VALUE(LEFT(Options!$B$24,2)),$C71,$D71,$E71,$F71,2016,$I71,1,$H71,$G71*$H71,Options!B8))) -> 8179.455403 | N71: =IF(AND(OR(Calculations!$E$2="Orkney Health Board",Calculations!$E$2="Orkney Islands Local Authority"),$F71=1),0,IF(AND(OR(Calculations!$E$2="Shetland Health Board",Calculations!$E$2="Western Isles Health Board",Calculations!$E$2="Shetland Islands Local Authority",Calculations!$E$2="Eilean Siar Local Authority"),OR($F71=1,$F71=5)),0,new_yllv2(VALUE(LEFT(Options!$B$24,2)),$C71,$D71,$E71,$F71,2016,$I71+$J71,1,$H71,$G71*$H71,Options!B8))) -> 8144.205946 | O71: =IF(AND(OR(Calculations!$E$2="Orkney Health Board",Calculations!$E$2="Orkney Islands Local Authority"),$F71=1),0,IF(AND(OR(Calculations!$E$2="Shetland Health Board",Calculations!$E$2="Western Isles Health Board",Calculations!$E$2="Shetland Islands Local Authority",Calculations!$E$2="Eilean Siar Local Authority"),OR($F71=1,$F71=5)),0,hosp_count(VALUE(LEFT(Options!$B$24,2)),$C71,$E71,$F71,2016,$I71,1,$H71,$G71*$H71, Options!B8))) -> 13637.46804 | P71: =IF(AND(OR(Calculations!$E$2="Orkney Health Board",Calculations!$E$2="Orkney Islands Local Authority"),$F71=1),0,IF(AND(OR(Calculations!$E$2="Shetland Health Board",Calculations!$E$2="Western Isles Health Board",Calculations!$E$2="Shetland Islands Local Authority",Calculations!$E$2="Eilean Siar Local Authority"),OR($F71=1,$F71=5)),0,hosp_count(VALUE(LEFT(Options!$B$24,2)),$C71,$E71,$F71,2016,$I71+$J71,1,$H71,$G71*$H71, Options!B8))) -> 13582.1863 | Q71: =IF(AND(OR(Calculations!$E$2="Orkney Health Board",Calculations!$E$2="Orkney Islands Local Authority"),$F71=1),0,IF(AND(OR(Calculations!$E$2="Shetland Health Board",Calculations!$E$2="Western Isles Health Board",Calculations!$E$2="Shetland Islands Local Authority",Calculations!$E$2="Eilean Siar Local Authority"),OR($F71=1,$F71=5)),0,prem_mort(VALUE(LEFT(Options!$B$24,2)),$C71,$E71,$F71,2016,$I71,1,$H71,$G71*$H71,Options!B8))) -> 320.5115879 | R71: =IF(AND(OR(Calculations!$E$2="Orkney Health Board",Calculations!$E$2="Orkney Islands Local Authority"),$F71=1),0,IF(AND(OR(Calculations!$E$2="Shetland Health Board",Calculations!$E$2="Western Isles Health Board",Calculations!$E$2="Shetland Islands Local Authority",Calculations!$E$2="Eilean Siar Local Authority"),OR($F71=1,$F71=5)),0,prem_mort(VALUE(LEFT(Options!$B$24,2)),$C71,$E71,$F71,2016,$I71+$J71,1,$H71,$G71*$H71,Options!B8))) -> 319.1303395 | S71: 902.1379979 | T71: 898.2502239 | U71: 23022.56081 | V71: 22923.34481 | W71: 38385.12735 | X71: 38229.52686 | Y71: 902.1379979 | Z71: 898.2502239 | AA71: 5863896.987 | AB71: 5838626.455 | AC71: 149646645.2 | AD71: 149001741.3 | AE71: 249503327.8 | AF71: 248491924.6 | AG71: 5863896.987 | AH71: 5838626.455 | AI71: 6500
B72: Female 60-64 | C72: 61.947388 | D72: 84.16739 | E72: female | F72: 1 | G72: =HLOOKUP(Calculations!$E$2,'Prevalence Rates'!$C$3:$BC$249,'Prevalence Rates'!$BD72,FALSE) -> 0.1353569083 | H72: =HLOOKUP(Calculations!$E$2,'Population 2016'!$C$3:$BC$249,'Population 2016'!BD72,FALSE) -> 29212 | I72: 0 | J72: =HLOOKUP(Results!E$4,Targeting!$C$3:$F$249,Targeting!$G72,FALSE) -> 2209 | K72: =IF(AND(OR(Calculations!$E$2="Orkney Health Board",Calculations!$E$2="Orkney Islands Local Authority"),$F72=1),0,IF(AND(OR(Calculations!$E$2="Shetland Health Board",Calculations!$E$2="Western Isles Health Board",Calculations!$E$2="Shetland Islands Local Authority",Calculations!$E$2="Eilean Siar Local Authority"),OR($F72=1,$F72=5)),0,new_ci(VALUE(LEFT(Options!$B$24,2)),$C72,$E72,$F72,2016,$I72,1,$H72,$G72*$H72,Options!B8))) -> 402.0289383 | L72: =IF(AND(OR(Calculations!$E$2="Orkney Health Board",Calculations!$E$2="Orkney Islands Local Authority"),$F72=1),0,IF(AND(OR(Calculations!$E$2="Shetland Health Board",Calculations!$E$2="Western Isles Health Board",Calculations!$E$2="Shetland Islands Local Authority",Calculations!$E$2="Eilean Siar Local Authority"),OR($F72=1,$F72=5)),0,new_ci(VALUE(LEFT(Options!$B$24,2)),$C72,$E72,$F72,2016,$I72+$J72,1,$H72,$G72*$H72,Options!B8))) -> 400.302869 | M72: =IF(AND(OR(Calculations!$E$2="Orkney Health Board",Calculations!$E$2="Orkney Islands Local Authority"),$F72=1),0,IF(AND(OR(Calculations!$E$2="Shetland Health Board",Calculations!$E$2="Western Isles Health Board",Calculations!$E$2="Shetland Islands Local Authority",Calculations!$E$2="Eilean Siar Local Authority"),OR($F72=1,$F72=5)),0,new_yllv2(VALUE(LEFT(Options!$B$24,2)),$C72,$D72,$E72,$F72,2016,$I72,1,$H72,$G72*$H72,Options!B8))) -> 8531.054874 | N72: =IF(AND(OR(Calculations!$E$2="Orkney Health Board",Calculations!$E$2="Orkney Islands Local Authority"),$F72=1),0,IF(AND(OR(Calculations!$E$2="Shetland Health Board",Calculations!$E$2="Western Isles Health Board",Calculations!$E$2="Shetland Islands Local Authority",Calculations!$E$2="Eilean Siar Local Authority"),OR($F72=1,$F72=5)),0,new_yllv2(VALUE(LEFT(Options!$B$24,2)),$C72,$D72,$E72,$F72,2016,$I72+$J72,1,$H72,$G72*$H72,Options!B8))) -> 8494.42768 | O72: =IF(AND(OR(Calculations!$E$2="Orkney Health Board",Calculations!$E$2="Orkney Islands Local Authority"),$F72=1),0,IF(AND(OR(Calculations!$E$2="Shetland Health Board",Calculations!$E$2="Western Isles Health Board",Calculations!$E$2="Shetland Islands Local Authority",Calculations!$E$2="Eilean Siar Local Authority"),OR($F72=1,$F72=5)),0,hosp_count(VALUE(LEFT(Options!$B$24,2)),$C72,$E72,$F72,2016,$I72,1,$H72,$G72*$H72, Options!B8))) -> 12714.02519 | P72: =IF(AND(OR(Calculations!$E$2="Orkney Health Board",Calculations!$E$2="Orkney Islands Local Authority"),$F72=1),0,IF(AND(OR(Calculations!$E$2="Shetland Health Board",Calculations!$E$2="Western Isles Health Board",Calculations!$E$2="Shetland Islands Local Authority",Calculations!$E$2="Eilean Siar Local Authority"),OR($F72=1,$F72=5)),0,hosp_count(VALUE(LEFT(Options!$B$24,2)),$C72,$E72,$F72,2016,$I72+$J72,1,$H72,$G72*$H72, Options!B8))) -> 12662.47501 | Q72: =IF(AND(OR(Calculations!$E$2="Orkney Health Board",Calculations!$E$2="Orkney Islands Local Authority"),$F72=1),0,IF(AND(OR(Calculations!$E$2="Shetland Health Board",Calculations!$E$2="Western Isles Health Board",Calculations!$E$2="Shetland Islands Local Authority",Calculations!$E$2="Eilean Siar Local Authority"),OR($F72=1,$F72=5)),0,prem_mort(VALUE(LEFT(Options!$B$24,2)),$C72,$E72,$F72,2016,$I72,1,$H72,$G72*$H72,Options!B8))) -> 402.0289383 | R72: =IF(AND(OR(Calculations!$E$2="Orkney Health Board",Calculations!$E$2="Orkney Islands Local Authority"),$F72=1),0,IF(AND(OR(Calculations!$E$2="Shetland Health Board",Calculations!$E$2="Western Isles Health Board",Calculations!$E$2="Shetland Islands Local Authority",Calculations!$E$2="Eilean Siar Local Authority"),OR($F72=1,$F72=5)),0,prem_mort(VALUE(LEFT(Options!$B$24,2)),$C72,$E72,$F72,2016,$I72+$J72,1,$H72,$G72*$H72,Options!B8))) -> 400.302869 | S72: 1376.245852 | T72: 1370.337084 | U72: 29203.93973 | V72: 29078.55566 | W72: 43523.29587 | X72: 43346.82667 | Y72: 1376.245852 | Z72: 1370.337084 | AA72: 8257475.112 | AB72: 8222022.504 | AC72: 175223638.4 | AD72: 174471334 | AE72: 261139775.2 | AF72: 260080960 | AG72: 8257475.112 | AH72: 8222022.504 | AI72: 6000
B73: Female 65-69 | C73: 67.063927 | D73: 85.19393 | E73: female | F73: 1 | G73: =HLOOKUP(Calculations!$E$2,'Prevalence Rates'!$C$3:$BC$249,'Prevalence Rates'!$BD73,FALSE) -> 0.0712216542 | H73: =HLOOKUP(Calculations!$E$2,'Population 2016'!$C$3:$BC$249,'Population 2016'!BD73,FALSE) -> 27762 | I73: 0 | J73: =HLOOKUP(Results!E$4,Targeting!$C$3:$F$249,Targeting!$G73,FALSE) -> 2099 | K73: =IF(AND(OR(Calculations!$E$2="Orkney Health Board",Calculations!$E$2="Orkney Islands Local Authority"),$F73=1),0,IF(AND(OR(Calculations!$E$2="Shetland Health Board",Calculations!$E$2="Western Isles Health Board",Calculations!$E$2="Shetland Islands Local Authority",Calculations!$E$2="Eilean Siar Local Authority"),OR($F73=1,$F73=5)),0,new_ci(VALUE(LEFT(Options!$B$24,2)),$C73,$E73,$F73,2016,$I73,1,$H73,$G73*$H73,Options!B8))) -> 588.1845934 | L73: =IF(AND(OR(Calculations!$E$2="Orkney Health Board",Calculations!$E$2="Orkney Islands Local Authority"),$F73=1),0,IF(AND(OR(Calculations!$E$2="Shetland Health Board",Calculations!$E$2="Western Isles Health Board",Calculations!$E$2="Shetland Islands Local Authority",Calculations!$E$2="Eilean Siar Local Authority"),OR($F73=1,$F73=5)),0,new_ci(VALUE(LEFT(Options!$B$24,2)),$C73,$E73,$F73,2016,$I73+$J73,1,$H73,$G73*$H73,Options!B8))) -> 585.6076103 | M73: =IF(AND(OR(Calculations!$E$2="Orkney Health Board",Calculations!$E$2="Orkney Islands Local Authority"),$F73=1),0,IF(AND(OR(Calculations!$E$2="Shetland Health Board",Calculations!$E$2="Western Isles Health Board",Calculations!$E$2="Shetland Islands Local Authority",Calculations!$E$2="Eilean Siar Local Authority"),OR($F73=1,$F73=5)),0,new_yllv2(VALUE(LEFT(Options!$B$24,2)),$C73,$D73,$E73,$F73,2016,$I73,1,$H73,$G73*$H73,Options!B8))) -> 10075.60385 | N73: =IF(AND(OR(Calculations!$E$2="Orkney Health Board",Calculations!$E$2="Orkney Islands Local Authority"),$F73=1),0,IF(AND(OR(Calculations!$E$2="Shetland Health Board",Calculations!$E$2="Western Isles Health Board",Calculations!$E$2="Shetland Islands Local Authority",Calculations!$E$2="Eilean Siar Local Authority"),OR($F73=1,$F73=5)),0,new_yllv2(VALUE(LEFT(Options!$B$24,2)),$C73,$D73,$E73,$F73,2016,$I73+$J73,1,$H73,$G73*$H73,Options!B8))) -> 10031.46012 | O73: =IF(AND(OR(Calculations!$E$2="Orkney Health Board",Calculations!$E$2="Orkney Islands Local Authority"),$F73=1),0,IF(AND(OR(Calculations!$E$2="Shetland Health Board",Calculations!$E$2="Western Isles Health Board",Calculations!$E$2="Shetland Islands Local Authority",Calculations!$E$2="Eilean Siar Local Authority"),OR($F73=1,$F73=5)),0,hosp_count(VALUE(LEFT(Options!$B$24,2)),$C73,$E73,$F73,2016,$I73,1,$H73,$G73*$H73, Options!B8))) -> 13742.51292 | P73: =IF(AND(OR(Calculations!$E$2="Orkney Health Board",Calculations!$E$2="Orkney Islands Local Authority"),$F73=1),0,IF(AND(OR(Calculations!$E$2="Shetland Health Board",Calculations!$E$2="Western Isles Health Board",Calculations!$E$2="Shetland Islands Local Authority",Calculations!$E$2="Eilean Siar Local Authority"),OR($F73=1,$F73=5)),0,hosp_count(VALUE(LEFT(Options!$B$24,2)),$C73,$E73,$F73,2016,$I73+$J73,1,$H73,$G73*$H73, Options!B8))) -> 13686.51775 | Q73: =IF(AND(OR(Calculations!$E$2="Orkney Health Board",Calculations!$E$2="Orkney Islands Local Authority"),$F73=1),0,IF(AND(OR(Calculations!$E$2="Shetland Health Board",Calculations!$E$2="Western Isles Health Board",Calculations!$E$2="Shetland Islands Local Authority",Calculations!$E$2="Eilean Siar Local Authority"),OR($F73=1,$F73=5)),0,prem_mort(VALUE(LEFT(Options!$B$24,2)),$C73,$E73,$F73,2016,$I73,1,$H73,$G73*$H73,Options!B8))) -> 588.1845934 | R73: =IF(AND(OR(Calculations!$E$2="Orkney Health Board",Calculations!$E$2="Orkney Islands Local Authority"),$F73=1),0,IF(AND(OR(Calculations!$E$2="Shetland Health Board",Calculations!$E$2="Western Isles Health Board",Calculations!$E$2="Shetland Islands Local Authority",Calculations!$E$2="Eilean Siar Local Authority"),OR($F73=1,$F73=5)),0,prem_mort(VALUE(LEFT(Options!$B$24,2)),$C73,$E73,$F73,2016,$I73+$J73,1,$H73,$G73*$H73,Options!B8))) -> 585.6076103 | S73: 2118.667939 | T73: 2109.385528 | U73: 36292.78816 | V73: 36133.78043 | W73: 49501.16318 | X73: 49299.46599 | Y73: 2118.667939 | Z73: 2109.385528 | AA73: 11652673.67 | AB73: 11601620.4 | AC73: 199610334.9 | AD73: 198735792.3 | AE73: 272256397.5 | AF73: 271147062.9 | AG73: 11652673.67 | AH73: 11601620.4 | AI73: 5500
B74: Female 70-74 | C74: 71.938164 | D74: 86.24816 | E74: female | F74: 1 | G74: =HLOOKUP(Calculations!$E$2,'Prevalence Rates'!$C$3:$BC$249,'Prevalence Rates'!$BD74,FALSE) -> 0.0712216542 | H74: =HLOOKUP(Calculations!$E$2,'Population 2016'!$C$3:$BC$249,'Population 2016'!BD74,FALSE) -> 21786 | I74: 0 | J74: =HLOOKUP(Results!E$4,Targeting!$C$3:$F$249,Targeting!$G74,FALSE) -> 1647 | K74: =IF(AND(OR(Calculations!$E$2="Orkney Health Board",Calculations!$E$2="Orkney Islands Local Authority"),$F74=1),0,IF(AND(OR(Calculations!$E$2="Shetland Health Board",Calculations!$E$2="Western Isles Health Board",Calculations!$E$2="Shetland Islands Local Authority",Calculations!$E$2="Eilean Siar Local Authority"),OR($F74=1,$F74=5)),0,new_ci(VALUE(LEFT(Options!$B$24,2)),$C74,$E74,$F74,2016,$I74,1,$H74,$G74*$H74,Options!B8))) -> 694.8330978 | L74: =IF(AND(OR(Calculations!$E$2="Orkney Health Board",Calculations!$E$2="Orkney Islands Local Authority"),$F74=1),0,IF(AND(OR(Calculations!$E$2="Shetland Health Board",Calculations!$E$2="Western Isles Health Board",Calculations!$E$2="Shetland Islands Local Authority",Calculations!$E$2="Eilean Siar Local Authority"),OR($F74=1,$F74=5)),0,new_ci(VALUE(LEFT(Options!$B$24,2)),$C74,$E74,$F74,2016,$I74+$J74,1,$H74,$G74*$H74,Options!B8))) -> 691.818232 | M74: =IF(AND(OR(Calculations!$E$2="Orkney Health Board",Calculations!$E$2="Orkney Islands Local Authority"),$F74=1),0,IF(AND(OR(Calculations!$E$2="Shetland Health Board",Calculations!$E$2="Western Isles Health Board",Calculations!$E$2="Shetland Islands Local Authority",Calculations!$E$2="Eilean Siar Local Authority"),OR($F74=1,$F74=5)),0,new_yllv2(VALUE(LEFT(Options!$B$24,2)),$C74,$D74,$E74,$F74,2016,$I74,1,$H74,$G74*$H74,Options!B8))) -> 9248.225752 | N74: =IF(AND(OR(Calculations!$E$2="Orkney Health Board",Calculations!$E$2="Orkney Islands Local Authority"),$F74=1),0,IF(AND(OR(Calculations!$E$2="Shetland Health Board",Calculations!$E$2="Western Isles Health Board",Calculations!$E$2="Shetland Islands Local Authority",Calculations!$E$2="Eilean Siar Local Authority"),OR($F74=1,$F74=5)),0,new_yllv2(VALUE(LEFT(Options!$B$24,2)),$C74,$D74,$E74,$F74,2016,$I74+$J74,1,$H74,$G74*$H74,Options!B8))) -> 9208.0979 | O74: =IF(AND(OR(Calculations!$E$2="Orkney Health Board",Calculations!$E$2="Orkney Islands Local Authority"),$F74=1),0,IF(AND(OR(Calculations!$E$2="Shetland Health Board",Calculations!$E$2="Western Isles Health Board",Calculations!$E$2="Shetland Islands Local Authority",Calculations!$E$2="Eilean Siar Local Authority"),OR($F74=1,$F74=5)),0,hosp_count(VALUE(LEFT(Options!$B$24,2)),$C74,$E74,$F74,2016,$I74,1,$H74,$G74*$H74, Options!B8))) -> 12191.0075 | P74: =IF(AND(OR(Calculations!$E$2="Orkney Health Board",Calculations!$E$2="Orkney Islands Local Authority"),$F74=1),0,IF(AND(OR(Calculations!$E$2="Shetland Health Board",Calculations!$E$2="Western Isles Health Board",Calculations!$E$2="Shetland Islands Local Authority",Calculations!$E$2="Eilean Siar Local Authority"),OR($F74=1,$F74=5)),0,hosp_count(VALUE(LEFT(Options!$B$24,2)),$C74,$E74,$F74,2016,$I74+$J74,1,$H74,$G74*$H74, Options!B8))) -> 12141.3393 | Q74: =IF(AND(OR(Calculations!$E$2="Orkney Health Board",Calculations!$E$2="Orkney Islands Local Authority"),$F74=1),0,IF(AND(OR(Calculations!$E$2="Shetland Health Board",Calculations!$E$2="Western Isles Health Board",Calculations!$E$2="Shetland Islands Local Authority",Calculations!$E$2="Eilean Siar Local Authority"),OR($F74=1,$F74=5)),0,prem_mort(VALUE(LEFT(Options!$B$24,2)),$C74,$E74,$F74,2016,$I74,1,$H74,$G74*$H74,Options!B8))) -> 694.8330978 | R74: =IF(AND(OR(Calculations!$E$2="Orkney Health Board",Calculations!$E$2="Orkney Islands Local Authority"),$F74=1),0,IF(AND(OR(Calculations!$E$2="Shetland Health Board",Calculations!$E$2="Western Isles Health Board",Calculations!$E$2="Shetland Islands Local Authority",Calculations!$E$2="Eilean Siar Local Authority"),OR($F74=1,$F74=5)),0,prem_mort(VALUE(LEFT(Options!$B$24,2)),$C74,$E74,$F74,2016,$I74+$J74,1,$H74,$G74*$H74,Options!B8))) -> 691.818232 | S74: 3189.355998 | T74: 3175.517451 | U74: 42450.31558 | V74: 42266.12458 | W74: 55957.98909 | X74: 55730.00688 | Y74: 3189.355998 | Z74: 3175.517451 | AA74: 15946779.99 | AB74: 15877587.26 | AC74: 212251577.9 | AD74: 211330622.9 | AE74: 279789945.5 | AF74: 278650034.4 | AG74: 15946779.99 | AH74: 15877587.26 | AI74: 5000
B75: Female 75-79 | C75: 76.942825 | D75: 87.81283 | E75: female | F75: 1 | G75: =HLOOKUP(Calculations!$E$2,'Prevalence Rates'!$C$3:$BC$249,'Prevalence Rates'!$BD75,FALSE) -> 0.02335793057 | H75: =HLOOKUP(Calculations!$E$2,'Population 2016'!$C$3:$BC$249,'Population 2016'!BD75,FALSE) -> 19138 | I75: 0 | J75: =HLOOKUP(Results!E$4,Targeting!$C$3:$F$249,Targeting!$G75,FALSE) -> 1447 | K75: =IF(AND(OR(Calculations!$E$2="Orkney Health Board",Calculations!$E$2="Orkney Islands Local Authority"),$F75=1),0,IF(AND(OR(Calculations!$E$2="Shetland Health Board",Calculations!$E$2="Western Isles Health Board",Calculations!$E$2="Shetland Islands Local Authority",Calculations!$E$2="Eilean Siar Local Authority"),OR($F75=1,$F75=5)),0,new_ci(VALUE(LEFT(Options!$B$24,2)),$C75,$E75,$F75,2016,$I75,1,$H75,$G75*$H75,Options!B8))) -> 926.3913535 | L75: =IF(AND(OR(Calculations!$E$2="Orkney Health Board",Calculations!$E$2="Orkney Islands Local Authority"),$F75=1),0,IF(AND(OR(Calculations!$E$2="Shetland Health Board",Calculations!$E$2="Western Isles Health Board",Calculations!$E$2="Shetland Islands Local Authority",Calculations!$E$2="Eilean Siar Local Authority"),OR($F75=1,$F75=5)),0,new_ci(VALUE(LEFT(Options!$B$24,2)),$C75,$E75,$F75,2016,$I75+$J75,1,$H75,$G75*$H75,Options!B8))) -> 922.3534103 | M75: =IF(AND(OR(Calculations!$E$2="Orkney Health Board",Calculations!$E$2="Orkney Islands Local Authority"),$F75=1),0,IF(AND(OR(Calculations!$E$2="Shetland Health Board",Calculations!$E$2="Western Isles Health Board",Calculations!$E$2="Shetland Islands Local Authority",Calculations!$E$2="Eilean Siar Local Authority"),OR($F75=1,$F75=5)),0,new_yllv2(VALUE(LEFT(Options!$B$24,2)),$C75,$D75,$E75,$F75,2016,$I75,1,$H75,$G75*$H75,Options!B8))) -> 9143.487291 | N75: =IF(AND(OR(Calculations!$E$2="Orkney Health Board",Calculations!$E$2="Orkney Islands Local Authority"),$F75=1),0,IF(AND(OR(Calculations!$E$2="Shetland Health Board",Calculations!$E$2="Western Isles Health Board",Calculations!$E$2="Shetland Islands Local Authority",Calculations!$E$2="Eilean Siar Local Authority"),OR($F75=1,$F75=5)),0,new_yllv2(VALUE(LEFT(Options!$B$24,2)),$C75,$D75,$E75,$F75,2016,$I75+$J75,1,$H75,$G75*$H75,Options!B8))) -> 9103.632772 | O75: =IF(AND(OR(Calculations!$E$2="Orkney Health Board",Calculations!$E$2="Orkney Islands Local Authority"),$F75=1),0,IF(AND(OR(Calculations!$E$2="Shetland Health Board",Calculations!$E$2="Western Isles Health Board",Calculations!$E$2="Shetland Islands Local Authority",Calculations!$E$2="Eilean Siar Local Authority"),OR($F75=1,$F75=5)),0,hosp_count(VALUE(LEFT(Options!$B$24,2)),$C75,$E75,$F75,2016,$I75,1,$H75,$G75*$H75, Options!B8))) -> 12145.91145 | P75: =IF(AND(OR(Calculations!$E$2="Orkney Health Board",Calculations!$E$2="Orkney Islands Local Authority"),$F75=1),0,IF(AND(OR(Calculations!$E$2="Shetland Health Board",Calculations!$E$2="Western Isles Health Board",Calculations!$E$2="Shetland Islands Local Authority",Calculations!$E$2="Eilean Siar Local Authority"),OR($F75=1,$F75=5)),0,hosp_count(VALUE(LEFT(Options!$B$24,2)),$C75,$E75,$F75,2016,$I75+$J75,1,$H75,$G75*$H75, Options!B8))) -> 12096.23146 | Q75: =IF(AND(OR(Calculations!$E$2="Orkney Health Board",Calculations!$E$2="Orkney Islands Local Authority"),$F75=1),0,IF(AND(OR(Calculations!$E$2="Shetland Health Board",Calculations!$E$2="Western Isles Health Board",Calculations!$E$2="Shetland Islands Local Authority",Calculations!$E$2="Eilean Siar Local Authority"),OR($F75=1,$F75=5)),0,prem_mort(VALUE(LEFT(Options!$B$24,2)),$C75,$E75,$F75,2016,$I75,1,$H75,$G75*$H75,Options!B8))) -> 0 | R75: =IF(AND(OR(Calculations!$E$2="Orkney Health Board",Calculations!$E$2="Orkney Islands Local Authority"),$F75=1),0,IF(AND(OR(Calculations!$E$2="Shetland Health Board",Calculations!$E$2="Western Isles Health Board",Calculations!$E$2="Shetland Islands Local Authority",Calculations!$E$2="Eilean Siar Local Authority"),OR($F75=1,$F75=5)),0,prem_mort(VALUE(LEFT(Options!$B$24,2)),$C75,$E75,$F75,2016,$I75+$J75,1,$H75,$G75*$H75,Options!B8))) -> 0 | S75: 4840.586025 | T75: 4819.486939 | U75: 47776.60827 | V75: 47568.36018 | W75: 63464.8942 | X75: 63205.30598 | Y75: 0 | Z75: 0 | AA75: 19362344.1 | AB75: 19277947.75 | AC75: 191106433.1 | AD75: 190273440.7 | AE75: 253859576.8 | AF75: 252821223.9 | AG75: 0 | AH75: 0 | AI75: 4000
B76: Female 80-84 | C76: 81.856712 | D76: 89.73671 | E76: female | F76: 1 | G76: =HLOOKUP(Calculations!$E$2,'Prevalence Rates'!$C$3:$BC$249,'Prevalence Rates'!$BD76,FALSE) -> 0.02335793057 | H76: =HLOOKUP(Calculations!$E$2,'Population 2016'!$C$3:$BC$249,'Population 2016'!BD76,FALSE) -> 14776 | I76: 0 | J76: =HLOOKUP(Results!E$4,Targeting!$C$3:$F$249,Targeting!$G76,FALSE) -> 1117 | K76: =IF(AND(OR(Calculations!$E$2="Orkney Health Board",Calculations!$E$2="Orkney Islands Local Authority"),$F76=1),0,IF(AND(OR(Calculations!$E$2="Shetland Health Board",Calculations!$E$2="Western Isles Health Board",Calculations!$E$2="Shetland Islands Local Authority",Calculations!$E$2="Eilean Siar Local Authority"),OR($F76=1,$F76=5)),0,new_ci(VALUE(LEFT(Options!$B$24,2)),$C76,$E76,$F76,2016,$I76,1,$H76,$G76*$H76,Options!B8))) -> 1072.53457 | L76: =IF(AND(OR(Calculations!$E$2="Orkney Health Board",Calculations!$E$2="Orkney Islands Local Authority"),$F76=1),0,IF(AND(OR(Calculations!$E$2="Shetland Health Board",Calculations!$E$2="Western Isles Health Board",Calculations!$E$2="Shetland Islands Local Authority",Calculations!$E$2="Eilean Siar Local Authority"),OR($F76=1,$F76=5)),0,new_ci(VALUE(LEFT(Options!$B$24,2)),$C76,$E76,$F76,2016,$I76+$J76,1,$H76,$G76*$H76,Options!B8))) -> 1067.968421 | M76: =IF(AND(OR(Calculations!$E$2="Orkney Health Board",Calculations!$E$2="Orkney Islands Local Authority"),$F76=1),0,IF(AND(OR(Calculations!$E$2="Shetland Health Board",Calculations!$E$2="Western Isles Health Board",Calculations!$E$2="Shetland Islands Local Authority",Calculations!$E$2="Eilean Siar Local Authority"),OR($F76=1,$F76=5)),0,new_yllv2(VALUE(LEFT(Options!$B$24,2)),$C76,$D76,$E76,$F76,2016,$I76,1,$H76,$G76*$H76,Options!B8))) -> 7379.035693 | N76: =IF(AND(OR(Calculations!$E$2="Orkney Health Board",Calculations!$E$2="Orkney Islands Local Authority"),$F76=1),0,IF(AND(OR(Calculations!$E$2="Shetland Health Board",Calculations!$E$2="Western Isles Health Board",Calculations!$E$2="Shetland Islands Local Authority",Calculations!$E$2="Eilean Siar Local Authority"),OR($F76=1,$F76=5)),0,new_yllv2(VALUE(LEFT(Options!$B$24,2)),$C76,$D76,$E76,$F76,2016,$I76+$J76,1,$H76,$G76*$H76,Options!B8))) -> 7347.620597 | O76: =IF(AND(OR(Calculations!$E$2="Orkney Health Board",Calculations!$E$2="Orkney Islands Local Authority"),$F76=1),0,IF(AND(OR(Calculations!$E$2="Shetland Health Board",Calculations!$E$2="Western Isles Health Board",Calculations!$E$2="Shetland Islands Local Authority",Calculations!$E$2="Eilean Siar Local Authority"),OR($F76=1,$F76=5)),0,hosp_count(VALUE(LEFT(Options!$B$24,2)),$C76,$E76,$F76,2016,$I76,1,$H76,$G76*$H76, Options!B8))) -> 10611.34119 | P76: =IF(AND(OR(Calculations!$E$2="Orkney Health Board",Calculations!$E$2="Orkney Islands Local Authority"),$F76=1),0,IF(AND(OR(Calculations!$E$2="Shetland Health Board",Calculations!$E$2="Western Isles Health Board",Calculations!$E$2="Shetland Islands Local Authority",Calculations!$E$2="Eilean Siar Local Authority"),OR($F76=1,$F76=5)),0,hosp_count(VALUE(LEFT(Options!$B$24,2)),$C76,$E76,$F76,2016,$I76+$J76,1,$H76,$G76*$H76, Options!B8))) -> 10567.94556 | Q76: =IF(AND(OR(Calculations!$E$2="Orkney Health Board",Calculations!$E$2="Orkney Islands Local Authority"),$F76=1),0,IF(AND(OR(Calculations!$E$2="Shetland Health Board",Calculations!$E$2="Western Isles Health Board",Calculations!$E$2="Shetland Islands Local Authority",Calculations!$E$2="Eilean Siar Local Authority"),OR($F76=1,$F76=5)),0,prem_mort(VALUE(LEFT(Options!$B$24,2)),$C76,$E76,$F76,2016,$I76,1,$H76,$G76*$H76,Options!B8))) -> 0 | R76: =IF(AND(OR(Calculations!$E$2="Orkney Health Board",Calculations!$E$2="Orkney Islands Local Authority"),$F76=1),0,IF(AND(OR(Calculations!$E$2="Shetland Health Board",Calculations!$E$2="Western Isles Health Board",Calculations!$E$2="Shetland Islands Local Authority",Calculations!$E$2="Eilean Siar Local Authority"),OR($F76=1,$F76=5)),0,prem_mort(VALUE(LEFT(Options!$B$24,2)),$C76,$E76,$F76,2016,$I76+$J76,1,$H76,$G76*$H76,Options!B8))) -> 0 | S76: 7258.625944 | T76: 7227.723474 | U76: 49939.33198 | V76: 49726.72305 | W76: 71814.70758 | X76: 71521.0176 | Y76: 0 | Z76: 0 | AA76: 18146564.86 | AB76: 18069308.68 | AC76: 124848329.9 | AD76: 124316807.6 | AE76: 179536769 | AF76: 178802544 | AG76: 0 | AH76: 0 | AI76: 2500
B77: Female 85-89 | C77: 86.73082 | D77: 92.22082 | E77: female | F77: 1 | G77: =HLOOKUP(Calculations!$E$2,'Prevalence Rates'!$C$3:$BC$249,'Prevalence Rates'!$BD77,FALSE) -> 0.02335793057 | H77: =HLOOKUP(Calculations!$E$2,'Population 2016'!$C$3:$BC$249,'Population 2016'!BD77,FALSE) -> 8869 | I77: 0 | J77: =HLOOKUP(Results!E$4,Targeting!$C$3:$F$249,Targeting!$G77,FALSE) -> 671 | K77: =IF(AND(OR(Calculations!$E$2="Orkney Health Board",Calculations!$E$2="Orkney Islands Local Authority"),$F77=1),0,IF(AND(OR(Calculations!$E$2="Shetland Health Board",Calculations!$E$2="Western Isles Health Board",Calculations!$E$2="Shetland Islands Local Authority",Calculations!$E$2="Eilean Siar Local Authority"),OR($F77=1,$F77=5)),0,new_ci(VALUE(LEFT(Options!$B$24,2)),$C77,$E77,$F77,2016,$I77,1,$H77,$G77*$H77,Options!B8))) -> 956.0127061 | L77: =IF(AND(OR(Calculations!$E$2="Orkney Health Board",Calculations!$E$2="Orkney Islands Local Authority"),$F77=1),0,IF(AND(OR(Calculations!$E$2="Shetland Health Board",Calculations!$E$2="Western Isles Health Board",Calculations!$E$2="Shetland Islands Local Authority",Calculations!$E$2="Eilean Siar Local Authority"),OR($F77=1,$F77=5)),0,new_ci(VALUE(LEFT(Options!$B$24,2)),$C77,$E77,$F77,2016,$I77+$J77,1,$H77,$G77*$H77,Options!B8))) -> 952.0804493 | M77: =IF(AND(OR(Calculations!$E$2="Orkney Health Board",Calculations!$E$2="Orkney Islands Local Authority"),$F77=1),0,IF(AND(OR(Calculations!$E$2="Shetland Health Board",Calculations!$E$2="Western Isles Health Board",Calculations!$E$2="Shetland Islands Local Authority",Calculations!$E$2="Eilean Siar Local Authority"),OR($F77=1,$F77=5)),0,new_yllv2(VALUE(LEFT(Options!$B$24,2)),$C77,$D77,$E77,$F77,2016,$I77,1,$H77,$G77*$H77,Options!B8))) -> 4292.497051 | N77: =IF(AND(OR(Calculations!$E$2="Orkney Health Board",Calculations!$E$2="Orkney Islands Local Authority"),$F77=1),0,IF(AND(OR(Calculations!$E$2="Shetland Health Board",Calculations!$E$2="Western Isles Health Board",Calculations!$E$2="Shetland Islands Local Authority",Calculations!$E$2="Eilean Siar Local Authority"),OR($F77=1,$F77=5)),0,new_yllv2(VALUE(LEFT(Options!$B$24,2)),$C77,$D77,$E77,$F77,2016,$I77+$J77,1,$H77,$G77*$H77,Options!B8))) -> 4274.841217 | O77: =IF(AND(OR(Calculations!$E$2="Orkney Health Board",Calculations!$E$2="Orkney Islands Local Authority"),$F77=1),0,IF(AND(OR(Calculations!$E$2="Shetland Health Board",Calculations!$E$2="Western Isles Health Board",Calculations!$E$2="Shetland Islands Local Authority",Calculations!$E$2="Eilean Siar Local Authority"),OR($F77=1,$F77=5)),0,hosp_count(VALUE(LEFT(Options!$B$24,2)),$C77,$E77,$F77,2016,$I77,1,$H77,$G77*$H77, Options!B8))) -> 7200.01394 | P77: =IF(AND(OR(Calculations!$E$2="Orkney Health Board",Calculations!$E$2="Orkney Islands Local Authority"),$F77=1),0,IF(AND(OR(Calculations!$E$2="Shetland Health Board",Calculations!$E$2="Western Isles Health Board",Calculations!$E$2="Shetland Islands Local Authority",Calculations!$E$2="Eilean Siar Local Authority"),OR($F77=1,$F77=5)),0,hosp_count(VALUE(LEFT(Options!$B$24,2)),$C77,$E77,$F77,2016,$I77+$J77,1,$H77,$G77*$H77, Options!B8))) -> 7170.545262 | Q77: =IF(AND(OR(Calculations!$E$2="Orkney Health Board",Calculations!$E$2="Orkney Islands Local Authority"),$F77=1),0,IF(AND(OR(Calculations!$E$2="Shetland Health Board",Calculations!$E$2="Western Isles Health Board",Calculations!$E$2="Shetland Islands Local Authority",Calculations!$E$2="Eilean Siar Local Authority"),OR($F77=1,$F77=5)),0,prem_mort(VALUE(LEFT(Options!$B$24,2)),$C77,$E77,$F77,2016,$I77,1,$H77,$G77*$H77,Options!B8))) -> 0 | R77: =IF(AND(OR(Calculations!$E$2="Orkney Health Board",Calculations!$E$2="Orkney Islands Local Authority"),$F77=1),0,IF(AND(OR(Calculations!$E$2="Shetland Health Board",Calculations!$E$2="Western Isles Health Board",Calculations!$E$2="Shetland Islands Local Authority",Calculations!$E$2="Eilean Siar Local Authority"),OR($F77=1,$F77=5)),0,prem_mort(VALUE(LEFT(Options!$B$24,2)),$C77,$E77,$F77,2016,$I77+$J77,1,$H77,$G77*$H77,Options!B8))) -> 0 | S77: 10779.26154 | T77: 10734.92445 | U77: 48398.88432 | V77: 48199.81077 | W77: 81181.8011 | X77: 80849.53503 | Y77: 0 | Z77: 0 | AA77: 16168892.31 | AB77: 16102386.67 | AC77: 72598326.48 | AD77: 72299716.16 | AE77: 121772701.7 | AF77: 121274302.5 | AG77: 0 | AH77: 0 | AI77: 1500
B78: Female 90+ | C78: 92.779343 | D78: 96.27934 | E78: female | F78: 1 | G78: =HLOOKUP(Calculations!$E$2,'Prevalence Rates'!$C$3:$BC$249,'Prevalence Rates'!$BD78,FALSE) -> 0.02335793057 | H78: =HLOOKUP(Calculations!$E$2,'Population 2016'!$C$3:$BC$249,'Population 2016'!BD78,FALSE) -> 4825 | I78: 0 | J78: =HLOOKUP(Results!E$4,Targeting!$C$3:$F$249,Targeting!$G78,FALSE) -> 365 | K78: =IF(AND(OR(Calculations!$E$2="Orkney Health Board",Calculations!$E$2="Orkney Islands Local Authority"),$F78=1),0,IF(AND(OR(Calculations!$E$2="Shetland Health Board",Calculations!$E$2="Western Isles Health Board",Calculations!$E$2="Shetland Islands Local Authority",Calculations!$E$2="Eilean Siar Local Authority"),OR($F78=1,$F78=5)),0,new_ci(VALUE(LEFT(Options!$B$24,2)),$C78,$E78,$F78,2016,$I78,1,$H78,$G78*$H78,Options!B8))) -> 837.9277516 | L78: =IF(AND(OR(Calculations!$E$2="Orkney Health Board",Calculations!$E$2="Orkney Islands Local Authority"),$F78=1),0,IF(AND(OR(Calculations!$E$2="Shetland Health Board",Calculations!$E$2="Western Isles Health Board",Calculations!$E$2="Shetland Islands Local Authority",Calculations!$E$2="Eilean Siar Local Authority"),OR($F78=1,$F78=5)),0,new_ci(VALUE(LEFT(Options!$B$24,2)),$C78,$E78,$F78,2016,$I78+$J78,1,$H78,$G78*$H78,Options!B8))) -> 834.7154586 | M78: =IF(AND(OR(Calculations!$E$2="Orkney Health Board",Calculations!$E$2="Orkney Islands Local Authority"),$F78=1),0,IF(AND(OR(Calculations!$E$2="Shetland Health Board",Calculations!$E$2="Western Isles Health Board",Calculations!$E$2="Shetland Islands Local Authority",Calculations!$E$2="Eilean Siar Local Authority"),OR($F78=1,$F78=5)),0,new_yllv2(VALUE(LEFT(Options!$B$24,2)),$C78,$D78,$E78,$F78,2016,$I78,1,$H78,$G78*$H78,Options!B8))) -> 2094.816865 | N78: =IF(AND(OR(Calculations!$E$2="Orkney Health Board",Calculations!$E$2="Orkney Islands Local Authority"),$F78=1),0,IF(AND(OR(Calculations!$E$2="Shetland Health Board",Calculations!$E$2="Western Isles Health Board",Calculations!$E$2="Shetland Islands Local Authority",Calculations!$E$2="Eilean Siar Local Authority"),OR($F78=1,$F78=5)),0,new_yllv2(VALUE(LEFT(Options!$B$24,2)),$C78,$D78,$E78,$F78,2016,$I78+$J78,1,$H78,$G78*$H78,Options!B8))) -> 2086.786142 | O78: =IF(AND(OR(Calculations!$E$2="Orkney Health Board",Calculations!$E$2="Orkney Islands Local Authority"),$F78=1),0,IF(AND(OR(Calculations!$E$2="Shetland Health Board",Calculations!$E$2="Western Isles Health Board",Calculations!$E$2="Shetland Islands Local Authority",Calculations!$E$2="Eilean Siar Local Authority"),OR($F78=1,$F78=5)),0,hosp_count(VALUE(LEFT(Options!$B$24,2)),$C78,$E78,$F78,2016,$I78,1,$H78,$G78*$H78, Options!B8))) -> 4560.691784 | P78: =IF(AND(OR(Calculations!$E$2="Orkney Health Board",Calculations!$E$2="Orkney Islands Local Authority"),$F78=1),0,IF(AND(OR(Calculations!$E$2="Shetland Health Board",Calculations!$E$2="Western Isles Health Board",Calculations!$E$2="Shetland Islands Local Authority",Calculations!$E$2="Eilean Siar Local Authority"),OR($F78=1,$F78=5)),0,hosp_count(VALUE(LEFT(Options!$B$24,2)),$C78,$E78,$F78,2016,$I78+$J78,1,$H78,$G78*$H78, Options!B8))) -> 4542.027741 | Q78: =IF(AND(OR(Calculations!$E$2="Orkney Health Board",Calculations!$E$2="Orkney Islands Local Authority"),$F78=1),0,IF(AND(OR(Calculations!$E$2="Shetland Health Board",Calculations!$E$2="Western Isles Health Board",Calculations!$E$2="Shetland Islands Local Authority",Calculations!$E$2="Eilean Siar Local Authority"),OR($F78=1,$F78=5)),0,prem_mort(VALUE(LEFT(Options!$B$24,2)),$C78,$E78,$F78,2016,$I78,1,$H78,$G78*$H78,Options!B8))) -> 0 | R78: =IF(AND(OR(Calculations!$E$2="Orkney Health Board",Calculations!$E$2="Orkney Islands Local Authority"),$F78=1),0,IF(AND(OR(Calculations!$E$2="Shetland Health Board",Calculations!$E$2="Western Isles Health Board",Calculations!$E$2="Shetland Islands Local Authority",Calculations!$E$2="Eilean Siar Local Authority"),OR($F78=1,$F78=5)),0,prem_mort(VALUE(LEFT(Options!$B$24,2)),$C78,$E78,$F78,2016,$I78+$J78,1,$H78,$G78*$H78,Options!B8))) -> 0 | S78: 17366.37827 | T78: 17299.80225 | U78: 43415.89358 | V78: 43249.45373 | W78: 94522.10951 | X78: 94135.28998 | Y78: 0 | Z78: 0 | AA78: 17366378.27 | AB78: 17299802.25 | AC78: 43415893.58 | AD78: 43249453.73 | AE78: 94522109.51 | AF78: 94135289.98 | AG78: 0 | AH78: 0 | AI78: 1000
B79: Male 0-4 | C79: 2.0320823 | D79: 77.402082 | E79: male | F79: 1 | G79: =HLOOKUP(Calculations!$E$2,'Prevalence Rates'!$C$3:$BC$249,'Prevalence Rates'!$BD79,FALSE) -> 0 | H79: =HLOOKUP(Calculations!$E$2,'Population 2016'!$C$3:$BC$249,'Population 2016'!BD79,FALSE) -> 0 | I79: 0 | J79: =HLOOKUP(Results!E$4,Targeting!$C$3:$F$249,Targeting!$G79,FALSE) -> 0 | K79: =IF(AND(OR(Calculations!$E$2="Orkney Health Board",Calculations!$E$2="Orkney Islands Local Authority"),$F79=1),0,IF(AND(OR(Calculations!$E$2="Shetland Health Board",Calculations!$E$2="Western Isles Health Board",Calculations!$E$2="Shetland Islands Local Authority",Calculations!$E$2="Eilean Siar Local Authority"),OR($F79=1,$F79=5)),0,new_ci(VALUE(LEFT(Options!$B$24,2)),$C79,$E79,$F79,2016,$I79,1,$H79,$G79*$H79,Options!B8))) ->  | L79: =IF(AND(OR(Calculations!$E$2="Orkney Health Board",Calculations!$E$2="Orkney Islands Local Authority"),$F79=1),0,IF(AND(OR(Calculations!$E$2="Shetland Health Board",Calculations!$E$2="Western Isles Health Board",Calculations!$E$2="Shetland Islands Local Authority",Calculations!$E$2="Eilean Siar Local Authority"),OR($F79=1,$F79=5)),0,new_ci(VALUE(LEFT(Options!$B$24,2)),$C79,$E79,$F79,2016,$I79+$J79,1,$H79,$G79*$H79,Options!B8))) ->  | M79: =IF(AND(OR(Calculations!$E$2="Orkney Health Board",Calculations!$E$2="Orkney Islands Local Authority"),$F79=1),0,IF(AND(OR(Calculations!$E$2="Shetland Health Board",Calculations!$E$2="Western Isles Health Board",Calculations!$E$2="Shetland Islands Local Authority",Calculations!$E$2="Eilean Siar Local Authority"),OR($F79=1,$F79=5)),0,new_yllv2(VALUE(LEFT(Options!$B$24,2)),$C79,$D79,$E79,$F79,2016,$I79,1,$H79,$G79*$H79,Options!B8))) ->  | N79: =IF(AND(OR(Calculations!$E$2="Orkney Health Board",Calculations!$E$2="Orkney Islands Local Authority"),$F79=1),0,IF(AND(OR(Calculations!$E$2="Shetland Health Board",Calculations!$E$2="Western Isles Health Board",Calculations!$E$2="Shetland Islands Local Authority",Calculations!$E$2="Eilean Siar Local Authority"),OR($F79=1,$F79=5)),0,new_yllv2(VALUE(LEFT(Options!$B$24,2)),$C79,$D79,$E79,$F79,2016,$I79+$J79,1,$H79,$G79*$H79,Options!B8))) ->  | O79: =IF(AND(OR(Calculations!$E$2="Orkney Health Board",Calculations!$E$2="Orkney Islands Local Authority"),$F79=1),0,IF(AND(OR(Calculations!$E$2="Shetland Health Board",Calculations!$E$2="Western Isles Health Board",Calculations!$E$2="Shetland Islands Local Authority",Calculations!$E$2="Eilean Siar Local Authority"),OR($F79=1,$F79=5)),0,hosp_count(VALUE(LEFT(Options!$B$24,2)),$C79,$E79,$F79,2016,$I79,1,$H79,$G79*$H79, Options!B8))) ->  | P79: =IF(AND(OR(Calculations!$E$2="Orkney Health Board",Calculations!$E$2="Orkney Islands Local Authority"),$F79=1),0,IF(AND(OR(Calculations!$E$2="Shetland Health Board",Calculations!$E$2="Western Isles Health Board",Calculations!$E$2="Shetland Islands Local Authority",Calculations!$E$2="Eilean Siar Local Authority"),OR($F79=1,$F79=5)),0,hosp_count(VALUE(LEFT(Options!$B$24,2)),$C79,$E79,$F79,2016,$I79+$J79,1,$H79,$G79*$H79, Options!B8))) ->  | Q79: =IF(AND(OR(Calculations!$E$2="Orkney Health Board",Calculations!$E$2="Orkney Islands Local Authority"),$F79=1),0,IF(AND(OR(Calculations!$E$2="Shetland Health Board",Calculations!$E$2="Western Isles Health Board",Calculations!$E$2="Shetland Islands Local Authority",Calculations!$E$2="Eilean Siar Local Authority"),OR($F79=1,$F79=5)),0,prem_mort(VALUE(LEFT(Options!$B$24,2)),$C79,$E79,$F79,2016,$I79,1,$H79,$G79*$H79,Options!B8))) ->  | R79: =IF(AND(OR(Calculations!$E$2="Orkney Health Board",Calculations!$E$2="Orkney Islands Local Authority"),$F79=1),0,IF(AND(OR(Calculations!$E$2="Shetland Health Board",Calculations!$E$2="Western Isles Health Board",Calculations!$E$2="Shetland Islands Local Authority",Calculations!$E$2="Eilean Siar Local Authority"),OR($F79=1,$F79=5)),0,prem_mort(VALUE(LEFT(Options!$B$24,2)),$C79,$E79,$F79,2016,$I79+$J79,1,$H79,$G79*$H79,Options!B8))) ->  | AI79: 5000
B80: Male 5-9 | C80: 6.9784756 | D80: 77.398476 | E80: male | F80: 1 | G80: =HLOOKUP(Calculations!$E$2,'Prevalence Rates'!$C$3:$BC$249,'Prevalence Rates'!$BD80,FALSE) -> 0 | H80: =HLOOKUP(Calculations!$E$2,'Population 2016'!$C$3:$BC$249,'Population 2016'!BD80,FALSE) -> 0 | I80: 0 | J80: =HLOOKUP(Results!E$4,Targeting!$C$3:$F$249,Targeting!$G80,FALSE) -> 0 | K80: =IF(AND(OR(Calculations!$E$2="Orkney Health Board",Calculations!$E$2="Orkney Islands Local Authority"),$F80=1),0,IF(AND(OR(Calculations!$E$2="Shetland Health Board",Calculations!$E$2="Western Isles Health Board",Calculations!$E$2="Shetland Islands Local Authority",Calculations!$E$2="Eilean Siar Local Authority"),OR($F80=1,$F80=5)),0,new_ci(VALUE(LEFT(Options!$B$24,2)),$C80,$E80,$F80,2016,$I80,1,$H80,$G80*$H80,Options!B8))) ->  | L80: =IF(AND(OR(Calculations!$E$2="Orkney Health Board",Calculations!$E$2="Orkney Islands Local Authority"),$F80=1),0,IF(AND(OR(Calculations!$E$2="Shetland Health Board",Calculations!$E$2="Western Isles Health Board",Calculations!$E$2="Shetland Islands Local Authority",Calculations!$E$2="Eilean Siar Local Authority"),OR($F80=1,$F80=5)),0,new_ci(VALUE(LEFT(Options!$B$24,2)),$C80,$E80,$F80,2016,$I80+$J80,1,$H80,$G80*$H80,Options!B8))) ->  | M80: =IF(AND(OR(Calculations!$E$2="Orkney Health Board",Calculations!$E$2="Orkney Islands Local Authority"),$F80=1),0,IF(AND(OR(Calculations!$E$2="Shetland Health Board",Calculations!$E$2="Western Isles Health Board",Calculations!$E$2="Shetland Islands Local Authority",Calculations!$E$2="Eilean Siar Local Authority"),OR($F80=1,$F80=5)),0,new_yllv2(VALUE(LEFT(Options!$B$24,2)),$C80,$D80,$E80,$F80,2016,$I80,1,$H80,$G80*$H80,Options!B8))) ->  | N80: =IF(AND(OR(Calculations!$E$2="Orkney Health Board",Calculations!$E$2="Orkney Islands Local Authority"),$F80=1),0,IF(AND(OR(Calculations!$E$2="Shetland Health Board",Calculations!$E$2="Western Isles Health Board",Calculations!$E$2="Shetland Islands Local Authority",Calculations!$E$2="Eilean Siar Local Authority"),OR($F80=1,$F80=5)),0,new_yllv2(VALUE(LEFT(Options!$B$24,2)),$C80,$D80,$E80,$F80,2016,$I80+$J80,1,$H80,$G80*$H80,Options!B8))) ->  | O80: =IF(AND(OR(Calculations!$E$2="Orkney Health Board",Calculations!$E$2="Orkney Islands Local Authority"),$F80=1),0,IF(AND(OR(Calculations!$E$2="Shetland Health Board",Calculations!$E$2="Western Isles Health Board",Calculations!$E$2="Shetland Islands Local Authority",Calculations!$E$2="Eilean Siar Local Authority"),OR($F80=1,$F80=5)),0,hosp_count(VALUE(LEFT(Options!$B$24,2)),$C80,$E80,$F80,2016,$I80,1,$H80,$G80*$H80, Options!B8))) ->  | P80: =IF(AND(OR(Calculations!$E$2="Orkney Health Board",Calculations!$E$2="Orkney Islands Local Authority"),$F80=1),0,IF(AND(OR(Calculations!$E$2="Shetland Health Board",Calculations!$E$2="Western Isles Health Board",Calculations!$E$2="Shetland Islands Local Authority",Calculations!$E$2="Eilean Siar Local Authority"),OR($F80=1,$F80=5)),0,hosp_count(VALUE(LEFT(Options!$B$24,2)),$C80,$E80,$F80,2016,$I80+$J80,1,$H80,$G80*$H80, Options!B8))) ->  | Q80: =IF(AND(OR(Calculations!$E$2="Orkney Health Board",Calculations!$E$2="Orkney Islands Local Authority"),$F80=1),0,IF(AND(OR(Calculations!$E$2="Shetland Health Board",Calculations!$E$2="Western Isles Health Board",Calculations!$E$2="Shetland Islands Local Authority",Calculations!$E$2="Eilean Siar Local Authority"),OR($F80=1,$F80=5)),0,prem_mort(VALUE(LEFT(Options!$B$24,2)),$C80,$E80,$F80,2016,$I80,1,$H80,$G80*$H80,Options!B8))) ->  | R80: =IF(AND(OR(Calculations!$E$2="Orkney Health Board",Calculations!$E$2="Orkney Islands Local Authority"),$F80=1),0,IF(AND(OR(Calculations!$E$2="Shetland Health Board",Calculations!$E$2="Western Isles Health Board",Calculations!$E$2="Shetland Islands Local Authority",Calculations!$E$2="Eilean Siar Local Authority"),OR($F80=1,$F80=5)),0,prem_mort(VALUE(LEFT(Options!$B$24,2)),$C80,$E80,$F80,2016,$I80+$J80,1,$H80,$G80*$H80,Options!B8))) ->  | AI80: 5500
B81: Male 10-15 | C81: 12.471144 | D81: 77.92114 | E81: male | F81: 1 | G81: =HLOOKUP(Calculations!$E$2,'Prevalence Rates'!$C$3:$BC$249,'Prevalence Rates'!$BD81,FALSE) -> 0 | H81: =HLOOKUP(Calculations!$E$2,'Population 2016'!$C$3:$BC$249,'Population 2016'!BD81,FALSE) -> 0 | I81: 0 | J81: =HLOOKUP(Results!E$4,Targeting!$C$3:$F$249,Targeting!$G81,FALSE) -> 0 | K81: =IF(AND(OR(Calculations!$E$2="Orkney Health Board",Calculations!$E$2="Orkney Islands Local Authority"),$F81=1),0,IF(AND(OR(Calculations!$E$2="Shetland Health Board",Calculations!$E$2="Western Isles Health Board",Calculations!$E$2="Shetland Islands Local Authority",Calculations!$E$2="Eilean Siar Local Authority"),OR($F81=1,$F81=5)),0,new_ci(VALUE(LEFT(Options!$B$24,2)),$C81,$E81,$F81,2016,$I81,1,$H81,$G81*$H81,Options!B8))) ->  | L81: =IF(AND(OR(Calculations!$E$2="Orkney Health Board",Calculations!$E$2="Orkney Islands Local Authority"),$F81=1),0,IF(AND(OR(Calculations!$E$2="Shetland Health Board",Calculations!$E$2="Western Isles Health Board",Calculations!$E$2="Shetland Islands Local Authority",Calculations!$E$2="Eilean Siar Local Authority"),OR($F81=1,$F81=5)),0,new_ci(VALUE(LEFT(Options!$B$24,2)),$C81,$E81,$F81,2016,$I81+$J81,1,$H81,$G81*$H81,Options!B8))) ->  | M81: =IF(AND(OR(Calculations!$E$2="Orkney Health Board",Calculations!$E$2="Orkney Islands Local Authority"),$F81=1),0,IF(AND(OR(Calculations!$E$2="Shetland Health Board",Calculations!$E$2="Western Isles Health Board",Calculations!$E$2="Shetland Islands Local Authority",Calculations!$E$2="Eilean Siar Local Authority"),OR($F81=1,$F81=5)),0,new_yllv2(VALUE(LEFT(Options!$B$24,2)),$C81,$D81,$E81,$F81,2016,$I81,1,$H81,$G81*$H81,Options!B8))) ->  | N81: =IF(AND(OR(Calculations!$E$2="Orkney Health Board",Calculations!$E$2="Orkney Islands Local Authority"),$F81=1),0,IF(AND(OR(Calculations!$E$2="Shetland Health Board",Calculations!$E$2="Western Isles Health Board",Calculations!$E$2="Shetland Islands Local Authority",Calculations!$E$2="Eilean Siar Local Authority"),OR($F81=1,$F81=5)),0,new_yllv2(VALUE(LEFT(Options!$B$24,2)),$C81,$D81,$E81,$F81,2016,$I81+$J81,1,$H81,$G81*$H81,Options!B8))) ->  | O81: =IF(AND(OR(Calculations!$E$2="Orkney Health Board",Calculations!$E$2="Orkney Islands Local Authority"),$F81=1),0,IF(AND(OR(Calculations!$E$2="Shetland Health Board",Calculations!$E$2="Western Isles Health Board",Calculations!$E$2="Shetland Islands Local Authority",Calculations!$E$2="Eilean Siar Local Authority"),OR($F81=1,$F81=5)),0,hosp_count(VALUE(LEFT(Options!$B$24,2)),$C81,$E81,$F81,2016,$I81,1,$H81,$G81*$H81, Options!B8))) ->  | P81: =IF(AND(OR(Calculations!$E$2="Orkney Health Board",Calculations!$E$2="Orkney Islands Local Authority"),$F81=1),0,IF(AND(OR(Calculations!$E$2="Shetland Health Board",Calculations!$E$2="Western Isles Health Board",Calculations!$E$2="Shetland Islands Local Authority",Calculations!$E$2="Eilean Siar Local Authority"),OR($F81=1,$F81=5)),0,hosp_count(VALUE(LEFT(Options!$B$24,2)),$C81,$E81,$F81,2016,$I81+$J81,1,$H81,$G81*$H81, Options!B8))) ->  | Q81: =IF(AND(OR(Calculations!$E$2="Orkney Health Board",Calculations!$E$2="Orkney Islands Local Authority"),$F81=1),0,IF(AND(OR(Calculations!$E$2="Shetland Health Board",Calculations!$E$2="Western Isles Health Board",Calculations!$E$2="Shetland Islands Local Authority",Calculations!$E$2="Eilean Siar Local Authority"),OR($F81=1,$F81=5)),0,prem_mort(VALUE(LEFT(Options!$B$24,2)),$C81,$E81,$F81,2016,$I81,1,$H81,$G81*$H81,Options!B8))) ->  | R81: =IF(AND(OR(Calculations!$E$2="Orkney Health Board",Calculations!$E$2="Orkney Islands Local Authority"),$F81=1),0,IF(AND(OR(Calculations!$E$2="Shetland Health Board",Calculations!$E$2="Western Isles Health Board",Calculations!$E$2="Shetland Islands Local Authority",Calculations!$E$2="Eilean Siar Local Authority"),OR($F81=1,$F81=5)),0,prem_mort(VALUE(LEFT(Options!$B$24,2)),$C81,$E81,$F81,2016,$I81+$J81,1,$H81,$G81*$H81,Options!B8))) ->  | AI81: 6600
B82: Male 16-19 | C82: 17.556318 | D82: 77.07632 | E82: male | F82: 1 | G82: =HLOOKUP(Calculations!$E$2,'Prevalence Rates'!$C$3:$BC$249,'Prevalence Rates'!$BD82,FALSE) -> 0.1706298432 | H82: =HLOOKUP(Calculations!$E$2,'Population 2016'!$C$3:$BC$249,'Population 2016'!BD82,FALSE) -> 25359 | I82: 0 | J82: =HLOOKUP(Results!E$4,Targeting!$C$3:$F$249,Targeting!$G82,FALSE) -> 1917 | K82: =IF(AND(OR(Calculations!$E$2="Orkney Health Board",Calculations!$E$2="Orkney Islands Local Authority"),$F82=1),0,IF(AND(OR(Calculations!$E$2="Shetland Health Board",Calculations!$E$2="Western Isles Health Board",Calculations!$E$2="Shetland Islands Local Authority",Calculations!$E$2="Eilean Siar Local Authority"),OR($F82=1,$F82=5)),0,new_ci(VALUE(LEFT(Options!$B$24,2)),$C82,$E82,$F82,2016,$I82,1,$H82,$G82*$H82,Options!B8))) -> 19.1721128 | L82: =IF(AND(OR(Calculations!$E$2="Orkney Health Board",Calculations!$E$2="Orkney Islands Local Authority"),$F82=1),0,IF(AND(OR(Calculations!$E$2="Shetland Health Board",Calculations!$E$2="Western Isles Health Board",Calculations!$E$2="Shetland Islands Local Authority",Calculations!$E$2="Eilean Siar Local Authority"),OR($F82=1,$F82=5)),0,new_ci(VALUE(LEFT(Options!$B$24,2)),$C82,$E82,$F82,2016,$I82+$J82,1,$H82,$G82*$H82,Options!B8))) -> 19.08211118 | M82: =IF(AND(OR(Calculations!$E$2="Orkney Health Board",Calculations!$E$2="Orkney Islands Local Authority"),$F82=1),0,IF(AND(OR(Calculations!$E$2="Shetland Health Board",Calculations!$E$2="Western Isles Health Board",Calculations!$E$2="Shetland Islands Local Authority",Calculations!$E$2="Eilean Siar Local Authority"),OR($F82=1,$F82=5)),0,new_yllv2(VALUE(LEFT(Options!$B$24,2)),$C82,$D82,$E82,$F82,2016,$I82,1,$H82,$G82*$H82,Options!B8))) -> 1121.952079 | N82: =IF(AND(OR(Calculations!$E$2="Orkney Health Board",Calculations!$E$2="Orkney Islands Local Authority"),$F82=1),0,IF(AND(OR(Calculations!$E$2="Shetland Health Board",Calculations!$E$2="Western Isles Health Board",Calculations!$E$2="Shetland Islands Local Authority",Calculations!$E$2="Eilean Siar Local Authority"),OR($F82=1,$F82=5)),0,new_yllv2(VALUE(LEFT(Options!$B$24,2)),$C82,$D82,$E82,$F82,2016,$I82+$J82,1,$H82,$G82*$H82,Options!B8))) -> 1116.685184 | O82: =IF(AND(OR(Calculations!$E$2="Orkney Health Board",Calculations!$E$2="Orkney Islands Local Authority"),$F82=1),0,IF(AND(OR(Calculations!$E$2="Shetland Health Board",Calculations!$E$2="Western Isles Health Board",Calculations!$E$2="Shetland Islands Local Authority",Calculations!$E$2="Eilean Siar Local Authority"),OR($F82=1,$F82=5)),0,hosp_count(VALUE(LEFT(Options!$B$24,2)),$C82,$E82,$F82,2016,$I82,1,$H82,$G82*$H82, Options!B8))) -> 2447.125645 | P82: =IF(AND(OR(Calculations!$E$2="Orkney Health Board",Calculations!$E$2="Orkney Islands Local Authority"),$F82=1),0,IF(AND(OR(Calculations!$E$2="Shetland Health Board",Calculations!$E$2="Western Isles Health Board",Calculations!$E$2="Shetland Islands Local Authority",Calculations!$E$2="Eilean Siar Local Authority"),OR($F82=1,$F82=5)),0,hosp_count(VALUE(LEFT(Options!$B$24,2)),$C82,$E82,$F82,2016,$I82+$J82,1,$H82,$G82*$H82, Options!B8))) -> 2437.085093 | Q82: =IF(AND(OR(Calculations!$E$2="Orkney Health Board",Calculations!$E$2="Orkney Islands Local Authority"),$F82=1),0,IF(AND(OR(Calculations!$E$2="Shetland Health Board",Calculations!$E$2="Western Isles Health Board",Calculations!$E$2="Shetland Islands Local Authority",Calculations!$E$2="Eilean Siar Local Authority"),OR($F82=1,$F82=5)),0,prem_mort(VALUE(LEFT(Options!$B$24,2)),$C82,$E82,$F82,2016,$I82,1,$H82,$G82*$H82,Options!B8))) -> 19.1721128 | R82: =IF(AND(OR(Calculations!$E$2="Orkney Health Board",Calculations!$E$2="Orkney Islands Local Authority"),$F82=1),0,IF(AND(OR(Calculations!$E$2="Shetland Health Board",Calculations!$E$2="Western Isles Health Board",Calculations!$E$2="Shetland Islands Local Authority",Calculations!$E$2="Eilean Siar Local Authority"),OR($F82=1,$F82=5)),0,prem_mort(VALUE(LEFT(Options!$B$24,2)),$C82,$E82,$F82,2016,$I82+$J82,1,$H82,$G82*$H82,Options!B8))) -> 19.08211118 | S82: 75.60279505 | T82: 75.24788509 | U82: 4424.275718 | V82: 4403.506386 | W82: 9649.92959 | X82: 9610.335949 | Y82: 75.60279505 | Z82: 75.24788509 | AA82: 332652.2982 | AB82: 331090.6944 | AC82: 19466813.16 | AD82: 19375428.1 | AE82: 42459690.2 | AF82: 42285478.18 | AG82: 332652.2982 | AH82: 331090.6944 | AI82: 4400
B83: Male 20-24 | C83: 22.054632 | D83: 77.70463 | E83: male | F83: 1 | G83: =HLOOKUP(Calculations!$E$2,'Prevalence Rates'!$C$3:$BC$249,'Prevalence Rates'!$BD83,FALSE) -> 0.1706298432 | H83: =HLOOKUP(Calculations!$E$2,'Population 2016'!$C$3:$BC$249,'Population 2016'!BD83,FALSE) -> 37180 | I83: 0 | J83: =HLOOKUP(Results!E$4,Targeting!$C$3:$F$249,Targeting!$G83,FALSE) -> 2811 | K83: =IF(AND(OR(Calculations!$E$2="Orkney Health Board",Calculations!$E$2="Orkney Islands Local Authority"),$F83=1),0,IF(AND(OR(Calculations!$E$2="Shetland Health Board",Calculations!$E$2="Western Isles Health Board",Calculations!$E$2="Shetland Islands Local Authority",Calculations!$E$2="Eilean Siar Local Authority"),OR($F83=1,$F83=5)),0,new_ci(VALUE(LEFT(Options!$B$24,2)),$C83,$E83,$F83,2016,$I83,1,$H83,$G83*$H83,Options!B8))) -> 39.47021447 | L83: =IF(AND(OR(Calculations!$E$2="Orkney Health Board",Calculations!$E$2="Orkney Islands Local Authority"),$F83=1),0,IF(AND(OR(Calculations!$E$2="Shetland Health Board",Calculations!$E$2="Western Isles Health Board",Calculations!$E$2="Shetland Islands Local Authority",Calculations!$E$2="Eilean Siar Local Authority"),OR($F83=1,$F83=5)),0,new_ci(VALUE(LEFT(Options!$B$24,2)),$C83,$E83,$F83,2016,$I83+$J83,1,$H83,$G83*$H83,Options!B8))) -> 39.28495158 | M83: =IF(AND(OR(Calculations!$E$2="Orkney Health Board",Calculations!$E$2="Orkney Islands Local Authority"),$F83=1),0,IF(AND(OR(Calculations!$E$2="Shetland Health Board",Calculations!$E$2="Western Isles Health Board",Calculations!$E$2="Shetland Islands Local Authority",Calculations!$E$2="Eilean Siar Local Authority"),OR($F83=1,$F83=5)),0,new_yllv2(VALUE(LEFT(Options!$B$24,2)),$C83,$D83,$E83,$F83,2016,$I83,1,$H83,$G83*$H83,Options!B8))) -> 2157.047142 | N83: =IF(AND(OR(Calculations!$E$2="Orkney Health Board",Calculations!$E$2="Orkney Islands Local Authority"),$F83=1),0,IF(AND(OR(Calculations!$E$2="Shetland Health Board",Calculations!$E$2="Western Isles Health Board",Calculations!$E$2="Shetland Islands Local Authority",Calculations!$E$2="Eilean Siar Local Authority"),OR($F83=1,$F83=5)),0,new_yllv2(VALUE(LEFT(Options!$B$24,2)),$C83,$D83,$E83,$F83,2016,$I83+$J83,1,$H83,$G83*$H83,Options!B8))) -> 2146.922525 | O83: =IF(AND(OR(Calculations!$E$2="Orkney Health Board",Calculations!$E$2="Orkney Islands Local Authority"),$F83=1),0,IF(AND(OR(Calculations!$E$2="Shetland Health Board",Calculations!$E$2="Western Isles Health Board",Calculations!$E$2="Shetland Islands Local Authority",Calculations!$E$2="Eilean Siar Local Authority"),OR($F83=1,$F83=5)),0,hosp_count(VALUE(LEFT(Options!$B$24,2)),$C83,$E83,$F83,2016,$I83,1,$H83,$G83*$H83, Options!B8))) -> 4208.978207 | P83: =IF(AND(OR(Calculations!$E$2="Orkney Health Board",Calculations!$E$2="Orkney Islands Local Authority"),$F83=1),0,IF(AND(OR(Calculations!$E$2="Shetland Health Board",Calculations!$E$2="Western Isles Health Board",Calculations!$E$2="Shetland Islands Local Authority",Calculations!$E$2="Eilean Siar Local Authority"),OR($F83=1,$F83=5)),0,hosp_count(VALUE(LEFT(Options!$B$24,2)),$C83,$E83,$F83,2016,$I83+$J83,1,$H83,$G83*$H83, Options!B8))) -> 4191.706334 | Q83: =IF(AND(OR(Calculations!$E$2="Orkney Health Board",Calculations!$E$2="Orkney Islands Local Authority"),$F83=1),0,IF(AND(OR(Calculations!$E$2="Shetland Health Board",Calculations!$E$2="Western Isles Health Board",Calculations!$E$2="Shetland Islands Local Authority",Calculations!$E$2="Eilean Siar Local Authority"),OR($F83=1,$F83=5)),0,prem_mort(VALUE(LEFT(Options!$B$24,2)),$C83,$E83,$F83,2016,$I83,1,$H83,$G83*$H83,Options!B8))) -> 39.47021447 | R83: =IF(AND(OR(Calculations!$E$2="Orkney Health Board",Calculations!$E$2="Orkney Islands Local Authority"),$F83=1),0,IF(AND(OR(Calculations!$E$2="Shetland Health Board",Calculations!$E$2="Western Isles Health Board",Calculations!$E$2="Shetland Islands Local Authority",Calculations!$E$2="Eilean Siar Local Authority"),OR($F83=1,$F83=5)),0,prem_mort(VALUE(LEFT(Options!$B$24,2)),$C83,$E83,$F83,2016,$I83+$J83,1,$H83,$G83*$H83,Options!B8))) -> 39.28495158 | S83: 106.1598022 | T83: 105.6615158 | U83: 5801.632979 | V83: 5774.401627 | W83: 11320.54386 | X83: 11274.08912 | Y83: 106.1598022 | Z83: 105.6615158 | AA83: 636958.8133 | AB83: 633969.0948 | AC83: 34809797.88 | AD83: 34646409.76 | AE83: 67923263.16 | AF83: 67644534.7 | AG83: 636958.8133 | AH83: 633969.0948 | AI83: 6000
B84: Male 25-29 | C84: 26.959763 | D84: 77.78976 | E84: male | F84: 1 | G84: =HLOOKUP(Calculations!$E$2,'Prevalence Rates'!$C$3:$BC$249,'Prevalence Rates'!$BD84,FALSE) -> 0.1593134204 | H84: =HLOOKUP(Calculations!$E$2,'Population 2016'!$C$3:$BC$249,'Population 2016'!BD84,FALSE) -> 42600 | I84: 0 | J84: =HLOOKUP(Results!E$4,Targeting!$C$3:$F$249,Targeting!$G84,FALSE) -> 3221 | K84: =IF(AND(OR(Calculations!$E$2="Orkney Health Board",Calculations!$E$2="Orkney Islands Local Authority"),$F84=1),0,IF(AND(OR(Calculations!$E$2="Shetland Health Board",Calculations!$E$2="Western Isles Health Board",Calculations!$E$2="Shetland Islands Local Authority",Calculations!$E$2="Eilean Siar Local Authority"),OR($F84=1,$F84=5)),0,new_ci(VALUE(LEFT(Options!$B$24,2)),$C84,$E84,$F84,2016,$I84,1,$H84,$G84*$H84,Options!B8))) -> 65.47760012 | L84: =IF(AND(OR(Calculations!$E$2="Orkney Health Board",Calculations!$E$2="Orkney Islands Local Authority"),$F84=1),0,IF(AND(OR(Calculations!$E$2="Shetland Health Board",Calculations!$E$2="Western Isles Health Board",Calculations!$E$2="Shetland Islands Local Authority",Calculations!$E$2="Eilean Siar Local Authority"),OR($F84=1,$F84=5)),0,new_ci(VALUE(LEFT(Options!$B$24,2)),$C84,$E84,$F84,2016,$I84+$J84,1,$H84,$G84*$H84,Options!B8))) -> 65.16836511 | M84: =IF(AND(OR(Calculations!$E$2="Orkney Health Board",Calculations!$E$2="Orkney Islands Local Authority"),$F84=1),0,IF(AND(OR(Calculations!$E$2="Shetland Health Board",Calculations!$E$2="Western Isles Health Board",Calculations!$E$2="Shetland Islands Local Authority",Calculations!$E$2="Eilean Siar Local Authority"),OR($F84=1,$F84=5)),0,new_yllv2(VALUE(LEFT(Options!$B$24,2)),$C84,$D84,$E84,$F84,2016,$I84,1,$H84,$G84*$H84,Options!B8))) -> 3262.748617 | N84: =IF(AND(OR(Calculations!$E$2="Orkney Health Board",Calculations!$E$2="Orkney Islands Local Authority"),$F84=1),0,IF(AND(OR(Calculations!$E$2="Shetland Health Board",Calculations!$E$2="Western Isles Health Board",Calculations!$E$2="Shetland Islands Local Authority",Calculations!$E$2="Eilean Siar Local Authority"),OR($F84=1,$F84=5)),0,new_yllv2(VALUE(LEFT(Options!$B$24,2)),$C84,$D84,$E84,$F84,2016,$I84+$J84,1,$H84,$G84*$H84,Options!B8))) -> 3247.339438 | O84: =IF(AND(OR(Calculations!$E$2="Orkney Health Board",Calculations!$E$2="Orkney Islands Local Authority"),$F84=1),0,IF(AND(OR(Calculations!$E$2="Shetland Health Board",Calculations!$E$2="Western Isles Health Board",Calculations!$E$2="Shetland Islands Local Authority",Calculations!$E$2="Eilean Siar Local Authority"),OR($F84=1,$F84=5)),0,hosp_count(VALUE(LEFT(Options!$B$24,2)),$C84,$E84,$F84,2016,$I84,1,$H84,$G84*$H84, Options!B8))) -> 5739.727444 | P84: =IF(AND(OR(Calculations!$E$2="Orkney Health Board",Calculations!$E$2="Orkney Islands Local Authority"),$F84=1),0,IF(AND(OR(Calculations!$E$2="Shetland Health Board",Calculations!$E$2="Western Isles Health Board",Calculations!$E$2="Shetland Islands Local Authority",Calculations!$E$2="Eilean Siar Local Authority"),OR($F84=1,$F84=5)),0,hosp_count(VALUE(LEFT(Options!$B$24,2)),$C84,$E84,$F84,2016,$I84+$J84,1,$H84,$G84*$H84, Options!B8))) -> 5716.146174 | Q84: =IF(AND(OR(Calculations!$E$2="Orkney Health Board",Calculations!$E$2="Orkney Islands Local Authority"),$F84=1),0,IF(AND(OR(Calculations!$E$2="Shetland Health Board",Calculations!$E$2="Western Isles Health Board",Calculations!$E$2="Shetland Islands Local Authority",Calculations!$E$2="Eilean Siar Local Authority"),OR($F84=1,$F84=5)),0,prem_mort(VALUE(LEFT(Options!$B$24,2)),$C84,$E84,$F84,2016,$I84,1,$H84,$G84*$H84,Options!B8))) -> 65.47760012 | R84: =IF(AND(OR(Calculations!$E$2="Orkney Health Board",Calculations!$E$2="Orkney Islands Local Authority"),$F84=1),0,IF(AND(OR(Calculations!$E$2="Shetland Health Board",Calculations!$E$2="Western Isles Health Board",Calculations!$E$2="Shetland Islands Local Authority",Calculations!$E$2="Eilean Siar Local Authority"),OR($F84=1,$F84=5)),0,prem_mort(VALUE(LEFT(Options!$B$24,2)),$C84,$E84,$F84,2016,$I84+$J84,1,$H84,$G84*$H84,Options!B8))) -> 65.16836511 | S84: 153.7032867 | T84: 152.9773829 | U84: 7659.034313 | V84: 7622.862531 | W84: 13473.5386 | X84: 13418.18351 | Y84: 153.7032867 | Z84: 152.9773829 | AA84: 922219.72 | AB84: 917864.2974 | AC84: 45954205.88 | AD84: 45737175.19 | AE84: 80841231.6 | AF84: 80509101.04 | AG84: 922219.72 | AH84: 917864.2974 | AI84: 6000
B85: Male 30-34 | C85: 31.981522 | D85: 78.06152 | E85: male | F85: 1 | G85: =HLOOKUP(Calculations!$E$2,'Prevalence Rates'!$C$3:$BC$249,'Prevalence Rates'!$BD85,FALSE) -> 0.1593134204 | H85: =HLOOKUP(Calculations!$E$2,'Population 2016'!$C$3:$BC$249,'Population 2016'!BD85,FALSE) -> 38006 | I85: 0 | J85: =HLOOKUP(Results!E$4,Targeting!$C$3:$F$249,Targeting!$G85,FALSE) -> 2874 | K85: =IF(AND(OR(Calculations!$E$2="Orkney Health Board",Calculations!$E$2="Orkney Islands Local Authority"),$F85=1),0,IF(AND(OR(Calculations!$E$2="Shetland Health Board",Calculations!$E$2="Western Isles Health Board",Calculations!$E$2="Shetland Islands Local Authority",Calculations!$E$2="Eilean Siar Local Authority"),OR($F85=1,$F85=5)),0,new_ci(VALUE(LEFT(Options!$B$24,2)),$C85,$E85,$F85,2016,$I85,1,$H85,$G85*$H85,Options!B8))) -> 85.31572273 | L85: =IF(AND(OR(Calculations!$E$2="Orkney Health Board",Calculations!$E$2="Orkney Islands Local Authority"),$F85=1),0,IF(AND(OR(Calculations!$E$2="Shetland Health Board",Calculations!$E$2="Western Isles Health Board",Calculations!$E$2="Shetland Islands Local Authority",Calculations!$E$2="Eilean Siar Local Authority"),OR($F85=1,$F85=5)),0,new_ci(VALUE(LEFT(Options!$B$24,2)),$C85,$E85,$F85,2016,$I85+$J85,1,$H85,$G85*$H85,Options!B8))) -> 84.91301469 | M85: =IF(AND(OR(Calculations!$E$2="Orkney Health Board",Calculations!$E$2="Orkney Islands Local Authority"),$F85=1),0,IF(AND(OR(Calculations!$E$2="Shetland Health Board",Calculations!$E$2="Western Isles Health Board",Calculations!$E$2="Shetland Islands Local Authority",Calculations!$E$2="Eilean Siar Local Authority"),OR($F85=1,$F85=5)),0,new_yllv2(VALUE(LEFT(Options!$B$24,2)),$C85,$D85,$E85,$F85,2016,$I85,1,$H85,$G85*$H85,Options!B8))) -> 3846.03261 | N85: =IF(AND(OR(Calculations!$E$2="Orkney Health Board",Calculations!$E$2="Orkney Islands Local Authority"),$F85=1),0,IF(AND(OR(Calculations!$E$2="Shetland Health Board",Calculations!$E$2="Western Isles Health Board",Calculations!$E$2="Shetland Islands Local Authority",Calculations!$E$2="Eilean Siar Local Authority"),OR($F85=1,$F85=5)),0,new_yllv2(VALUE(LEFT(Options!$B$24,2)),$C85,$D85,$E85,$F85,2016,$I85+$J85,1,$H85,$G85*$H85,Options!B8))) -> 3827.878532 | O85: =IF(AND(OR(Calculations!$E$2="Orkney Health Board",Calculations!$E$2="Orkney Islands Local Authority"),$F85=1),0,IF(AND(OR(Calculations!$E$2="Shetland Health Board",Calculations!$E$2="Western Isles Health Board",Calculations!$E$2="Shetland Islands Local Authority",Calculations!$E$2="Eilean Siar Local Authority"),OR($F85=1,$F85=5)),0,hosp_count(VALUE(LEFT(Options!$B$24,2)),$C85,$E85,$F85,2016,$I85,1,$H85,$G85*$H85, Options!B8))) -> 6119.924679 | P85: =IF(AND(OR(Calculations!$E$2="Orkney Health Board",Calculations!$E$2="Orkney Islands Local Authority"),$F85=1),0,IF(AND(OR(Calculations!$E$2="Shetland Health Board",Calculations!$E$2="Western Isles Health Board",Calculations!$E$2="Shetland Islands Local Authority",Calculations!$E$2="Eilean Siar Local Authority"),OR($F85=1,$F85=5)),0,hosp_count(VALUE(LEFT(Options!$B$24,2)),$C85,$E85,$F85,2016,$I85+$J85,1,$H85,$G85*$H85, Options!B8))) -> 6094.778299 | Q85: =IF(AND(OR(Calculations!$E$2="Orkney Health Board",Calculations!$E$2="Orkney Islands Local Authority"),$F85=1),0,IF(AND(OR(Calculations!$E$2="Shetland Health Board",Calculations!$E$2="Western Isles Health Board",Calculations!$E$2="Shetland Islands Local Authority",Calculations!$E$2="Eilean Siar Local Authority"),OR($F85=1,$F85=5)),0,prem_mort(VALUE(LEFT(Options!$B$24,2)),$C85,$E85,$F85,2016,$I85,1,$H85,$G85*$H85,Options!B8))) -> 85.31572273 | R85: =IF(AND(OR(Calculations!$E$2="Orkney Health Board",Calculations!$E$2="Orkney Islands Local Authority"),$F85=1),0,IF(AND(OR(Calculations!$E$2="Shetland Health Board",Calculations!$E$2="Western Isles Health Board",Calculations!$E$2="Shetland Islands Local Authority",Calculations!$E$2="Eilean Siar Local Authority"),OR($F85=1,$F85=5)),0,prem_mort(VALUE(LEFT(Options!$B$24,2)),$C85,$E85,$F85,2016,$I85+$J85,1,$H85,$G85*$H85,Options!B8))) -> 84.91301469 | S85: 224.4796157 | T85: 223.420025 | U85: 10119.54063 | V85: 10071.77428 | W85: 16102.52244 | X85: 16036.3582 | Y85: 224.4796157 | Z85: 223.420025 | AA85: 1459117.502 | AB85: 1452230.162 | AC85: 65777014.07 | AD85: 65466532.81 | AE85: 104666395.9 | AF85: 104236328.3 | AG85: 1459117.502 | AH85: 1452230.162 | AI85: 6500
B86: Male 35-39 | C86: 36.92601 | D86: 78.33601 | E86: male | F86: 1 | G86: =HLOOKUP(Calculations!$E$2,'Prevalence Rates'!$C$3:$BC$249,'Prevalence Rates'!$BD86,FALSE) -> 0.194141504 | H86: =HLOOKUP(Calculations!$E$2,'Population 2016'!$C$3:$BC$249,'Population 2016'!BD86,FALSE) -> 32984 | I86: 0 | J86: =HLOOKUP(Results!E$4,Targeting!$C$3:$F$249,Targeting!$G86,FALSE) -> 2494 | K86: =IF(AND(OR(Calculations!$E$2="Orkney Health Board",Calculations!$E$2="Orkney Islands Local Authority"),$F86=1),0,IF(AND(OR(Calculations!$E$2="Shetland Health Board",Calculations!$E$2="Western Isles Health Board",Calculations!$E$2="Shetland Islands Local Authority",Calculations!$E$2="Eilean Siar Local Authority"),OR($F86=1,$F86=5)),0,new_ci(VALUE(LEFT(Options!$B$24,2)),$C86,$E86,$F86,2016,$I86,1,$H86,$G86*$H86,Options!B8))) -> 107.4896603 | L86: =IF(AND(OR(Calculations!$E$2="Orkney Health Board",Calculations!$E$2="Orkney Islands Local Authority"),$F86=1),0,IF(AND(OR(Calculations!$E$2="Shetland Health Board",Calculations!$E$2="Western Isles Health Board",Calculations!$E$2="Shetland Islands Local Authority",Calculations!$E$2="Eilean Siar Local Authority"),OR($F86=1,$F86=5)),0,new_ci(VALUE(LEFT(Options!$B$24,2)),$C86,$E86,$F86,2016,$I86+$J86,1,$H86,$G86*$H86,Options!B8))) -> 106.9928146 | M86: =IF(AND(OR(Calculations!$E$2="Orkney Health Board",Calculations!$E$2="Orkney Islands Local Authority"),$F86=1),0,IF(AND(OR(Calculations!$E$2="Shetland Health Board",Calculations!$E$2="Western Isles Health Board",Calculations!$E$2="Shetland Islands Local Authority",Calculations!$E$2="Eilean Siar Local Authority"),OR($F86=1,$F86=5)),0,new_yllv2(VALUE(LEFT(Options!$B$24,2)),$C86,$D86,$E86,$F86,2016,$I86,1,$H86,$G86*$H86,Options!B8))) -> 4343.657174 | N86: =IF(AND(OR(Calculations!$E$2="Orkney Health Board",Calculations!$E$2="Orkney Islands Local Authority"),$F86=1),0,IF(AND(OR(Calculations!$E$2="Shetland Health Board",Calculations!$E$2="Western Isles Health Board",Calculations!$E$2="Shetland Islands Local Authority",Calculations!$E$2="Eilean Siar Local Authority"),OR($F86=1,$F86=5)),0,new_yllv2(VALUE(LEFT(Options!$B$24,2)),$C86,$D86,$E86,$F86,2016,$I86+$J86,1,$H86,$G86*$H86,Options!B8))) -> 4323.579639 | O86: =IF(AND(OR(Calculations!$E$2="Orkney Health Board",Calculations!$E$2="Orkney Islands Local Authority"),$F86=1),0,IF(AND(OR(Calculations!$E$2="Shetland Health Board",Calculations!$E$2="Western Isles Health Board",Calculations!$E$2="Shetland Islands Local Authority",Calculations!$E$2="Eilean Siar Local Authority"),OR($F86=1,$F86=5)),0,hosp_count(VALUE(LEFT(Options!$B$24,2)),$C86,$E86,$F86,2016,$I86,1,$H86,$G86*$H86, Options!B8))) -> 6330.212896 | P86: =IF(AND(OR(Calculations!$E$2="Orkney Health Board",Calculations!$E$2="Orkney Islands Local Authority"),$F86=1),0,IF(AND(OR(Calculations!$E$2="Shetland Health Board",Calculations!$E$2="Western Isles Health Board",Calculations!$E$2="Shetland Islands Local Authority",Calculations!$E$2="Eilean Siar Local Authority"),OR($F86=1,$F86=5)),0,hosp_count(VALUE(LEFT(Options!$B$24,2)),$C86,$E86,$F86,2016,$I86+$J86,1,$H86,$G86*$H86, Options!B8))) -> 6304.293794 | Q86: =IF(AND(OR(Calculations!$E$2="Orkney Health Board",Calculations!$E$2="Orkney Islands Local Authority"),$F86=1),0,IF(AND(OR(Calculations!$E$2="Shetland Health Board",Calculations!$E$2="Western Isles Health Board",Calculations!$E$2="Shetland Islands Local Authority",Calculations!$E$2="Eilean Siar Local Authority"),OR($F86=1,$F86=5)),0,prem_mort(VALUE(LEFT(Options!$B$24,2)),$C86,$E86,$F86,2016,$I86,1,$H86,$G86*$H86,Options!B8))) -> 107.4896603 | R86: =IF(AND(OR(Calculations!$E$2="Orkney Health Board",Calculations!$E$2="Orkney Islands Local Authority"),$F86=1),0,IF(AND(OR(Calculations!$E$2="Shetland Health Board",Calculations!$E$2="Western Isles Health Board",Calculations!$E$2="Shetland Islands Local Authority",Calculations!$E$2="Eilean Siar Local Authority"),OR($F86=1,$F86=5)),0,prem_mort(VALUE(LEFT(Options!$B$24,2)),$C86,$E86,$F86,2016,$I86+$J86,1,$H86,$G86*$H86,Options!B8))) -> 106.9928146 | S86: 325.8842479 | T86: 324.3779246 | U86: 13168.98246 | V86: 13108.11193 | W86: 19191.76842 | X86: 19113.18759 | Y86: 325.8842479 | Z86: 324.3779246 | AA86: 2281189.736 | AB86: 2270645.472 | AC86: 92182877.21 | AD86: 91756783.52 | AE86: 134342378.9 | AF86: 133792313.1 | AG86: 2281189.736 | AH86: 2270645.472 | AI86: 7000
B87: Male 40-44 | C87: 42.067703 | D87: 78.9077 | E87: male | F87: 1 | G87: =HLOOKUP(Calculations!$E$2,'Prevalence Rates'!$C$3:$BC$249,'Prevalence Rates'!$BD87,FALSE) -> 0.194141504 | H87: =HLOOKUP(Calculations!$E$2,'Population 2016'!$C$3:$BC$249,'Population 2016'!BD87,FALSE) -> 31623 | I87: 0 | J87: =HLOOKUP(Results!E$4,Targeting!$C$3:$F$249,Targeting!$G87,FALSE) -> 2391 | K87: =IF(AND(OR(Calculations!$E$2="Orkney Health Board",Calculations!$E$2="Orkney Islands Local Authority"),$F87=1),0,IF(AND(OR(Calculations!$E$2="Shetland Health Board",Calculations!$E$2="Western Isles Health Board",Calculations!$E$2="Shetland Islands Local Authority",Calculations!$E$2="Eilean Siar Local Authority"),OR($F87=1,$F87=5)),0,new_ci(VALUE(LEFT(Options!$B$24,2)),$C87,$E87,$F87,2016,$I87,1,$H87,$G87*$H87,Options!B8))) -> 151.8100534 | L87: =IF(AND(OR(Calculations!$E$2="Orkney Health Board",Calculations!$E$2="Orkney Islands Local Authority"),$F87=1),0,IF(AND(OR(Calculations!$E$2="Shetland Health Board",Calculations!$E$2="Western Isles Health Board",Calculations!$E$2="Shetland Islands Local Authority",Calculations!$E$2="Eilean Siar Local Authority"),OR($F87=1,$F87=5)),0,new_ci(VALUE(LEFT(Options!$B$24,2)),$C87,$E87,$F87,2016,$I87+$J87,1,$H87,$G87*$H87,Options!B8))) -> 151.1093546 | M87: =IF(AND(OR(Calculations!$E$2="Orkney Health Board",Calculations!$E$2="Orkney Islands Local Authority"),$F87=1),0,IF(AND(OR(Calculations!$E$2="Shetland Health Board",Calculations!$E$2="Western Isles Health Board",Calculations!$E$2="Shetland Islands Local Authority",Calculations!$E$2="Eilean Siar Local Authority"),OR($F87=1,$F87=5)),0,new_yllv2(VALUE(LEFT(Options!$B$24,2)),$C87,$D87,$E87,$F87,2016,$I87,1,$H87,$G87*$H87,Options!B8))) -> 5440.871859 | N87: =IF(AND(OR(Calculations!$E$2="Orkney Health Board",Calculations!$E$2="Orkney Islands Local Authority"),$F87=1),0,IF(AND(OR(Calculations!$E$2="Shetland Health Board",Calculations!$E$2="Western Isles Health Board",Calculations!$E$2="Shetland Islands Local Authority",Calculations!$E$2="Eilean Siar Local Authority"),OR($F87=1,$F87=5)),0,new_yllv2(VALUE(LEFT(Options!$B$24,2)),$C87,$D87,$E87,$F87,2016,$I87+$J87,1,$H87,$G87*$H87,Options!B8))) -> 5415.758815 | O87: =IF(AND(OR(Calculations!$E$2="Orkney Health Board",Calculations!$E$2="Orkney Islands Local Authority"),$F87=1),0,IF(AND(OR(Calculations!$E$2="Shetland Health Board",Calculations!$E$2="Western Isles Health Board",Calculations!$E$2="Shetland Islands Local Authority",Calculations!$E$2="Eilean Siar Local Authority"),OR($F87=1,$F87=5)),0,hosp_count(VALUE(LEFT(Options!$B$24,2)),$C87,$E87,$F87,2016,$I87,1,$H87,$G87*$H87, Options!B8))) -> 7284.154202 | P87: =IF(AND(OR(Calculations!$E$2="Orkney Health Board",Calculations!$E$2="Orkney Islands Local Authority"),$F87=1),0,IF(AND(OR(Calculations!$E$2="Shetland Health Board",Calculations!$E$2="Western Isles Health Board",Calculations!$E$2="Shetland Islands Local Authority",Calculations!$E$2="Eilean Siar Local Authority"),OR($F87=1,$F87=5)),0,hosp_count(VALUE(LEFT(Options!$B$24,2)),$C87,$E87,$F87,2016,$I87+$J87,1,$H87,$G87*$H87, Options!B8))) -> 7254.330322 | Q87: =IF(AND(OR(Calculations!$E$2="Orkney Health Board",Calculations!$E$2="Orkney Islands Local Authority"),$F87=1),0,IF(AND(OR(Calculations!$E$2="Shetland Health Board",Calculations!$E$2="Western Isles Health Board",Calculations!$E$2="Shetland Islands Local Authority",Calculations!$E$2="Eilean Siar Local Authority"),OR($F87=1,$F87=5)),0,prem_mort(VALUE(LEFT(Options!$B$24,2)),$C87,$E87,$F87,2016,$I87,1,$H87,$G87*$H87,Options!B8))) -> 151.8100534 | R87: =IF(AND(OR(Calculations!$E$2="Orkney Health Board",Calculations!$E$2="Orkney Islands Local Authority"),$F87=1),0,IF(AND(OR(Calculations!$E$2="Shetland Health Board",Calculations!$E$2="Western Isles Health Board",Calculations!$E$2="Shetland Islands Local Authority",Calculations!$E$2="Eilean Siar Local Authority"),OR($F87=1,$F87=5)),0,prem_mort(VALUE(LEFT(Options!$B$24,2)),$C87,$E87,$F87,2016,$I87+$J87,1,$H87,$G87*$H87,Options!B8))) -> 151.1093546 | S87: 480.0621491 | T87: 477.8463606 | U87: 17205.42598 | V87: 17126.01213 | W87: 23034.35538 | X87: 22940.04466 | Y87: 480.0621491 | Z87: 477.8463606 | AA87: 3360435.044 | AB87: 3344924.524 | AC87: 120437981.9 | AD87: 119882084.9 | AE87: 161240487.7 | AF87: 160580312.6 | AG87: 3360435.044 | AH87: 3344924.524 | AI87: 7000
B88: Male 45-49 | C88: 47.038155 | D88: 79.41815 | E88: male | F88: 1 | G88: =HLOOKUP(Calculations!$E$2,'Prevalence Rates'!$C$3:$BC$249,'Prevalence Rates'!$BD88,FALSE) -> 0.26928127 | H88: =HLOOKUP(Calculations!$E$2,'Population 2016'!$C$3:$BC$249,'Population 2016'!BD88,FALSE) -> 35878 | I88: 0 | J88: =HLOOKUP(Results!E$4,Targeting!$C$3:$F$249,Targeting!$G88,FALSE) -> 2713 | K88: =IF(AND(OR(Calculations!$E$2="Orkney Health Board",Calculations!$E$2="Orkney Islands Local Authority"),$F88=1),0,IF(AND(OR(Calculations!$E$2="Shetland Health Board",Calculations!$E$2="Western Isles Health Board",Calculations!$E$2="Shetland Islands Local Authority",Calculations!$E$2="Eilean Siar Local Authority"),OR($F88=1,$F88=5)),0,new_ci(VALUE(LEFT(Options!$B$24,2)),$C88,$E88,$F88,2016,$I88,1,$H88,$G88*$H88,Options!B8))) -> 250.3725044 | L88: =IF(AND(OR(Calculations!$E$2="Orkney Health Board",Calculations!$E$2="Orkney Islands Local Authority"),$F88=1),0,IF(AND(OR(Calculations!$E$2="Shetland Health Board",Calculations!$E$2="Western Isles Health Board",Calculations!$E$2="Shetland Islands Local Authority",Calculations!$E$2="Eilean Siar Local Authority"),OR($F88=1,$F88=5)),0,new_ci(VALUE(LEFT(Options!$B$24,2)),$C88,$E88,$F88,2016,$I88+$J88,1,$H88,$G88*$H88,Options!B8))) -> 249.2658744 | M88: =IF(AND(OR(Calculations!$E$2="Orkney Health Board",Calculations!$E$2="Orkney Islands Local Authority"),$F88=1),0,IF(AND(OR(Calculations!$E$2="Shetland Health Board",Calculations!$E$2="Western Isles Health Board",Calculations!$E$2="Shetland Islands Local Authority",Calculations!$E$2="Eilean Siar Local Authority"),OR($F88=1,$F88=5)),0,new_yllv2(VALUE(LEFT(Options!$B$24,2)),$C88,$D88,$E88,$F88,2016,$I88,1,$H88,$G88*$H88,Options!B8))) -> 7856.687935 | N88: =IF(AND(OR(Calculations!$E$2="Orkney Health Board",Calculations!$E$2="Orkney Islands Local Authority"),$F88=1),0,IF(AND(OR(Calculations!$E$2="Shetland Health Board",Calculations!$E$2="Western Isles Health Board",Calculations!$E$2="Shetland Islands Local Authority",Calculations!$E$2="Eilean Siar Local Authority"),OR($F88=1,$F88=5)),0,new_yllv2(VALUE(LEFT(Options!$B$24,2)),$C88,$D88,$E88,$F88,2016,$I88+$J88,1,$H88,$G88*$H88,Options!B8))) -> 7821.961892 | O88: =IF(AND(OR(Calculations!$E$2="Orkney Health Board",Calculations!$E$2="Orkney Islands Local Authority"),$F88=1),0,IF(AND(OR(Calculations!$E$2="Shetland Health Board",Calculations!$E$2="Western Isles Health Board",Calculations!$E$2="Shetland Islands Local Authority",Calculations!$E$2="Eilean Siar Local Authority"),OR($F88=1,$F88=5)),0,hosp_count(VALUE(LEFT(Options!$B$24,2)),$C88,$E88,$F88,2016,$I88,1,$H88,$G88*$H88, Options!B8))) -> 9858.835372 | P88: =IF(AND(OR(Calculations!$E$2="Orkney Health Board",Calculations!$E$2="Orkney Islands Local Authority"),$F88=1),0,IF(AND(OR(Calculations!$E$2="Shetland Health Board",Calculations!$E$2="Western Isles Health Board",Calculations!$E$2="Shetland Islands Local Authority",Calculations!$E$2="Eilean Siar Local Authority"),OR($F88=1,$F88=5)),0,hosp_count(VALUE(LEFT(Options!$B$24,2)),$C88,$E88,$F88,2016,$I88+$J88,1,$H88,$G88*$H88, Options!B8))) -> 9818.76104 | Q88: =IF(AND(OR(Calculations!$E$2="Orkney Health Board",Calculations!$E$2="Orkney Islands Local Authority"),$F88=1),0,IF(AND(OR(Calculations!$E$2="Shetland Health Board",Calculations!$E$2="Western Isles Health Board",Calculations!$E$2="Shetland Islands Local Authority",Calculations!$E$2="Eilean Siar Local Authority"),OR($F88=1,$F88=5)),0,prem_mort(VALUE(LEFT(Options!$B$24,2)),$C88,$E88,$F88,2016,$I88,1,$H88,$G88*$H88,Options!B8))) -> 250.3725044 | R88: =IF(AND(OR(Calculations!$E$2="Orkney Health Board",Calculations!$E$2="Orkney Islands Local Authority"),$F88=1),0,IF(AND(OR(Calculations!$E$2="Shetland Health Board",Calculations!$E$2="Western Isles Health Board",Calculations!$E$2="Shetland Islands Local Authority",Calculations!$E$2="Eilean Siar Local Authority"),OR($F88=1,$F88=5)),0,prem_mort(VALUE(LEFT(Options!$B$24,2)),$C88,$E88,$F88,2016,$I88+$J88,1,$H88,$G88*$H88,Options!B8))) -> 249.2658744 | S88: 697.8440949 | T88: 694.7596699 | U88: 21898.34421 | V88: 21801.55497 | W88: 27478.77633 | X88: 27367.08022 | Y88: 697.8440949 | Z88: 694.7596699 | AA88: 4884908.664 | AB88: 4863317.69 | AC88: 153288409.5 | AD88: 152610884.8 | AE88: 192351434.3 | AF88: 191569561.5 | AG88: 4884908.664 | AH88: 4863317.69 | AI88: 7000
B89: Male 50-54 | C89: 51.998646 | D89: 79.98865 | E89: male | F89: 1 | G89: =HLOOKUP(Calculations!$E$2,'Prevalence Rates'!$C$3:$BC$249,'Prevalence Rates'!$BD89,FALSE) -> 0.26928127 | H89: =HLOOKUP(Calculations!$E$2,'Population 2016'!$C$3:$BC$249,'Population 2016'!BD89,FALSE) -> 36922 | I89: 0 | J89: =HLOOKUP(Results!E$4,Targeting!$C$3:$F$249,Targeting!$G89,FALSE) -> 2792 | K89: =IF(AND(OR(Calculations!$E$2="Orkney Health Board",Calculations!$E$2="Orkney Islands Local Authority"),$F89=1),0,IF(AND(OR(Calculations!$E$2="Shetland Health Board",Calculations!$E$2="Western Isles Health Board",Calculations!$E$2="Shetland Islands Local Authority",Calculations!$E$2="Eilean Siar Local Authority"),OR($F89=1,$F89=5)),0,new_ci(VALUE(LEFT(Options!$B$24,2)),$C89,$E89,$F89,2016,$I89,1,$H89,$G89*$H89,Options!B8))) -> 374.0755464 | L89: =IF(AND(OR(Calculations!$E$2="Orkney Health Board",Calculations!$E$2="Orkney Islands Local Authority"),$F89=1),0,IF(AND(OR(Calculations!$E$2="Shetland Health Board",Calculations!$E$2="Western Isles Health Board",Calculations!$E$2="Shetland Islands Local Authority",Calculations!$E$2="Eilean Siar Local Authority"),OR($F89=1,$F89=5)),0,new_ci(VALUE(LEFT(Options!$B$24,2)),$C89,$E89,$F89,2016,$I89+$J89,1,$H89,$G89*$H89,Options!B8))) -> 372.4265437 | M89: =IF(AND(OR(Calculations!$E$2="Orkney Health Board",Calculations!$E$2="Orkney Islands Local Authority"),$F89=1),0,IF(AND(OR(Calculations!$E$2="Shetland Health Board",Calculations!$E$2="Western Isles Health Board",Calculations!$E$2="Shetland Islands Local Authority",Calculations!$E$2="Eilean Siar Local Authority"),OR($F89=1,$F89=5)),0,new_yllv2(VALUE(LEFT(Options!$B$24,2)),$C89,$D89,$E89,$F89,2016,$I89,1,$H89,$G89*$H89,Options!B8))) -> 10096.30049 | N89: =IF(AND(OR(Calculations!$E$2="Orkney Health Board",Calculations!$E$2="Orkney Islands Local Authority"),$F89=1),0,IF(AND(OR(Calculations!$E$2="Shetland Health Board",Calculations!$E$2="Western Isles Health Board",Calculations!$E$2="Shetland Islands Local Authority",Calculations!$E$2="Eilean Siar Local Authority"),OR($F89=1,$F89=5)),0,new_yllv2(VALUE(LEFT(Options!$B$24,2)),$C89,$D89,$E89,$F89,2016,$I89+$J89,1,$H89,$G89*$H89,Options!B8))) -> 10051.7939 | O89: =IF(AND(OR(Calculations!$E$2="Orkney Health Board",Calculations!$E$2="Orkney Islands Local Authority"),$F89=1),0,IF(AND(OR(Calculations!$E$2="Shetland Health Board",Calculations!$E$2="Western Isles Health Board",Calculations!$E$2="Shetland Islands Local Authority",Calculations!$E$2="Eilean Siar Local Authority"),OR($F89=1,$F89=5)),0,hosp_count(VALUE(LEFT(Options!$B$24,2)),$C89,$E89,$F89,2016,$I89,1,$H89,$G89*$H89, Options!B8))) -> 12099.02518 | P89: =IF(AND(OR(Calculations!$E$2="Orkney Health Board",Calculations!$E$2="Orkney Islands Local Authority"),$F89=1),0,IF(AND(OR(Calculations!$E$2="Shetland Health Board",Calculations!$E$2="Western Isles Health Board",Calculations!$E$2="Shetland Islands Local Authority",Calculations!$E$2="Eilean Siar Local Authority"),OR($F89=1,$F89=5)),0,hosp_count(VALUE(LEFT(Options!$B$24,2)),$C89,$E89,$F89,2016,$I89+$J89,1,$H89,$G89*$H89, Options!B8))) -> 12049.84392 | Q89: =IF(AND(OR(Calculations!$E$2="Orkney Health Board",Calculations!$E$2="Orkney Islands Local Authority"),$F89=1),0,IF(AND(OR(Calculations!$E$2="Shetland Health Board",Calculations!$E$2="Western Isles Health Board",Calculations!$E$2="Shetland Islands Local Authority",Calculations!$E$2="Eilean Siar Local Authority"),OR($F89=1,$F89=5)),0,prem_mort(VALUE(LEFT(Options!$B$24,2)),$C89,$E89,$F89,2016,$I89,1,$H89,$G89*$H89,Options!B8))) -> 374.0755464 | R89: =IF(AND(OR(Calculations!$E$2="Orkney Health Board",Calculations!$E$2="Orkney Islands Local Authority"),$F89=1),0,IF(AND(OR(Calculations!$E$2="Shetland Health Board",Calculations!$E$2="Western Isles Health Board",Calculations!$E$2="Shetland Islands Local Authority",Calculations!$E$2="Eilean Siar Local Authority"),OR($F89=1,$F89=5)),0,prem_mort(VALUE(LEFT(Options!$B$24,2)),$C89,$E89,$F89,2016,$I89+$J89,1,$H89,$G89*$H89,Options!B8))) -> 372.4265437 | S89: 1013.150822 | T89: 1008.684642 | U89: 27344.94473 | V89: 27224.40254 | W89: 32769.14897 | X89: 32635.94583 | Y89: 1013.150822 | Z89: 1008.684642 | AA89: 7092055.751 | AB89: 7060792.497 | AC89: 191414613.1 | AD89: 190570817.7 | AE89: 229384042.8 | AF89: 228451620.8 | AG89: 7092055.751 | AH89: 7060792.497 | AI89: 7000
B90: Male 55-59 | C90: 56.950867 | D90: 80.66087 | E90: male | F90: 1 | G90: =HLOOKUP(Calculations!$E$2,'Prevalence Rates'!$C$3:$BC$249,'Prevalence Rates'!$BD90,FALSE) -> 0.2899512322 | H90: =HLOOKUP(Calculations!$E$2,'Population 2016'!$C$3:$BC$249,'Population 2016'!BD90,FALSE) -> 33251 | I90: 0 | J90: =HLOOKUP(Results!E$4,Targeting!$C$3:$F$249,Targeting!$G90,FALSE) -> 2514 | K90: =IF(AND(OR(Calculations!$E$2="Orkney Health Board",Calculations!$E$2="Orkney Islands Local Authority"),$F90=1),0,IF(AND(OR(Calculations!$E$2="Shetland Health Board",Calculations!$E$2="Western Isles Health Board",Calculations!$E$2="Shetland Islands Local Authority",Calculations!$E$2="Eilean Siar Local Authority"),OR($F90=1,$F90=5)),0,new_ci(VALUE(LEFT(Options!$B$24,2)),$C90,$E90,$F90,2016,$I90,1,$H90,$G90*$H90,Options!B8))) -> 488.4165729 | L90: =IF(AND(OR(Calculations!$E$2="Orkney Health Board",Calculations!$E$2="Orkney Islands Local Authority"),$F90=1),0,IF(AND(OR(Calculations!$E$2="Shetland Health Board",Calculations!$E$2="Western Isles Health Board",Calculations!$E$2="Shetland Islands Local Authority",Calculations!$E$2="Eilean Siar Local Authority"),OR($F90=1,$F90=5)),0,new_ci(VALUE(LEFT(Options!$B$24,2)),$C90,$E90,$F90,2016,$I90+$J90,1,$H90,$G90*$H90,Options!B8))) -> 486.2956533 | M90: =IF(AND(OR(Calculations!$E$2="Orkney Health Board",Calculations!$E$2="Orkney Islands Local Authority"),$F90=1),0,IF(AND(OR(Calculations!$E$2="Shetland Health Board",Calculations!$E$2="Western Isles Health Board",Calculations!$E$2="Shetland Islands Local Authority",Calculations!$E$2="Eilean Siar Local Authority"),OR($F90=1,$F90=5)),0,new_yllv2(VALUE(LEFT(Options!$B$24,2)),$C90,$D90,$E90,$F90,2016,$I90,1,$H90,$G90*$H90,Options!B8))) -> 11091.94183 | N90: =IF(AND(OR(Calculations!$E$2="Orkney Health Board",Calculations!$E$2="Orkney Islands Local Authority"),$F90=1),0,IF(AND(OR(Calculations!$E$2="Shetland Health Board",Calculations!$E$2="Western Isles Health Board",Calculations!$E$2="Shetland Islands Local Authority",Calculations!$E$2="Eilean Siar Local Authority"),OR($F90=1,$F90=5)),0,new_yllv2(VALUE(LEFT(Options!$B$24,2)),$C90,$D90,$E90,$F90,2016,$I90+$J90,1,$H90,$G90*$H90,Options!B8))) -> 11043.77575 | O90: =IF(AND(OR(Calculations!$E$2="Orkney Health Board",Calculations!$E$2="Orkney Islands Local Authority"),$F90=1),0,IF(AND(OR(Calculations!$E$2="Shetland Health Board",Calculations!$E$2="Western Isles Health Board",Calculations!$E$2="Shetland Islands Local Authority",Calculations!$E$2="Eilean Siar Local Authority"),OR($F90=1,$F90=5)),0,hosp_count(VALUE(LEFT(Options!$B$24,2)),$C90,$E90,$F90,2016,$I90,1,$H90,$G90*$H90, Options!B8))) -> 12990.03024 | P90: =IF(AND(OR(Calculations!$E$2="Orkney Health Board",Calculations!$E$2="Orkney Islands Local Authority"),$F90=1),0,IF(AND(OR(Calculations!$E$2="Shetland Health Board",Calculations!$E$2="Western Isles Health Board",Calculations!$E$2="Shetland Islands Local Authority",Calculations!$E$2="Eilean Siar Local Authority"),OR($F90=1,$F90=5)),0,hosp_count(VALUE(LEFT(Options!$B$24,2)),$C90,$E90,$F90,2016,$I90+$J90,1,$H90,$G90*$H90, Options!B8))) -> 12937.34165 | Q90: =IF(AND(OR(Calculations!$E$2="Orkney Health Board",Calculations!$E$2="Orkney Islands Local Authority"),$F90=1),0,IF(AND(OR(Calculations!$E$2="Shetland Health Board",Calculations!$E$2="Western Isles Health Board",Calculations!$E$2="Shetland Islands Local Authority",Calculations!$E$2="Eilean Siar Local Authority"),OR($F90=1,$F90=5)),0,prem_mort(VALUE(LEFT(Options!$B$24,2)),$C90,$E90,$F90,2016,$I90,1,$H90,$G90*$H90,Options!B8))) -> 488.4165729 | R90: =IF(AND(OR(Calculations!$E$2="Orkney Health Board",Calculations!$E$2="Orkney Islands Local Authority"),$F90=1),0,IF(AND(OR(Calculations!$E$2="Shetland Health Board",Calculations!$E$2="Western Isles Health Board",Calculations!$E$2="Shetland Islands Local Authority",Calculations!$E$2="Eilean Siar Local Authority"),OR($F90=1,$F90=5)),0,prem_mort(VALUE(LEFT(Options!$B$24,2)),$C90,$E90,$F90,2016,$I90+$J90,1,$H90,$G90*$H90,Options!B8))) -> 486.2956533 | S90: 1468.877847 | T90: 1462.499333 | U90: 33358.22031 | V90: 33213.36425 | W90: 39066.58519 | X90: 38908.12804 | Y90: 1468.877847 | Z90: 1462.499333 | AA90: 9547706.004 | AB90: 9506245.667 | AC90: 216828432 | AD90: 215886867.6 | AE90: 253932803.7 | AF90: 252902832.2 | AG90: 9547706.004 | AH90: 9506245.667 | AI90: 6500
B91: Male 60-64 | C91: 61.942989 | D91: 81.61299 | E91: male | F91: 1 | G91: =HLOOKUP(Calculations!$E$2,'Prevalence Rates'!$C$3:$BC$249,'Prevalence Rates'!$BD91,FALSE) -> 0.2899512322 | H91: =HLOOKUP(Calculations!$E$2,'Population 2016'!$C$3:$BC$249,'Population 2016'!BD91,FALSE) -> 27358 | I91: 0 | J91: =HLOOKUP(Results!E$4,Targeting!$C$3:$F$249,Targeting!$G91,FALSE) -> 2068 | K91: =IF(AND(OR(Calculations!$E$2="Orkney Health Board",Calculations!$E$2="Orkney Islands Local Authority"),$F91=1),0,IF(AND(OR(Calculations!$E$2="Shetland Health Board",Calculations!$E$2="Western Isles Health Board",Calculations!$E$2="Shetland Islands Local Authority",Calculations!$E$2="Eilean Siar Local Authority"),OR($F91=1,$F91=5)),0,new_ci(VALUE(LEFT(Options!$B$24,2)),$C91,$E91,$F91,2016,$I91,1,$H91,$G91*$H91,Options!B8))) -> 583.7129772 | L91: =IF(AND(OR(Calculations!$E$2="Orkney Health Board",Calculations!$E$2="Orkney Islands Local Authority"),$F91=1),0,IF(AND(OR(Calculations!$E$2="Shetland Health Board",Calculations!$E$2="Western Isles Health Board",Calculations!$E$2="Shetland Islands Local Authority",Calculations!$E$2="Eilean Siar Local Authority"),OR($F91=1,$F91=5)),0,new_ci(VALUE(LEFT(Options!$B$24,2)),$C91,$E91,$F91,2016,$I91+$J91,1,$H91,$G91*$H91,Options!B8))) -> 581.1929409 | M91: =IF(AND(OR(Calculations!$E$2="Orkney Health Board",Calculations!$E$2="Orkney Islands Local Authority"),$F91=1),0,IF(AND(OR(Calculations!$E$2="Shetland Health Board",Calculations!$E$2="Western Isles Health Board",Calculations!$E$2="Shetland Islands Local Authority",Calculations!$E$2="Eilean Siar Local Authority"),OR($F91=1,$F91=5)),0,new_yllv2(VALUE(LEFT(Options!$B$24,2)),$C91,$D91,$E91,$F91,2016,$I91,1,$H91,$G91*$H91,Options!B8))) -> 10897.92187 | N91: =IF(AND(OR(Calculations!$E$2="Orkney Health Board",Calculations!$E$2="Orkney Islands Local Authority"),$F91=1),0,IF(AND(OR(Calculations!$E$2="Shetland Health Board",Calculations!$E$2="Western Isles Health Board",Calculations!$E$2="Shetland Islands Local Authority",Calculations!$E$2="Eilean Siar Local Authority"),OR($F91=1,$F91=5)),0,new_yllv2(VALUE(LEFT(Options!$B$24,2)),$C91,$D91,$E91,$F91,2016,$I91+$J91,1,$H91,$G91*$H91,Options!B8))) -> 10850.87279 | O91: =IF(AND(OR(Calculations!$E$2="Orkney Health Board",Calculations!$E$2="Orkney Islands Local Authority"),$F91=1),0,IF(AND(OR(Calculations!$E$2="Shetland Health Board",Calculations!$E$2="Western Isles Health Board",Calculations!$E$2="Shetland Islands Local Authority",Calculations!$E$2="Eilean Siar Local Authority"),OR($F91=1,$F91=5)),0,hosp_count(VALUE(LEFT(Options!$B$24,2)),$C91,$E91,$F91,2016,$I91,1,$H91,$G91*$H91, Options!B8))) -> 12759.83838 | P91: =IF(AND(OR(Calculations!$E$2="Orkney Health Board",Calculations!$E$2="Orkney Islands Local Authority"),$F91=1),0,IF(AND(OR(Calculations!$E$2="Shetland Health Board",Calculations!$E$2="Western Isles Health Board",Calculations!$E$2="Shetland Islands Local Authority",Calculations!$E$2="Eilean Siar Local Authority"),OR($F91=1,$F91=5)),0,hosp_count(VALUE(LEFT(Options!$B$24,2)),$C91,$E91,$F91,2016,$I91+$J91,1,$H91,$G91*$H91, Options!B8))) -> 12708.09471 | Q91: =IF(AND(OR(Calculations!$E$2="Orkney Health Board",Calculations!$E$2="Orkney Islands Local Authority"),$F91=1),0,IF(AND(OR(Calculations!$E$2="Shetland Health Board",Calculations!$E$2="Western Isles Health Board",Calculations!$E$2="Shetland Islands Local Authority",Calculations!$E$2="Eilean Siar Local Authority"),OR($F91=1,$F91=5)),0,prem_mort(VALUE(LEFT(Options!$B$24,2)),$C91,$E91,$F91,2016,$I91,1,$H91,$G91*$H91,Options!B8))) -> 583.7129772 | R91: =IF(AND(OR(Calculations!$E$2="Orkney Health Board",Calculations!$E$2="Orkney Islands Local Authority"),$F91=1),0,IF(AND(OR(Calculations!$E$2="Shetland Health Board",Calculations!$E$2="Western Isles Health Board",Calculations!$E$2="Shetland Islands Local Authority",Calculations!$E$2="Eilean Siar Local Authority"),OR($F91=1,$F91=5)),0,prem_mort(VALUE(LEFT(Options!$B$24,2)),$C91,$E91,$F91,2016,$I91+$J91,1,$H91,$G91*$H91,Options!B8))) -> 581.1929409 | S91: 2133.60983 | T91: 2124.398497 | U91: 39834.49765 | V91: 39662.52207 | W91: 46640.24555 | X91: 46451.11013 | Y91: 2133.60983 | Z91: 2124.398497 | AA91: 12801658.98 | AB91: 12746390.98 | AC91: 239006985.9 | AD91: 237975132.4 | AE91: 279841473.3 | AF91: 278706660.8 | AG91: 12801658.98 | AH91: 12746390.98 | AI91: 6000
B92: Male 65-69 | C92: 67.05442 | D92: 82.95442 | E92: male | F92: 1 | G92: =HLOOKUP(Calculations!$E$2,'Prevalence Rates'!$C$3:$BC$249,'Prevalence Rates'!$BD92,FALSE) -> 0.233785911 | H92: =HLOOKUP(Calculations!$E$2,'Population 2016'!$C$3:$BC$249,'Population 2016'!BD92,FALSE) -> 25567 | I92: 0 | J92: =HLOOKUP(Results!E$4,Targeting!$C$3:$F$249,Targeting!$G92,FALSE) -> 1933 | K92: =IF(AND(OR(Calculations!$E$2="Orkney Health Board",Calculations!$E$2="Orkney Islands Local Authority"),$F92=1),0,IF(AND(OR(Calculations!$E$2="Shetland Health Board",Calculations!$E$2="Western Isles Health Board",Calculations!$E$2="Shetland Islands Local Authority",Calculations!$E$2="Eilean Siar Local Authority"),OR($F92=1,$F92=5)),0,new_ci(VALUE(LEFT(Options!$B$24,2)),$C92,$E92,$F92,2016,$I92,1,$H92,$G92*$H92,Options!B8))) -> 798.1685424 | L92: =IF(AND(OR(Calculations!$E$2="Orkney Health Board",Calculations!$E$2="Orkney Islands Local Authority"),$F92=1),0,IF(AND(OR(Calculations!$E$2="Shetland Health Board",Calculations!$E$2="Western Isles Health Board",Calculations!$E$2="Shetland Islands Local Authority",Calculations!$E$2="Eilean Siar Local Authority"),OR($F92=1,$F92=5)),0,new_ci(VALUE(LEFT(Options!$B$24,2)),$C92,$E92,$F92,2016,$I92+$J92,1,$H92,$G92*$H92,Options!B8))) -> 794.6489439 | M92: =IF(AND(OR(Calculations!$E$2="Orkney Health Board",Calculations!$E$2="Orkney Islands Local Authority"),$F92=1),0,IF(AND(OR(Calculations!$E$2="Shetland Health Board",Calculations!$E$2="Western Isles Health Board",Calculations!$E$2="Shetland Islands Local Authority",Calculations!$E$2="Eilean Siar Local Authority"),OR($F92=1,$F92=5)),0,new_yllv2(VALUE(LEFT(Options!$B$24,2)),$C92,$D92,$E92,$F92,2016,$I92,1,$H92,$G92*$H92,Options!B8))) -> 11892.71128 | N92: =IF(AND(OR(Calculations!$E$2="Orkney Health Board",Calculations!$E$2="Orkney Islands Local Authority"),$F92=1),0,IF(AND(OR(Calculations!$E$2="Shetland Health Board",Calculations!$E$2="Western Isles Health Board",Calculations!$E$2="Shetland Islands Local Authority",Calculations!$E$2="Eilean Siar Local Authority"),OR($F92=1,$F92=5)),0,new_yllv2(VALUE(LEFT(Options!$B$24,2)),$C92,$D92,$E92,$F92,2016,$I92+$J92,1,$H92,$G92*$H92,Options!B8))) -> 11840.26926 | O92: =IF(AND(OR(Calculations!$E$2="Orkney Health Board",Calculations!$E$2="Orkney Islands Local Authority"),$F92=1),0,IF(AND(OR(Calculations!$E$2="Shetland Health Board",Calculations!$E$2="Western Isles Health Board",Calculations!$E$2="Shetland Islands Local Authority",Calculations!$E$2="Eilean Siar Local Authority"),OR($F92=1,$F92=5)),0,hosp_count(VALUE(LEFT(Options!$B$24,2)),$C92,$E92,$F92,2016,$I92,1,$H92,$G92*$H92, Options!B8))) -> 14296.67907 | P92: =IF(AND(OR(Calculations!$E$2="Orkney Health Board",Calculations!$E$2="Orkney Islands Local Authority"),$F92=1),0,IF(AND(OR(Calculations!$E$2="Shetland Health Board",Calculations!$E$2="Western Isles Health Board",Calculations!$E$2="Shetland Islands Local Authority",Calculations!$E$2="Eilean Siar Local Authority"),OR($F92=1,$F92=5)),0,hosp_count(VALUE(LEFT(Options!$B$24,2)),$C92,$E92,$F92,2016,$I92+$J92,1,$H92,$G92*$H92, Options!B8))) -> 14238.3735 | Q92: =IF(AND(OR(Calculations!$E$2="Orkney Health Board",Calculations!$E$2="Orkney Islands Local Authority"),$F92=1),0,IF(AND(OR(Calculations!$E$2="Shetland Health Board",Calculations!$E$2="Western Isles Health Board",Calculations!$E$2="Shetland Islands Local Authority",Calculations!$E$2="Eilean Siar Local Authority"),OR($F92=1,$F92=5)),0,prem_mort(VALUE(LEFT(Options!$B$24,2)),$C92,$E92,$F92,2016,$I92,1,$H92,$G92*$H92,Options!B8))) -> 798.1685424 | R92: =IF(AND(OR(Calculations!$E$2="Orkney Health Board",Calculations!$E$2="Orkney Islands Local Authority"),$F92=1),0,IF(AND(OR(Calculations!$E$2="Shetland Health Board",Calculations!$E$2="Western Isles Health Board",Calculations!$E$2="Shetland Islands Local Authority",Calculations!$E$2="Eilean Siar Local Authority"),OR($F92=1,$F92=5)),0,prem_mort(VALUE(LEFT(Options!$B$24,2)),$C92,$E92,$F92,2016,$I92+$J92,1,$H92,$G92*$H92,Options!B8))) -> 794.6489439 | S92: 3121.870154 | T92: 3108.103977 | U92: 46515.8653 | V92: 46310.74926 | W92: 55918.48504 | X92: 55690.43492 | Y92: 3121.870154 | Z92: 3108.103977 | AA92: 17170285.85 | AB92: 17094571.88 | AC92: 255837259.1 | AD92: 254709120.9 | AE92: =W92*$AI92 -> 307551667.7 | AF92: =X92*$AI92 -> 306297392.1 | AG92: =Y92*$AI92 -> 17170285.85 | AH92: =Z92*$AI92 -> 17094571.88 | AI92: 5500
B93: Male 70-74 | C93: 71.891098 | D93: 84.3411 | E93: male | F93: 1 | G93: =HLOOKUP(Calculations!$E$2,'Prevalence Rates'!$C$3:$BC$249,'Prevalence Rates'!$BD93,FALSE) -> 0.233785911 | H93: =HLOOKUP(Calculations!$E$2,'Population 2016'!$C$3:$BC$249,'Population 2016'!BD93,FALSE) -> 18358 | I93: 0 | J93: =HLOOKUP(Results!E$4,Targeting!$C$3:$F$249,Targeting!$G93,FALSE) -> 1388 | K93: =IF(AND(OR(Calculations!$E$2="Orkney Health Board",Calculations!$E$2="Orkney Islands Local Authority"),$F93=1),0,IF(AND(OR(Calculations!$E$2="Shetland Health Board",Calculations!$E$2="Western Isles Health Board",Calculations!$E$2="Shetland Islands Local Authority",Calculations!$E$2="Eilean Siar Local Authority"),OR($F93=1,$F93=5)),0,new_ci(VALUE(LEFT(Options!$B$24,2)),$C93,$E93,$F93,2016,$I93,1,$H93,$G93*$H93,Options!B8))) -> 819.6845302 | L93: =IF(AND(OR(Calculations!$E$2="Orkney Health Board",Calculations!$E$2="Orkney Islands Local Authority"),$F93=1),0,IF(AND(OR(Calculations!$E$2="Shetland Health Board",Calculations!$E$2="Western Isles Health Board",Calculations!$E$2="Shetland Islands Local Authority",Calculations!$E$2="Eilean Siar Local Authority"),OR($F93=1,$F93=5)),0,new_ci(VALUE(LEFT(Options!$B$24,2)),$C93,$E93,$F93,2016,$I93+$J93,1,$H93,$G93*$H93,Options!B8))) -> 816.1138493 | M93: =IF(AND(OR(Calculations!$E$2="Orkney Health Board",Calculations!$E$2="Orkney Islands Local Authority"),$F93=1),0,IF(AND(OR(Calculations!$E$2="Shetland Health Board",Calculations!$E$2="Western Isles Health Board",Calculations!$E$2="Shetland Islands Local Authority",Calculations!$E$2="Eilean Siar Local Authority"),OR($F93=1,$F93=5)),0,new_yllv2(VALUE(LEFT(Options!$B$24,2)),$C93,$D93,$E93,$F93,2016,$I93,1,$H93,$G93*$H93,Options!B8))) -> 9385.38951 | N93: =IF(AND(OR(Calculations!$E$2="Orkney Health Board",Calculations!$E$2="Orkney Islands Local Authority"),$F93=1),0,IF(AND(OR(Calculations!$E$2="Shetland Health Board",Calculations!$E$2="Western Isles Health Board",Calculations!$E$2="Shetland Islands Local Authority",Calculations!$E$2="Eilean Siar Local Authority"),OR($F93=1,$F93=5)),0,new_yllv2(VALUE(LEFT(Options!$B$24,2)),$C93,$D93,$E93,$F93,2016,$I93+$J93,1,$H93,$G93*$H93,Options!B8))) -> 9344.505206 | O93: =IF(AND(OR(Calculations!$E$2="Orkney Health Board",Calculations!$E$2="Orkney Islands Local Authority"),$F93=1),0,IF(AND(OR(Calculations!$E$2="Shetland Health Board",Calculations!$E$2="Western Isles Health Board",Calculations!$E$2="Shetland Islands Local Authority",Calculations!$E$2="Eilean Siar Local Authority"),OR($F93=1,$F93=5)),0,hosp_count(VALUE(LEFT(Options!$B$24,2)),$C93,$E93,$F93,2016,$I93,1,$H93,$G93*$H93, Options!B8))) -> 12188.20958 | P93: =IF(AND(OR(Calculations!$E$2="Orkney Health Board",Calculations!$E$2="Orkney Islands Local Authority"),$F93=1),0,IF(AND(OR(Calculations!$E$2="Shetland Health Board",Calculations!$E$2="Western Isles Health Board",Calculations!$E$2="Shetland Islands Local Authority",Calculations!$E$2="Eilean Siar Local Authority"),OR($F93=1,$F93=5)),0,hosp_count(VALUE(LEFT(Options!$B$24,2)),$C93,$E93,$F93,2016,$I93+$J93,1,$H93,$G93*$H93, Options!B8))) -> 12138.50152 | Q93: =IF(AND(OR(Calculations!$E$2="Orkney Health Board",Calculations!$E$2="Orkney Islands Local Authority"),$F93=1),0,IF(AND(OR(Calculations!$E$2="Shetland Health Board",Calculations!$E$2="Western Isles Health Board",Calculations!$E$2="Shetland Islands Local Authority",Calculations!$E$2="Eilean Siar Local Authority"),OR($F93=1,$F93=5)),0,prem_mort(VALUE(LEFT(Options!$B$24,2)),$C93,$E93,$F93,2016,$I93,1,$H93,$G93*$H93,Options!B8))) -> 819.6845302 | R93: =IF(AND(OR(Calculations!$E$2="Orkney Health Board",Calculations!$E$2="Orkney Islands Local Authority"),$F93=1),0,IF(AND(OR(Calculations!$E$2="Shetland Health Board",Calculations!$E$2="Western Isles Health Board",Calculations!$E$2="Shetland Islands Local Authority",Calculations!$E$2="Eilean Siar Local Authority"),OR($F93=1,$F93=5)),0,prem_mort(VALUE(LEFT(Options!$B$24,2)),$C93,$E93,$F93,2016,$I93+$J93,1,$H93,$G93*$H93,Options!B8))) -> 816.1138493 | S93: 4464.999075 | T93: 4445.548803 | U93: 51124.24834 | V93: 50901.54269 | W93: 66391.81602 | X93: 66121.04544 | Y93: 4464.999075 | Z93: 4445.548803 | AA93: 22324995.38 | AB93: 22227744.02 | AC93: 255621241.7 | AD93: 254507713.4 | AE93: 331959080.1 | AF93: 330605227.2 | AG93: 22324995.38 | AH93: 22227744.02 | AI93: 5000
B94: Male 75-79 | C94: 76.9077 | D94: 86.3577 | E94: male | F94: 1 | G94: =HLOOKUP(Calculations!$E$2,'Prevalence Rates'!$C$3:$BC$249,'Prevalence Rates'!$BD94,FALSE) -> 0.0947005927 | H94: =HLOOKUP(Calculations!$E$2,'Population 2016'!$C$3:$BC$249,'Population 2016'!BD94,FALSE) -> 13914 | I94: 0 | J94: =HLOOKUP(Results!E$4,Targeting!$C$3:$F$249,Targeting!$G94,FALSE) -> 1052 | K94: =IF(AND(OR(Calculations!$E$2="Orkney Health Board",Calculations!$E$2="Orkney Islands Local Authority"),$F94=1),0,IF(AND(OR(Calculations!$E$2="Shetland Health Board",Calculations!$E$2="Western Isles Health Board",Calculations!$E$2="Shetland Islands Local Authority",Calculations!$E$2="Eilean Siar Local Authority"),OR($F94=1,$F94=5)),0,new_ci(VALUE(LEFT(Options!$B$24,2)),$C94,$E94,$F94,2016,$I94,1,$H94,$G94*$H94,Options!B8))) -> 898.1159212 | L94: =IF(AND(OR(Calculations!$E$2="Orkney Health Board",Calculations!$E$2="Orkney Islands Local Authority"),$F94=1),0,IF(AND(OR(Calculations!$E$2="Shetland Health Board",Calculations!$E$2="Western Isles Health Board",Calculations!$E$2="Shetland Islands Local Authority",Calculations!$E$2="Eilean Siar Local Authority"),OR($F94=1,$F94=5)),0,new_ci(VALUE(LEFT(Options!$B$24,2)),$C94,$E94,$F94,2016,$I94+$J94,1,$H94,$G94*$H94,Options!B8))) -> 893.9883864 | M94: =IF(AND(OR(Calculations!$E$2="Orkney Health Board",Calculations!$E$2="Orkney Islands Local Authority"),$F94=1),0,IF(AND(OR(Calculations!$E$2="Shetland Health Board",Calculations!$E$2="Western Isles Health Board",Calculations!$E$2="Shetland Islands Local Authority",Calculations!$E$2="Eilean Siar Local Authority"),OR($F94=1,$F94=5)),0,new_yllv2(VALUE(LEFT(Options!$B$24,2)),$C94,$D94,$E94,$F94,2016,$I94,1,$H94,$G94*$H94,Options!B8))) -> 7589.079534 | N94: =IF(AND(OR(Calculations!$E$2="Orkney Health Board",Calculations!$E$2="Orkney Islands Local Authority"),$F94=1),0,IF(AND(OR(Calculations!$E$2="Shetland Health Board",Calculations!$E$2="Western Isles Health Board",Calculations!$E$2="Shetland Islands Local Authority",Calculations!$E$2="Eilean Siar Local Authority"),OR($F94=1,$F94=5)),0,new_yllv2(VALUE(LEFT(Options!$B$24,2)),$C94,$D94,$E94,$F94,2016,$I94+$J94,1,$H94,$G94*$H94,Options!B8))) -> 7554.201865 | O94: =IF(AND(OR(Calculations!$E$2="Orkney Health Board",Calculations!$E$2="Orkney Islands Local Authority"),$F94=1),0,IF(AND(OR(Calculations!$E$2="Shetland Health Board",Calculations!$E$2="Western Isles Health Board",Calculations!$E$2="Shetland Islands Local Authority",Calculations!$E$2="Eilean Siar Local Authority"),OR($F94=1,$F94=5)),0,hosp_count(VALUE(LEFT(Options!$B$24,2)),$C94,$E94,$F94,2016,$I94,1,$H94,$G94*$H94, Options!B8))) -> 11038.22627 | P94: =IF(AND(OR(Calculations!$E$2="Orkney Health Board",Calculations!$E$2="Orkney Islands Local Authority"),$F94=1),0,IF(AND(OR(Calculations!$E$2="Shetland Health Board",Calculations!$E$2="Western Isles Health Board",Calculations!$E$2="Shetland Islands Local Authority",Calculations!$E$2="Eilean Siar Local Authority"),OR($F94=1,$F94=5)),0,hosp_count(VALUE(LEFT(Options!$B$24,2)),$C94,$E94,$F94,2016,$I94+$J94,1,$H94,$G94*$H94, Options!B8))) -> 10992.58804 | Q94: =IF(AND(OR(Calculations!$E$2="Orkney Health Board",Calculations!$E$2="Orkney Islands Local Authority"),$F94=1),0,IF(AND(OR(Calculations!$E$2="Shetland Health Board",Calculations!$E$2="Western Isles Health Board",Calculations!$E$2="Shetland Islands Local Authority",Calculations!$E$2="Eilean Siar Local Authority"),OR($F94=1,$F94=5)),0,prem_mort(VALUE(LEFT(Options!$B$24,2)),$C94,$E94,$F94,2016,$I94,1,$H94,$G94*$H94,Options!B8))) -> 0 | R94: =IF(AND(OR(Calculations!$E$2="Orkney Health Board",Calculations!$E$2="Orkney Islands Local Authority"),$F94=1),0,IF(AND(OR(Calculations!$E$2="Shetland Health Board",Calculations!$E$2="Western Isles Health Board",Calculations!$E$2="Shetland Islands Local Authority",Calculations!$E$2="Eilean Siar Local Authority"),OR($F94=1,$F94=5)),0,prem_mort(VALUE(LEFT(Options!$B$24,2)),$C94,$E94,$F94,2016,$I94+$J94,1,$H94,$G94*$H94,Options!B8))) -> 0 | S94: 6454.764418 | T94: 6425.099802 | U94: 54542.75934 | V94: 54292.09333 | W94: 79331.79723 | X94: 79003.79504 | Y94: 0 | Z94: 0 | AA94: 25819057.67 | AB94: 25700399.21 | AC94: 218171037.3 | AD94: 217168373.3 | AE94: 317327188.9 | AF94: 316015180.1 | AG94: 0 | AH94: 0 | AI94: 4000
B95: Male 80-84 | C95: 81.797089 | D95: 88.62709 | E95: male | F95: 1 | G95: =HLOOKUP(Calculations!$E$2,'Prevalence Rates'!$C$3:$BC$249,'Prevalence Rates'!$BD95,FALSE) -> 0.0947005927 | H95: =HLOOKUP(Calculations!$E$2,'Population 2016'!$C$3:$BC$249,'Population 2016'!BD95,FALSE) -> 9236 | I95: 0 | J95: =HLOOKUP(Results!E$4,Targeting!$C$3:$F$249,Targeting!$G95,FALSE) -> 698 | K95: =IF(AND(OR(Calculations!$E$2="Orkney Health Board",Calculations!$E$2="Orkney Islands Local Authority"),$F95=1),0,IF(AND(OR(Calculations!$E$2="Shetland Health Board",Calculations!$E$2="Western Isles Health Board",Calculations!$E$2="Shetland Islands Local Authority",Calculations!$E$2="Eilean Siar Local Authority"),OR($F95=1,$F95=5)),0,new_ci(VALUE(LEFT(Options!$B$24,2)),$C95,$E95,$F95,2016,$I95,1,$H95,$G95*$H95,Options!B8))) -> 849.3952419 | L95: =IF(AND(OR(Calculations!$E$2="Orkney Health Board",Calculations!$E$2="Orkney Islands Local Authority"),$F95=1),0,IF(AND(OR(Calculations!$E$2="Shetland Health Board",Calculations!$E$2="Western Isles Health Board",Calculations!$E$2="Shetland Islands Local Authority",Calculations!$E$2="Eilean Siar Local Authority"),OR($F95=1,$F95=5)),0,new_ci(VALUE(LEFT(Options!$B$24,2)),$C95,$E95,$F95,2016,$I95+$J95,1,$H95,$G95*$H95,Options!B8))) -> 845.6087329 | M95: =IF(AND(OR(Calculations!$E$2="Orkney Health Board",Calculations!$E$2="Orkney Islands Local Authority"),$F95=1),0,IF(AND(OR(Calculations!$E$2="Shetland Health Board",Calculations!$E$2="Western Isles Health Board",Calculations!$E$2="Shetland Islands Local Authority",Calculations!$E$2="Eilean Siar Local Authority"),OR($F95=1,$F95=5)),0,new_yllv2(VALUE(LEFT(Options!$B$24,2)),$C95,$D95,$E95,$F95,2016,$I95,1,$H95,$G95*$H95,Options!B8))) -> 4951.97511 | N95: =IF(AND(OR(Calculations!$E$2="Orkney Health Board",Calculations!$E$2="Orkney Islands Local Authority"),$F95=1),0,IF(AND(OR(Calculations!$E$2="Shetland Health Board",Calculations!$E$2="Western Isles Health Board",Calculations!$E$2="Shetland Islands Local Authority",Calculations!$E$2="Eilean Siar Local Authority"),OR($F95=1,$F95=5)),0,new_yllv2(VALUE(LEFT(Options!$B$24,2)),$C95,$D95,$E95,$F95,2016,$I95+$J95,1,$H95,$G95*$H95,Options!B8))) -> 4929.899759 | O95: =IF(AND(OR(Calculations!$E$2="Orkney Health Board",Calculations!$E$2="Orkney Islands Local Authority"),$F95=1),0,IF(AND(OR(Calculations!$E$2="Shetland Health Board",Calculations!$E$2="Western Isles Health Board",Calculations!$E$2="Shetland Islands Local Authority",Calculations!$E$2="Eilean Siar Local Authority"),OR($F95=1,$F95=5)),0,hosp_count(VALUE(LEFT(Options!$B$24,2)),$C95,$E95,$F95,2016,$I95,1,$H95,$G95*$H95, Options!B8))) -> 8715.71314 | P95: =IF(AND(OR(Calculations!$E$2="Orkney Health Board",Calculations!$E$2="Orkney Islands Local Authority"),$F95=1),0,IF(AND(OR(Calculations!$E$2="Shetland Health Board",Calculations!$E$2="Western Isles Health Board",Calculations!$E$2="Shetland Islands Local Authority",Calculations!$E$2="Eilean Siar Local Authority"),OR($F95=1,$F95=5)),0,hosp_count(VALUE(LEFT(Options!$B$24,2)),$C95,$E95,$F95,2016,$I95+$J95,1,$H95,$G95*$H95, Options!B8))) -> 8679.693436 | Q95: =IF(AND(OR(Calculations!$E$2="Orkney Health Board",Calculations!$E$2="Orkney Islands Local Authority"),$F95=1),0,IF(AND(OR(Calculations!$E$2="Shetland Health Board",Calculations!$E$2="Western Isles Health Board",Calculations!$E$2="Shetland Islands Local Authority",Calculations!$E$2="Eilean Siar Local Authority"),OR($F95=1,$F95=5)),0,prem_mort(VALUE(LEFT(Options!$B$24,2)),$C95,$E95,$F95,2016,$I95,1,$H95,$G95*$H95,Options!B8))) -> 0 | R95: =IF(AND(OR(Calculations!$E$2="Orkney Health Board",Calculations!$E$2="Orkney Islands Local Authority"),$F95=1),0,IF(AND(OR(Calculations!$E$2="Shetland Health Board",Calculations!$E$2="Western Isles Health Board",Calculations!$E$2="Shetland Islands Local Authority",Calculations!$E$2="Eilean Siar Local Authority"),OR($F95=1,$F95=5)),0,prem_mort(VALUE(LEFT(Options!$B$24,2)),$C95,$E95,$F95,2016,$I95+$J95,1,$H95,$G95*$H95,Options!B8))) -> 0 | S95: 9196.570398 | T95: 9155.573115 | U95: 53616.01461 | V95: 53377.00042 | W95: 94366.75119 | X95: 93976.75873 | Y95: 0 | Z95: 0 | AA95: 22991425.99 | AB95: 22888932.79 | AC95: 134040036.5 | AD95: 133442501 | AE95: 235916878 | AF95: 234941896.8 | AG95: 0 | AH95: 0 | AI95: 2500
B96: Male 85-89 | C96: 86.630753 | D96: 91.42075 | E96: male | F96: 1 | G96: =HLOOKUP(Calculations!$E$2,'Prevalence Rates'!$C$3:$BC$249,'Prevalence Rates'!$BD96,FALSE) -> 0.0947005927 | H96: =HLOOKUP(Calculations!$E$2,'Population 2016'!$C$3:$BC$249,'Population 2016'!BD96,FALSE) -> 4449 | I96: 0 | J96: =HLOOKUP(Results!E$4,Targeting!$C$3:$F$249,Targeting!$G96,FALSE) -> 336 | K96: =IF(AND(OR(Calculations!$E$2="Orkney Health Board",Calculations!$E$2="Orkney Islands Local Authority"),$F96=1),0,IF(AND(OR(Calculations!$E$2="Shetland Health Board",Calculations!$E$2="Western Isles Health Board",Calculations!$E$2="Shetland Islands Local Authority",Calculations!$E$2="Eilean Siar Local Authority"),OR($F96=1,$F96=5)),0,new_ci(VALUE(LEFT(Options!$B$24,2)),$C96,$E96,$F96,2016,$I96,1,$H96,$G96*$H96,Options!B8))) -> 576.8611038 | L96: =IF(AND(OR(Calculations!$E$2="Orkney Health Board",Calculations!$E$2="Orkney Islands Local Authority"),$F96=1),0,IF(AND(OR(Calculations!$E$2="Shetland Health Board",Calculations!$E$2="Western Isles Health Board",Calculations!$E$2="Shetland Islands Local Authority",Calculations!$E$2="Eilean Siar Local Authority"),OR($F96=1,$F96=5)),0,new_ci(VALUE(LEFT(Options!$B$24,2)),$C96,$E96,$F96,2016,$I96+$J96,1,$H96,$G96*$H96,Options!B8))) -> 574.3993961 | M96: =IF(AND(OR(Calculations!$E$2="Orkney Health Board",Calculations!$E$2="Orkney Islands Local Authority"),$F96=1),0,IF(AND(OR(Calculations!$E$2="Shetland Health Board",Calculations!$E$2="Western Isles Health Board",Calculations!$E$2="Shetland Islands Local Authority",Calculations!$E$2="Eilean Siar Local Authority"),OR($F96=1,$F96=5)),0,new_yllv2(VALUE(LEFT(Options!$B$24,2)),$C96,$D96,$E96,$F96,2016,$I96,1,$H96,$G96*$H96,Options!B8))) -> 2186.301853 | N96: =IF(AND(OR(Calculations!$E$2="Orkney Health Board",Calculations!$E$2="Orkney Islands Local Authority"),$F96=1),0,IF(AND(OR(Calculations!$E$2="Shetland Health Board",Calculations!$E$2="Western Isles Health Board",Calculations!$E$2="Shetland Islands Local Authority",Calculations!$E$2="Eilean Siar Local Authority"),OR($F96=1,$F96=5)),0,new_yllv2(VALUE(LEFT(Options!$B$24,2)),$C96,$D96,$E96,$F96,2016,$I96+$J96,1,$H96,$G96*$H96,Options!B8))) -> 2176.971988 | O96: =IF(AND(OR(Calculations!$E$2="Orkney Health Board",Calculations!$E$2="Orkney Islands Local Authority"),$F96=1),0,IF(AND(OR(Calculations!$E$2="Shetland Health Board",Calculations!$E$2="Western Isles Health Board",Calculations!$E$2="Shetland Islands Local Authority",Calculations!$E$2="Eilean Siar Local Authority"),OR($F96=1,$F96=5)),0,hosp_count(VALUE(LEFT(Options!$B$24,2)),$C96,$E96,$F96,2016,$I96,1,$H96,$G96*$H96, Options!B8))) -> 4984.184367 | P96: =IF(AND(OR(Calculations!$E$2="Orkney Health Board",Calculations!$E$2="Orkney Islands Local Authority"),$F96=1),0,IF(AND(OR(Calculations!$E$2="Shetland Health Board",Calculations!$E$2="Western Isles Health Board",Calculations!$E$2="Shetland Islands Local Authority",Calculations!$E$2="Eilean Siar Local Authority"),OR($F96=1,$F96=5)),0,hosp_count(VALUE(LEFT(Options!$B$24,2)),$C96,$E96,$F96,2016,$I96+$J96,1,$H96,$G96*$H96, Options!B8))) -> 4963.600039 | Q96: =IF(AND(OR(Calculations!$E$2="Orkney Health Board",Calculations!$E$2="Orkney Islands Local Authority"),$F96=1),0,IF(AND(OR(Calculations!$E$2="Shetland Health Board",Calculations!$E$2="Western Isles Health Board",Calculations!$E$2="Shetland Islands Local Authority",Calculations!$E$2="Eilean Siar Local Authority"),OR($F96=1,$F96=5)),0,prem_mort(VALUE(LEFT(Options!$B$24,2)),$C96,$E96,$F96,2016,$I96,1,$H96,$G96*$H96,Options!B8))) -> 0 | R96: =IF(AND(OR(Calculations!$E$2="Orkney Health Board",Calculations!$E$2="Orkney Islands Local Authority"),$F96=1),0,IF(AND(OR(Calculations!$E$2="Shetland Health Board",Calculations!$E$2="Western Isles Health Board",Calculations!$E$2="Shetland Islands Local Authority",Calculations!$E$2="Eilean Siar Local Authority"),OR($F96=1,$F96=5)),0,prem_mort(VALUE(LEFT(Options!$B$24,2)),$C96,$E96,$F96,2016,$I96+$J96,1,$H96,$G96*$H96,Options!B8))) -> 0 | S96: 12966.0846 | T96: 12910.75289 | U96: 49141.42174 | V96: 48931.71473 | W96: 112029.3182 | X96: 111566.6451 | Y96: 0 | Z96: 0 | AA96: 19449126.9 | AB96: 19366129.34 | AC96: 73712132.6 | AD96: 73397572.09 | AE96: 168043977.3 | AF96: 167349967.6 | AG96: 0 | AH96: 0 | AI96: 1500
B97: Male 90+ | C97: 92.215477 | D97: 95.51548 | E97: male | F97: 1 | G97: =HLOOKUP(Calculations!$E$2,'Prevalence Rates'!$C$3:$BC$249,'Prevalence Rates'!$BD97,FALSE) -> 0.0947005927 | H97: =HLOOKUP(Calculations!$E$2,'Population 2016'!$C$3:$BC$249,'Population 2016'!BD97,FALSE) -> 1916 | I97: 0 | J97: =HLOOKUP(Results!E$4,Targeting!$C$3:$F$249,Targeting!$G97,FALSE) -> 145 | K97: =IF(AND(OR(Calculations!$E$2="Orkney Health Board",Calculations!$E$2="Orkney Islands Local Authority"),$F97=1),0,IF(AND(OR(Calculations!$E$2="Shetland Health Board",Calculations!$E$2="Western Isles Health Board",Calculations!$E$2="Shetland Islands Local Authority",Calculations!$E$2="Eilean Siar Local Authority"),OR($F97=1,$F97=5)),0,new_ci(VALUE(LEFT(Options!$B$24,2)),$C97,$E97,$F97,2016,$I97,1,$H97,$G97*$H97,Options!B8))) -> 365.2108556 | L97: =IF(AND(OR(Calculations!$E$2="Orkney Health Board",Calculations!$E$2="Orkney Islands Local Authority"),$F97=1),0,IF(AND(OR(Calculations!$E$2="Shetland Health Board",Calculations!$E$2="Western Isles Health Board",Calculations!$E$2="Shetland Islands Local Authority",Calculations!$E$2="Eilean Siar Local Authority"),OR($F97=1,$F97=5)),0,new_ci(VALUE(LEFT(Options!$B$24,2)),$C97,$E97,$F97,2016,$I97+$J97,1,$H97,$G97*$H97,Options!B8))) -> 363.7607591 | M97: =IF(AND(OR(Calculations!$E$2="Orkney Health Board",Calculations!$E$2="Orkney Islands Local Authority"),$F97=1),0,IF(AND(OR(Calculations!$E$2="Shetland Health Board",Calculations!$E$2="Western Isles Health Board",Calculations!$E$2="Shetland Islands Local Authority",Calculations!$E$2="Eilean Siar Local Authority"),OR($F97=1,$F97=5)),0,new_yllv2(VALUE(LEFT(Options!$B$24,2)),$C97,$D97,$E97,$F97,2016,$I97,1,$H97,$G97*$H97,Options!B8))) -> 839.9860634 | N97: =IF(AND(OR(Calculations!$E$2="Orkney Health Board",Calculations!$E$2="Orkney Islands Local Authority"),$F97=1),0,IF(AND(OR(Calculations!$E$2="Shetland Health Board",Calculations!$E$2="Western Isles Health Board",Calculations!$E$2="Shetland Islands Local Authority",Calculations!$E$2="Eilean Siar Local Authority"),OR($F97=1,$F97=5)),0,new_yllv2(VALUE(LEFT(Options!$B$24,2)),$C97,$D97,$E97,$F97,2016,$I97+$J97,1,$H97,$G97*$H97,Options!B8))) -> 836.6508373 | O97: =IF(AND(OR(Calculations!$E$2="Orkney Health Board",Calculations!$E$2="Orkney Islands Local Authority"),$F97=1),0,IF(AND(OR(Calculations!$E$2="Shetland Health Board",Calculations!$E$2="Western Isles Health Board",Calculations!$E$2="Shetland Islands Local Authority",Calculations!$E$2="Eilean Siar Local Authority"),OR($F97=1,$F97=5)),0,hosp_count(VALUE(LEFT(Options!$B$24,2)),$C97,$E97,$F97,2016,$I97,1,$H97,$G97*$H97, Options!B8))) -> 2617.084529 | P97: =IF(AND(OR(Calculations!$E$2="Orkney Health Board",Calculations!$E$2="Orkney Islands Local Authority"),$F97=1),0,IF(AND(OR(Calculations!$E$2="Shetland Health Board",Calculations!$E$2="Western Isles Health Board",Calculations!$E$2="Shetland Islands Local Authority",Calculations!$E$2="Eilean Siar Local Authority"),OR($F97=1,$F97=5)),0,hosp_count(VALUE(LEFT(Options!$B$24,2)),$C97,$E97,$F97,2016,$I97+$J97,1,$H97,$G97*$H97, Options!B8))) -> 2606.253843 | Q97: =IF(AND(OR(Calculations!$E$2="Orkney Health Board",Calculations!$E$2="Orkney Islands Local Authority"),$F97=1),0,IF(AND(OR(Calculations!$E$2="Shetland Health Board",Calculations!$E$2="Western Isles Health Board",Calculations!$E$2="Shetland Islands Local Authority",Calculations!$E$2="Eilean Siar Local Authority"),OR($F97=1,$F97=5)),0,prem_mort(VALUE(LEFT(Options!$B$24,2)),$C97,$E97,$F97,2016,$I97,1,$H97,$G97*$H97,Options!B8))) -> 0 | R97: =IF(AND(OR(Calculations!$E$2="Orkney Health Board",Calculations!$E$2="Orkney Islands Local Authority"),$F97=1),0,IF(AND(OR(Calculations!$E$2="Shetland Health Board",Calculations!$E$2="Western Isles Health Board",Calculations!$E$2="Shetland Islands Local Authority",Calculations!$E$2="Eilean Siar Local Authority"),OR($F97=1,$F97=5)),0,prem_mort(VALUE(LEFT(Options!$B$24,2)),$C97,$E97,$F97,2016,$I97+$J97,1,$H97,$G97*$H97,Options!B8))) -> 0 | S97: 19061.10937 | T97: 18985.42584 | U97: 43840.60874 | V97: 43666.53639 | W97: 136591.0506 | X97: 136025.7747 | Y97: 0 | Z97: 0 | AA97: 19061109.37 | AB97: 18985425.84 | AC97: 43840608.74 | AD97: 43666536.39 | AE97: 136591050.6 | AF97: 136025774.7 | AG97: 0 | AH97: 0 | AI97: 1000
B98: Female 0-4 | C98: 2.0384007 | D98: 81.468401 | E98: female | F98: 2 | G98: =HLOOKUP(Calculations!$E$2,'Prevalence Rates'!$C$3:$BC$249,'Prevalence Rates'!$BD98,FALSE) -> 0 | H98: =HLOOKUP(Calculations!$E$2,'Population 2016'!$C$3:$BC$249,'Population 2016'!BD98,FALSE) -> 0 | I98: 0 | J98: =HLOOKUP(Results!E$4,Targeting!$C$3:$F$249,Targeting!$G98,FALSE) -> 0 | K98: =IF(AND(OR(Calculations!$E$2="Orkney Health Board",Calculations!$E$2="Orkney Islands Local Authority"),$F98=1),0,IF(AND(OR(Calculations!$E$2="Shetland Health Board",Calculations!$E$2="Western Isles Health Board",Calculations!$E$2="Shetland Islands Local Authority",Calculations!$E$2="Eilean Siar Local Authority"),OR($F98=1,$F98=5)),0,new_ci(VALUE(LEFT(Options!$B$24,2)),$C98,$E98,$F98,2016,$I98,1,$H98,$G98*$H98,Options!B8))) ->  | L98: =IF(AND(OR(Calculations!$E$2="Orkney Health Board",Calculations!$E$2="Orkney Islands Local Authority"),$F98=1),0,IF(AND(OR(Calculations!$E$2="Shetland Health Board",Calculations!$E$2="Western Isles Health Board",Calculations!$E$2="Shetland Islands Local Authority",Calculations!$E$2="Eilean Siar Local Authority"),OR($F98=1,$F98=5)),0,new_ci(VALUE(LEFT(Options!$B$24,2)),$C98,$E98,$F98,2016,$I98+$J98,1,$H98,$G98*$H98,Options!B8))) ->  | M98: =IF(AND(OR(Calculations!$E$2="Orkney Health Board",Calculations!$E$2="Orkney Islands Local Authority"),$F98=1),0,IF(AND(OR(Calculations!$E$2="Shetland Health Board",Calculations!$E$2="Western Isles Health Board",Calculations!$E$2="Shetland Islands Local Authority",Calculations!$E$2="Eilean Siar Local Authority"),OR($F98=1,$F98=5)),0,new_yllv2(VALUE(LEFT(Options!$B$24,2)),$C98,$D98,$E98,$F98,2016,$I98,1,$H98,$G98*$H98,Options!B8))) ->  | N98: =IF(AND(OR(Calculations!$E$2="Orkney Health Board",Calculations!$E$2="Orkney Islands Local Authority"),$F98=1),0,IF(AND(OR(Calculations!$E$2="Shetland Health Board",Calculations!$E$2="Western Isles Health Board",Calculations!$E$2="Shetland Islands Local Authority",Calculations!$E$2="Eilean Siar Local Authority"),OR($F98=1,$F98=5)),0,new_yllv2(VALUE(LEFT(Options!$B$24,2)),$C98,$D98,$E98,$F98,2016,$I98+$J98,1,$H98,$G98*$H98,Options!B8))) ->  | O98: =IF(AND(OR(Calculations!$E$2="Orkney Health Board",Calculations!$E$2="Orkney Islands Local Authority"),$F98=1),0,IF(AND(OR(Calculations!$E$2="Shetland Health Board",Calculations!$E$2="Western Isles Health Board",Calculations!$E$2="Shetland Islands Local Authority",Calculations!$E$2="Eilean Siar Local Authority"),OR($F98=1,$F98=5)),0,hosp_count(VALUE(LEFT(Options!$B$24,2)),$C98,$E98,$F98,2016,$I98,1,$H98,$G98*$H98, Options!B8))) ->  | P98: =IF(AND(OR(Calculations!$E$2="Orkney Health Board",Calculations!$E$2="Orkney Islands Local Authority"),$F98=1),0,IF(AND(OR(Calculations!$E$2="Shetland Health Board",Calculations!$E$2="Western Isles Health Board",Calculations!$E$2="Shetland Islands Local Authority",Calculations!$E$2="Eilean Siar Local Authority"),OR($F98=1,$F98=5)),0,hosp_count(VALUE(LEFT(Options!$B$24,2)),$C98,$E98,$F98,2016,$I98+$J98,1,$H98,$G98*$H98, Options!B8))) ->  | Q98: =IF(AND(OR(Calculations!$E$2="Orkney Health Board",Calculations!$E$2="Orkney Islands Local Authority"),$F98=1),0,IF(AND(OR(Calculations!$E$2="Shetland Health Board",Calculations!$E$2="Western Isles Health Board",Calculations!$E$2="Shetland Islands Local Authority",Calculations!$E$2="Eilean Siar Local Authority"),OR($F98=1,$F98=5)),0,prem_mort(VALUE(LEFT(Options!$B$24,2)),$C98,$E98,$F98,2016,$I98,1,$H98,$G98*$H98,Options!B8))) ->  | R98: =IF(AND(OR(Calculations!$E$2="Orkney Health Board",Calculations!$E$2="Orkney Islands Local Authority"),$F98=1),0,IF(AND(OR(Calculations!$E$2="Shetland Health Board",Calculations!$E$2="Western Isles Health Board",Calculations!$E$2="Shetland Islands Local Authority",Calculations!$E$2="Eilean Siar Local Authority"),OR($F98=1,$F98=5)),0,prem_mort(VALUE(LEFT(Options!$B$24,2)),$C98,$E98,$F98,2016,$I98+$J98,1,$H98,$G98*$H98,Options!B8))) ->  | AI98: 5000
B99: Female 5-9 | C99: 6.9792795 | D99: 81.43928 | E99: female | F99: 2 | G99: =HLOOKUP(Calculations!$E$2,'Prevalence Rates'!$C$3:$BC$249,'Prevalence Rates'!$BD99,FALSE) -> 0 | H99: =HLOOKUP(Calculations!$E$2,'Population 2016'!$C$3:$BC$249,'Population 2016'!BD99,FALSE) -> 0 | I99: 0 | J99: =HLOOKUP(Results!E$4,Targeting!$C$3:$F$249,Targeting!$G99,FALSE) -> 0 | K99: =IF(AND(OR(Calculations!$E$2="Orkney Health Board",Calculations!$E$2="Orkney Islands Local Authority"),$F99=1),0,IF(AND(OR(Calculations!$E$2="Shetland Health Board",Calculations!$E$2="Western Isles Health Board",Calculations!$E$2="Shetland Islands Local Authority",Calculations!$E$2="Eilean Siar Local Authority"),OR($F99=1,$F99=5)),0,new_ci(VALUE(LEFT(Options!$B$24,2)),$C99,$E99,$F99,2016,$I99,1,$H99,$G99*$H99,Options!B8))) ->  | L99: =IF(AND(OR(Calculations!$E$2="Orkney Health Board",Calculations!$E$2="Orkney Islands Local Authority"),$F99=1),0,IF(AND(OR(Calculations!$E$2="Shetland Health Board",Calculations!$E$2="Western Isles Health Board",Calculations!$E$2="Shetland Islands Local Authority",Calculations!$E$2="Eilean Siar Local Authority"),OR($F99=1,$F99=5)),0,new_ci(VALUE(LEFT(Options!$B$24,2)),$C99,$E99,$F99,2016,$I99+$J99,1,$H99,$G99*$H99,Options!B8))) ->  | M99: =IF(AND(OR(Calculations!$E$2="Orkney Health Board",Calculations!$E$2="Orkney Islands Local Authority"),$F99=1),0,IF(AND(OR(Calculations!$E$2="Shetland Health Board",Calculations!$E$2="Western Isles Health Board",Calculations!$E$2="Shetland Islands Local Authority",Calculations!$E$2="Eilean Siar Local Authority"),OR($F99=1,$F99=5)),0,new_yllv2(VALUE(LEFT(Options!$B$24,2)),$C99,$D99,$E99,$F99,2016,$I99,1,$H99,$G99*$H99,Options!B8))) ->  | N99: =IF(AND(OR(Calculations!$E$2="Orkney Health Board",Calculations!$E$2="Orkney Islands Local Authority"),$F99=1),0,IF(AND(OR(Calculations!$E$2="Shetland Health Board",Calculations!$E$2="Western Isles Health Board",Calculations!$E$2="Shetland Islands Local Authority",Calculations!$E$2="Eilean Siar Local Authority"),OR($F99=1,$F99=5)),0,new_yllv2(VALUE(LEFT(Options!$B$24,2)),$C99,$D99,$E99,$F99,2016,$I99+$J99,1,$H99,$G99*$H99,Options!B8))) ->  | O99: =IF(AND(OR(Calculations!$E$2="Orkney Health Board",Calculations!$E$2="Orkney Islands Local Authority"),$F99=1),0,IF(AND(OR(Calculations!$E$2="Shetland Health Board",Calculations!$E$2="Western Isles Health Board",Calculations!$E$2="Shetland Islands Local Authority",Calculations!$E$2="Eilean Siar Local Authority"),OR($F99=1,$F99=5)),0,hosp_count(VALUE(LEFT(Options!$B$24,2)),$C99,$E99,$F99,2016,$I99,1,$H99,$G99*$H99, Options!B8))) ->  | P99: =IF(AND(OR(Calculations!$E$2="Orkney Health Board",Calculations!$E$2="Orkney Islands Local Authority"),$F99=1),0,IF(AND(OR(Calculations!$E$2="Shetland Health Board",Calculations!$E$2="Western Isles Health Board",Calculations!$E$2="Shetland Islands Local Authority",Calculations!$E$2="Eilean Siar Local Authority"),OR($F99=1,$F99=5)),0,hosp_count(VALUE(LEFT(Options!$B$24,2)),$C99,$E99,$F99,2016,$I99+$J99,1,$H99,$G99*$H99, Options!B8))) ->  | Q99: =IF(AND(OR(Calculations!$E$2="Orkney Health Board",Calculations!$E$2="Orkney Islands Local Authority"),$F99=1),0,IF(AND(OR(Calculations!$E$2="Shetland Health Board",Calculations!$E$2="Western Isles Health Board",Calculations!$E$2="Shetland Islands Local Authority",Calculations!$E$2="Eilean Siar Local Authority"),OR($F99=1,$F99=5)),0,prem_mort(VALUE(LEFT(Options!$B$24,2)),$C99,$E99,$F99,2016,$I99,1,$H99,$G99*$H99,Options!B8))) ->  | R99: =IF(AND(OR(Calculations!$E$2="Orkney Health Board",Calculations!$E$2="Orkney Islands Local Authority"),$F99=1),0,IF(AND(OR(Calculations!$E$2="Shetland Health Board",Calculations!$E$2="Western Isles Health Board",Calculations!$E$2="Shetland Islands Local Authority",Calculations!$E$2="Eilean Siar Local Authority"),OR($F99=1,$F99=5)),0,prem_mort(VALUE(LEFT(Options!$B$24,2)),$C99,$E99,$F99,2016,$I99+$J99,1,$H99,$G99*$H99,Options!B8))) ->  | AI99: 5500
B100: Female 10-15 | C100: 12.478312 | D100: 81.94831 | E100: female | F100: 2 | G100: =HLOOKUP(Calculations!$E$2,'Prevalence Rates'!$C$3:$BC$249,'Prevalence Rates'!$BD100,FALSE) -> 0 | H100: =HLOOKUP(Calculations!$E$2,'Population 2016'!$C$3:$BC$249,'Population 2016'!BD100,FALSE) -> 0 | I100: 0 | J100: =HLOOKUP(Results!E$4,Targeting!$C$3:$F$249,Targeting!$G100,FALSE) -> 0 | K100: =IF(AND(OR(Calculations!$E$2="Orkney Health Board",Calculations!$E$2="Orkney Islands Local Authority"),$F100=1),0,IF(AND(OR(Calculations!$E$2="Shetland Health Board",Calculations!$E$2="Western Isles Health Board",Calculations!$E$2="Shetland Islands Local Authority",Calculations!$E$2="Eilean Siar Local Authority"),OR($F100=1,$F100=5)),0,new_ci(VALUE(LEFT(Options!$B$24,2)),$C100,$E100,$F100,2016,$I100,1,$H100,$G100*$H100,Options!B8))) ->  | L100: =IF(AND(OR(Calculations!$E$2="Orkney Health Board",Calculations!$E$2="Orkney Islands Local Authority"),$F100=1),0,IF(AND(OR(Calculations!$E$2="Shetland Health Board",Calculations!$E$2="Western Isles Health Board",Calculations!$E$2="Shetland Islands Local Authority",Calculations!$E$2="Eilean Siar Local Authority"),OR($F100=1,$F100=5)),0,new_ci(VALUE(LEFT(Options!$B$24,2)),$C100,$E100,$F100,2016,$I100+$J100,1,$H100,$G100*$H100,Options!B8))) ->  | M100: =IF(AND(OR(Calculations!$E$2="Orkney Health Board",Calculations!$E$2="Orkney Islands Local Authority"),$F100=1),0,IF(AND(OR(Calculations!$E$2="Shetland Health Board",Calculations!$E$2="Western Isles Health Board",Calculations!$E$2="Shetland Islands Local Authority",Calculations!$E$2="Eilean Siar Local Authority"),OR($F100=1,$F100=5)),0,new_yllv2(VALUE(LEFT(Options!$B$24,2)),$C100,$D100,$E100,$F100,2016,$I100,1,$H100,$G100*$H100,Options!B8))) ->  | N100: =IF(AND(OR(Calculations!$E$2="Orkney Health Board",Calculations!$E$2="Orkney Islands Local Authority"),$F100=1),0,IF(AND(OR(Calculations!$E$2="Shetland Health Board",Calculations!$E$2="Western Isles Health Board",Calculations!$E$2="Shetland Islands Local Authority",Calculations!$E$2="Eilean Siar Local Authority"),OR($F100=1,$F100=5)),0,new_yllv2(VALUE(LEFT(Options!$B$24,2)),$C100,$D100,$E100,$F100,2016,$I100+$J100,1,$H100,$G100*$H100,Options!B8))) ->  | O100: =IF(AND(OR(Calculations!$E$2="Orkney Health Board",Calculations!$E$2="Orkney Islands Local Authority"),$F100=1),0,IF(AND(OR(Calculations!$E$2="Shetland Health Board",Calculations!$E$2="Western Isles Health Board",Calculations!$E$2="Shetland Islands Local Authority",Calculations!$E$2="Eilean Siar Local Authority"),OR($F100=1,$F100=5)),0,hosp_count(VALUE(LEFT(Options!$B$24,2)),$C100,$E100,$F100,2016,$I100,1,$H100,$G100*$H100, Options!B8))) ->  | P100: =IF(AND(OR(Calculations!$E$2="Orkney Health Board",Calculations!$E$2="Orkney Islands Local Authority"),$F100=1),0,IF(AND(OR(Calculations!$E$2="Shetland Health Board",Calculations!$E$2="Western Isles Health Board",Calculations!$E$2="Shetland Islands Local Authority",Calculations!$E$2="Eilean Siar Local Authority"),OR($F100=1,$F100=5)),0,hosp_count(VALUE(LEFT(Options!$B$24,2)),$C100,$E100,$F100,2016,$I100+$J100,1,$H100,$G100*$H100, Options!B8))) ->  | Q100: =IF(AND(OR(Calculations!$E$2="Orkney Health Board",Calculations!$E$2="Orkney Islands Local Authority"),$F100=1),0,IF(AND(OR(Calculations!$E$2="Shetland Health Board",Calculations!$E$2="Western Isles Health Board",Calculations!$E$2="Shetland Islands Local Authority",Calculations!$E$2="Eilean Siar Local Authority"),OR($F100=1,$F100=5)),0,prem_mort(VALUE(LEFT(Options!$B$24,2)),$C100,$E100,$F100,2016,$I100,1,$H100,$G100*$H100,Options!B8))) ->  | R100: =IF(AND(OR(Calculations!$E$2="Orkney Health Board",Calculations!$E$2="Orkney Islands Local Authority"),$F100=1),0,IF(AND(OR(Calculations!$E$2="Shetland Health Board",Calculations!$E$2="Western Isles Health Board",Calculations!$E$2="Shetland Islands Local Authority",Calculations!$E$2="Eilean Siar Local Authority"),OR($F100=1,$F100=5)),0,prem_mort(VALUE(LEFT(Options!$B$24,2)),$C100,$E100,$F100,2016,$I100+$J100,1,$H100,$G100*$H100,Options!B8))) ->  | AI100: 6600
A101: SIMD Q2 | B101: Female 16-19 | C101: 17.570053 | D101: 81.10005 | E101: female | F101: 2 | G101: =HLOOKUP(Calculations!$E$2,'Prevalence Rates'!$C$3:$BC$249,'Prevalence Rates'!$BD101,FALSE) -> 0.2338560191 | H101: =HLOOKUP(Calculations!$E$2,'Population 2016'!$C$3:$BC$249,'Population 2016'!BD101,FALSE) -> 23121 | I101: 0 | J101: =HLOOKUP(Results!E$4,Targeting!$C$3:$F$249,Targeting!$G101,FALSE) -> 1748 | K101: =IF(AND(OR(Calculations!$E$2="Orkney Health Board",Calculations!$E$2="Orkney Islands Local Authority"),$F101=1),0,IF(AND(OR(Calculations!$E$2="Shetland Health Board",Calculations!$E$2="Western Isles Health Board",Calculations!$E$2="Shetland Islands Local Authority",Calculations!$E$2="Eilean Siar Local Authority"),OR($F101=1,$F101=5)),0,new_ci(VALUE(LEFT(Options!$B$24,2)),$C101,$E101,$F101,2016,$I101,1,$H101,$G101*$H101,Options!B8))) -> 5.147460506 | L101: =IF(AND(OR(Calculations!$E$2="Orkney Health Board",Calculations!$E$2="Orkney Islands Local Authority"),$F101=1),0,IF(AND(OR(Calculations!$E$2="Shetland Health Board",Calculations!$E$2="Western Isles Health Board",Calculations!$E$2="Shetland Islands Local Authority",Calculations!$E$2="Eilean Siar Local Authority"),OR($F101=1,$F101=5)),0,new_ci(VALUE(LEFT(Options!$B$24,2)),$C101,$E101,$F101,2016,$I101+$J101,1,$H101,$G101*$H101,Options!B8))) -> 5.126010449 | M101: =IF(AND(OR(Calculations!$E$2="Orkney Health Board",Calculations!$E$2="Orkney Islands Local Authority"),$F101=1),0,IF(AND(OR(Calculations!$E$2="Shetland Health Board",Calculations!$E$2="Western Isles Health Board",Calculations!$E$2="Shetland Islands Local Authority",Calculations!$E$2="Eilean Siar Local Authority"),OR($F101=1,$F101=5)),0,new_yllv2(VALUE(LEFT(Options!$B$24,2)),$C101,$D101,$E101,$F101,2016,$I101,1,$H101,$G101*$H101,Options!B8))) -> 321.87069 | N101: =IF(AND(OR(Calculations!$E$2="Orkney Health Board",Calculations!$E$2="Orkney Islands Local Authority"),$F101=1),0,IF(AND(OR(Calculations!$E$2="Shetland Health Board",Calculations!$E$2="Western Isles Health Board",Calculations!$E$2="Shetland Islands Local Authority",Calculations!$E$2="Eilean Siar Local Authority"),OR($F101=1,$F101=5)),0,new_yllv2(VALUE(LEFT(Options!$B$24,2)),$C101,$D101,$E101,$F101,2016,$I101+$J101,1,$H101,$G101*$H101,Options!B8))) -> 320.529418 | O101: =IF(AND(OR(Calculations!$E$2="Orkney Health Board",Calculations!$E$2="Orkney Islands Local Authority"),$F101=1),0,IF(AND(OR(Calculations!$E$2="Shetland Health Board",Calculations!$E$2="Western Isles Health Board",Calculations!$E$2="Shetland Islands Local Authority",Calculations!$E$2="Eilean Siar Local Authority"),OR($F101=1,$F101=5)),0,hosp_count(VALUE(LEFT(Options!$B$24,2)),$C101,$E101,$F101,2016,$I101,1,$H101,$G101*$H101, Options!B8))) -> 2679.139383 | P101: =IF(AND(OR(Calculations!$E$2="Orkney Health Board",Calculations!$E$2="Orkney Islands Local Authority"),$F101=1),0,IF(AND(OR(Calculations!$E$2="Shetland Health Board",Calculations!$E$2="Western Isles Health Board",Calculations!$E$2="Shetland Islands Local Authority",Calculations!$E$2="Eilean Siar Local Authority"),OR($F101=1,$F101=5)),0,hosp_count(VALUE(LEFT(Options!$B$24,2)),$C101,$E101,$F101,2016,$I101+$J101,1,$H101,$G101*$H101, Options!B8))) -> 2668.363064 | Q101: =IF(AND(OR(Calculations!$E$2="Orkney Health Board",Calculations!$E$2="Orkney Islands Local Authority"),$F101=1),0,IF(AND(OR(Calculations!$E$2="Shetland Health Board",Calculations!$E$2="Western Isles Health Board",Calculations!$E$2="Shetland Islands Local Authority",Calculations!$E$2="Eilean Siar Local Authority"),OR($F101=1,$F101=5)),0,prem_mort(VALUE(LEFT(Options!$B$24,2)),$C101,$E101,$F101,2016,$I101,1,$H101,$G101*$H101,Options!B8))) -> 5.147460506 | R101: =IF(AND(OR(Calculations!$E$2="Orkney Health Board",Calculations!$E$2="Orkney Islands Local Authority"),$F101=1),0,IF(AND(OR(Calculations!$E$2="Shetland Health Board",Calculations!$E$2="Western Isles Health Board",Calculations!$E$2="Shetland Islands Local Authority",Calculations!$E$2="Eilean Siar Local Authority"),OR($F101=1,$F101=5)),0,prem_mort(VALUE(LEFT(Options!$B$24,2)),$C101,$E101,$F101,2016,$I101+$J101,1,$H101,$G101*$H101,Options!B8))) -> 5.126010449 | S101: 22.2631396 | T101: 22.17036654 | U101: 1392.114052 | V101: 1386.312953 | W101: 11587.47192 | X101: 11540.86356 | Y101: 22.2631396 | Z101: 22.17036654 | AA101: 97957.81423 | AB101: 97549.61279 | AC101: 6125301.83 | AD101: 6099776.995 | AE101: 50984876.45 | AF101: 50779799.67 | AG101: 97957.81423 | AH101: 97549.61279 | AI101: 4400
B102: Female 20-24 | C102: 22.077057 | D102: 81.66706 | E102: female | F102: 2 | G102: =HLOOKUP(Calculations!$E$2,'Prevalence Rates'!$C$3:$BC$249,'Prevalence Rates'!$BD102,FALSE) -> 0.2338560191 | H102: =HLOOKUP(Calculations!$E$2,'Population 2016'!$C$3:$BC$249,'Population 2016'!BD102,FALSE) -> 36899 | I102: 0 | J102: =HLOOKUP(Results!E$4,Targeting!$C$3:$F$249,Targeting!$G102,FALSE) -> 2790 | K102: =IF(AND(OR(Calculations!$E$2="Orkney Health Board",Calculations!$E$2="Orkney Islands Local Authority"),$F102=1),0,IF(AND(OR(Calculations!$E$2="Shetland Health Board",Calculations!$E$2="Western Isles Health Board",Calculations!$E$2="Shetland Islands Local Authority",Calculations!$E$2="Eilean Siar Local Authority"),OR($F102=1,$F102=5)),0,new_ci(VALUE(LEFT(Options!$B$24,2)),$C102,$E102,$F102,2016,$I102,1,$H102,$G102*$H102,Options!B8))) -> 12.0520318 | L102: =IF(AND(OR(Calculations!$E$2="Orkney Health Board",Calculations!$E$2="Orkney Islands Local Authority"),$F102=1),0,IF(AND(OR(Calculations!$E$2="Shetland Health Board",Calculations!$E$2="Western Isles Health Board",Calculations!$E$2="Shetland Islands Local Authority",Calculations!$E$2="Eilean Siar Local Authority"),OR($F102=1,$F102=5)),0,new_ci(VALUE(LEFT(Options!$B$24,2)),$C102,$E102,$F102,2016,$I102+$J102,1,$H102,$G102*$H102,Options!B8))) -> 12.00180705 | M102: =IF(AND(OR(Calculations!$E$2="Orkney Health Board",Calculations!$E$2="Orkney Islands Local Authority"),$F102=1),0,IF(AND(OR(Calculations!$E$2="Shetland Health Board",Calculations!$E$2="Western Isles Health Board",Calculations!$E$2="Shetland Islands Local Authority",Calculations!$E$2="Eilean Siar Local Authority"),OR($F102=1,$F102=5)),0,new_yllv2(VALUE(LEFT(Options!$B$24,2)),$C102,$D102,$E102,$F102,2016,$I102,1,$H102,$G102*$H102,Options!B8))) -> 706.1285791 | N102: =IF(AND(OR(Calculations!$E$2="Orkney Health Board",Calculations!$E$2="Orkney Islands Local Authority"),$F102=1),0,IF(AND(OR(Calculations!$E$2="Shetland Health Board",Calculations!$E$2="Western Isles Health Board",Calculations!$E$2="Shetland Islands Local Authority",Calculations!$E$2="Eilean Siar Local Authority"),OR($F102=1,$F102=5)),0,new_yllv2(VALUE(LEFT(Options!$B$24,2)),$C102,$D102,$E102,$F102,2016,$I102+$J102,1,$H102,$G102*$H102,Options!B8))) -> 703.1859113 | O102: =IF(AND(OR(Calculations!$E$2="Orkney Health Board",Calculations!$E$2="Orkney Islands Local Authority"),$F102=1),0,IF(AND(OR(Calculations!$E$2="Shetland Health Board",Calculations!$E$2="Western Isles Health Board",Calculations!$E$2="Shetland Islands Local Authority",Calculations!$E$2="Eilean Siar Local Authority"),OR($F102=1,$F102=5)),0,hosp_count(VALUE(LEFT(Options!$B$24,2)),$C102,$E102,$F102,2016,$I102,1,$H102,$G102*$H102, Options!B8))) -> 4788.927841 | P102: =IF(AND(OR(Calculations!$E$2="Orkney Health Board",Calculations!$E$2="Orkney Islands Local Authority"),$F102=1),0,IF(AND(OR(Calculations!$E$2="Shetland Health Board",Calculations!$E$2="Western Isles Health Board",Calculations!$E$2="Shetland Islands Local Authority",Calculations!$E$2="Eilean Siar Local Authority"),OR($F102=1,$F102=5)),0,hosp_count(VALUE(LEFT(Options!$B$24,2)),$C102,$E102,$F102,2016,$I102+$J102,1,$H102,$G102*$H102, Options!B8))) -> 4769.662877 | Q102: =IF(AND(OR(Calculations!$E$2="Orkney Health Board",Calculations!$E$2="Orkney Islands Local Authority"),$F102=1),0,IF(AND(OR(Calculations!$E$2="Shetland Health Board",Calculations!$E$2="Western Isles Health Board",Calculations!$E$2="Shetland Islands Local Authority",Calculations!$E$2="Eilean Siar Local Authority"),OR($F102=1,$F102=5)),0,prem_mort(VALUE(LEFT(Options!$B$24,2)),$C102,$E102,$F102,2016,$I102,1,$H102,$G102*$H102,Options!B8))) -> 12.0520318 | R102: =IF(AND(OR(Calculations!$E$2="Orkney Health Board",Calculations!$E$2="Orkney Islands Local Authority"),$F102=1),0,IF(AND(OR(Calculations!$E$2="Shetland Health Board",Calculations!$E$2="Western Isles Health Board",Calculations!$E$2="Shetland Islands Local Authority",Calculations!$E$2="Eilean Siar Local Authority"),OR($F102=1,$F102=5)),0,prem_mort(VALUE(LEFT(Options!$B$24,2)),$C102,$E102,$F102,2016,$I102+$J102,1,$H102,$G102*$H102,Options!B8))) -> 12.00180705 | S102: 32.66221794 | T102: 32.52610383 | U102: 1913.679447 | V102: 1905.704521 | W102: 12978.47595 | X102: 12926.26596 | Y102: 32.66221794 | Z102: 32.52610383 | AA102: 195973.3076 | AB102: 195156.623 | AC102: 11482076.68 | AD102: 11434227.13 | AE102: 77870855.7 | AF102: 77557595.76 | AG102: 195973.3076 | AH102: 195156.623 | AI102: 6000
B103: Female 25-29 | C103: 26.975187 | D103: 81.64519 | E103: female | F103: 2 | G103: =HLOOKUP(Calculations!$E$2,'Prevalence Rates'!$C$3:$BC$249,'Prevalence Rates'!$BD103,FALSE) -> 0.1488099278 | H103: =HLOOKUP(Calculations!$E$2,'Population 2016'!$C$3:$BC$249,'Population 2016'!BD103,FALSE) -> 40610 | I103: 0 | J103: =HLOOKUP(Results!E$4,Targeting!$C$3:$F$249,Targeting!$G103,FALSE) -> 3070 | K103: =IF(AND(OR(Calculations!$E$2="Orkney Health Board",Calculations!$E$2="Orkney Islands Local Authority"),$F103=1),0,IF(AND(OR(Calculations!$E$2="Shetland Health Board",Calculations!$E$2="Western Isles Health Board",Calculations!$E$2="Shetland Islands Local Authority",Calculations!$E$2="Eilean Siar Local Authority"),OR($F103=1,$F103=5)),0,new_ci(VALUE(LEFT(Options!$B$24,2)),$C103,$E103,$F103,2016,$I103,1,$H103,$G103*$H103,Options!B8))) -> 20.11740195 | L103: =IF(AND(OR(Calculations!$E$2="Orkney Health Board",Calculations!$E$2="Orkney Islands Local Authority"),$F103=1),0,IF(AND(OR(Calculations!$E$2="Shetland Health Board",Calculations!$E$2="Western Isles Health Board",Calculations!$E$2="Shetland Islands Local Authority",Calculations!$E$2="Eilean Siar Local Authority"),OR($F103=1,$F103=5)),0,new_ci(VALUE(LEFT(Options!$B$24,2)),$C103,$E103,$F103,2016,$I103+$J103,1,$H103,$G103*$H103,Options!B8))) -> 20.03058972 | M103: =IF(AND(OR(Calculations!$E$2="Orkney Health Board",Calculations!$E$2="Orkney Islands Local Authority"),$F103=1),0,IF(AND(OR(Calculations!$E$2="Shetland Health Board",Calculations!$E$2="Western Isles Health Board",Calculations!$E$2="Shetland Islands Local Authority",Calculations!$E$2="Eilean Siar Local Authority"),OR($F103=1,$F103=5)),0,new_yllv2(VALUE(LEFT(Options!$B$24,2)),$C103,$D103,$E103,$F103,2016,$I103,1,$H103,$G103*$H103,Options!B8))) -> 1079.701023 | N103: =IF(AND(OR(Calculations!$E$2="Orkney Health Board",Calculations!$E$2="Orkney Islands Local Authority"),$F103=1),0,IF(AND(OR(Calculations!$E$2="Shetland Health Board",Calculations!$E$2="Western Isles Health Board",Calculations!$E$2="Shetland Islands Local Authority",Calculations!$E$2="Eilean Siar Local Authority"),OR($F103=1,$F103=5)),0,new_yllv2(VALUE(LEFT(Options!$B$24,2)),$C103,$D103,$E103,$F103,2016,$I103+$J103,1,$H103,$G103*$H103,Options!B8))) -> 1075.04181 | O103: =IF(AND(OR(Calculations!$E$2="Orkney Health Board",Calculations!$E$2="Orkney Islands Local Authority"),$F103=1),0,IF(AND(OR(Calculations!$E$2="Shetland Health Board",Calculations!$E$2="Western Isles Health Board",Calculations!$E$2="Shetland Islands Local Authority",Calculations!$E$2="Eilean Siar Local Authority"),OR($F103=1,$F103=5)),0,hosp_count(VALUE(LEFT(Options!$B$24,2)),$C103,$E103,$F103,2016,$I103,1,$H103,$G103*$H103, Options!B8))) -> 5961.621382 | P103: =IF(AND(OR(Calculations!$E$2="Orkney Health Board",Calculations!$E$2="Orkney Islands Local Authority"),$F103=1),0,IF(AND(OR(Calculations!$E$2="Shetland Health Board",Calculations!$E$2="Western Isles Health Board",Calculations!$E$2="Shetland Islands Local Authority",Calculations!$E$2="Eilean Siar Local Authority"),OR($F103=1,$F103=5)),0,hosp_count(VALUE(LEFT(Options!$B$24,2)),$C103,$E103,$F103,2016,$I103+$J103,1,$H103,$G103*$H103, Options!B8))) -> 5937.482322 | Q103: =IF(AND(OR(Calculations!$E$2="Orkney Health Board",Calculations!$E$2="Orkney Islands Local Authority"),$F103=1),0,IF(AND(OR(Calculations!$E$2="Shetland Health Board",Calculations!$E$2="Western Isles Health Board",Calculations!$E$2="Shetland Islands Local Authority",Calculations!$E$2="Eilean Siar Local Authority"),OR($F103=1,$F103=5)),0,prem_mort(VALUE(LEFT(Options!$B$24,2)),$C103,$E103,$F103,2016,$I103,1,$H103,$G103*$H103,Options!B8))) -> 20.11740195 | R103: =IF(AND(OR(Calculations!$E$2="Orkney Health Board",Calculations!$E$2="Orkney Islands Local Authority"),$F103=1),0,IF(AND(OR(Calculations!$E$2="Shetland Health Board",Calculations!$E$2="Western Isles Health Board",Calculations!$E$2="Shetland Islands Local Authority",Calculations!$E$2="Eilean Siar Local Authority"),OR($F103=1,$F103=5)),0,prem_mort(VALUE(LEFT(Options!$B$24,2)),$C103,$E103,$F103,2016,$I103+$J103,1,$H103,$G103*$H103,Options!B8))) -> 20.03058972 | S103: 49.53804963 | T103: 49.32427905 | U103: 2658.707272 | V103: 2647.234205 | W103: 14680.1807 | X103: 14620.73953 | Y103: 49.53804963 | Z103: 49.32427905 | AA103: 297228.2978 | AB103: 295945.6743 | AC103: 15952243.63 | AD103: 15883405.23 | AE103: 88081084.2 | AF103: 87724437.17 | AG103: 297228.2978 | AH103: 295945.6743 | AI103: 6000
B104: Female 30-34 | C104: 31.999905 | D104: 81.7999 | E104: female | F104: 2 | G104: =HLOOKUP(Calculations!$E$2,'Prevalence Rates'!$C$3:$BC$249,'Prevalence Rates'!$BD104,FALSE) -> 0.1488099278 | H104: =HLOOKUP(Calculations!$E$2,'Population 2016'!$C$3:$BC$249,'Population 2016'!BD104,FALSE) -> 38102 | I104: 0 | J104: =HLOOKUP(Results!E$4,Targeting!$C$3:$F$249,Targeting!$G104,FALSE) -> 2881 | K104: =IF(AND(OR(Calculations!$E$2="Orkney Health Board",Calculations!$E$2="Orkney Islands Local Authority"),$F104=1),0,IF(AND(OR(Calculations!$E$2="Shetland Health Board",Calculations!$E$2="Western Isles Health Board",Calculations!$E$2="Shetland Islands Local Authority",Calculations!$E$2="Eilean Siar Local Authority"),OR($F104=1,$F104=5)),0,new_ci(VALUE(LEFT(Options!$B$24,2)),$C104,$E104,$F104,2016,$I104,1,$H104,$G104*$H104,Options!B8))) -> 28.9357177 | L104: =IF(AND(OR(Calculations!$E$2="Orkney Health Board",Calculations!$E$2="Orkney Islands Local Authority"),$F104=1),0,IF(AND(OR(Calculations!$E$2="Shetland Health Board",Calculations!$E$2="Western Isles Health Board",Calculations!$E$2="Shetland Islands Local Authority",Calculations!$E$2="Eilean Siar Local Authority"),OR($F104=1,$F104=5)),0,new_ci(VALUE(LEFT(Options!$B$24,2)),$C104,$E104,$F104,2016,$I104+$J104,1,$H104,$G104*$H104,Options!B8))) -> 28.81085286 | M104: =IF(AND(OR(Calculations!$E$2="Orkney Health Board",Calculations!$E$2="Orkney Islands Local Authority"),$F104=1),0,IF(AND(OR(Calculations!$E$2="Shetland Health Board",Calculations!$E$2="Western Isles Health Board",Calculations!$E$2="Shetland Islands Local Authority",Calculations!$E$2="Eilean Siar Local Authority"),OR($F104=1,$F104=5)),0,new_yllv2(VALUE(LEFT(Options!$B$24,2)),$C104,$D104,$E104,$F104,2016,$I104,1,$H104,$G104*$H104,Options!B8))) -> 1412.062879 | N104: =IF(AND(OR(Calculations!$E$2="Orkney Health Board",Calculations!$E$2="Orkney Islands Local Authority"),$F104=1),0,IF(AND(OR(Calculations!$E$2="Shetland Health Board",Calculations!$E$2="Western Isles Health Board",Calculations!$E$2="Shetland Islands Local Authority",Calculations!$E$2="Eilean Siar Local Authority"),OR($F104=1,$F104=5)),0,new_yllv2(VALUE(LEFT(Options!$B$24,2)),$C104,$D104,$E104,$F104,2016,$I104+$J104,1,$H104,$G104*$H104,Options!B8))) -> 1405.969475 | O104: =IF(AND(OR(Calculations!$E$2="Orkney Health Board",Calculations!$E$2="Orkney Islands Local Authority"),$F104=1),0,IF(AND(OR(Calculations!$E$2="Shetland Health Board",Calculations!$E$2="Western Isles Health Board",Calculations!$E$2="Shetland Islands Local Authority",Calculations!$E$2="Eilean Siar Local Authority"),OR($F104=1,$F104=5)),0,hosp_count(VALUE(LEFT(Options!$B$24,2)),$C104,$E104,$F104,2016,$I104,1,$H104,$G104*$H104, Options!B8))) -> 6347.018148 | P104: =IF(AND(OR(Calculations!$E$2="Orkney Health Board",Calculations!$E$2="Orkney Islands Local Authority"),$F104=1),0,IF(AND(OR(Calculations!$E$2="Shetland Health Board",Calculations!$E$2="Western Isles Health Board",Calculations!$E$2="Shetland Islands Local Authority",Calculations!$E$2="Eilean Siar Local Authority"),OR($F104=1,$F104=5)),0,hosp_count(VALUE(LEFT(Options!$B$24,2)),$C104,$E104,$F104,2016,$I104+$J104,1,$H104,$G104*$H104, Options!B8))) -> 6321.313255 | Q104: =IF(AND(OR(Calculations!$E$2="Orkney Health Board",Calculations!$E$2="Orkney Islands Local Authority"),$F104=1),0,IF(AND(OR(Calculations!$E$2="Shetland Health Board",Calculations!$E$2="Western Isles Health Board",Calculations!$E$2="Shetland Islands Local Authority",Calculations!$E$2="Eilean Siar Local Authority"),OR($F104=1,$F104=5)),0,prem_mort(VALUE(LEFT(Options!$B$24,2)),$C104,$E104,$F104,2016,$I104,1,$H104,$G104*$H104,Options!B8))) -> 28.9357177 | R104: =IF(AND(OR(Calculations!$E$2="Orkney Health Board",Calculations!$E$2="Orkney Islands Local Authority"),$F104=1),0,IF(AND(OR(Calculations!$E$2="Shetland Health Board",Calculations!$E$2="Western Isles Health Board",Calculations!$E$2="Shetland Islands Local Authority",Calculations!$E$2="Eilean Siar Local Authority"),OR($F104=1,$F104=5)),0,prem_mort(VALUE(LEFT(Options!$B$24,2)),$C104,$E104,$F104,2016,$I104+$J104,1,$H104,$G104*$H104,Options!B8))) -> 28.81085286 | S104: 75.94277912 | T104: 75.61506707 | U104: 3706.007241 | V104: 3690.014895 | W104: 16657.96585 | X104: 16590.50248 | Y104: 75.94277912 | Z104: 75.61506707 | AA104: 493628.0643 | AB104: 491497.936 | AC104: 24089047.07 | AD104: 23985096.82 | AE104: 108276778 | AF104: 107838266.1 | AG104: 493628.0643 | AH104: 491497.936 | AI104: 6500
B105: Female 35-39 | C105: 36.918118 | D105: 81.89812 | E105: female | F105: 2 | G105: =HLOOKUP(Calculations!$E$2,'Prevalence Rates'!$C$3:$BC$249,'Prevalence Rates'!$BD105,FALSE) -> 0.1789721735 | H105: =HLOOKUP(Calculations!$E$2,'Population 2016'!$C$3:$BC$249,'Population 2016'!BD105,FALSE) -> 33014 | I105: 0 | J105: =HLOOKUP(Results!E$4,Targeting!$C$3:$F$249,Targeting!$G105,FALSE) -> 2496 | K105: =IF(AND(OR(Calculations!$E$2="Orkney Health Board",Calculations!$E$2="Orkney Islands Local Authority"),$F105=1),0,IF(AND(OR(Calculations!$E$2="Shetland Health Board",Calculations!$E$2="Western Isles Health Board",Calculations!$E$2="Shetland Islands Local Authority",Calculations!$E$2="Eilean Siar Local Authority"),OR($F105=1,$F105=5)),0,new_ci(VALUE(LEFT(Options!$B$24,2)),$C105,$E105,$F105,2016,$I105,1,$H105,$G105*$H105,Options!B8))) -> 38.08625791 | L105: =IF(AND(OR(Calculations!$E$2="Orkney Health Board",Calculations!$E$2="Orkney Islands Local Authority"),$F105=1),0,IF(AND(OR(Calculations!$E$2="Shetland Health Board",Calculations!$E$2="Western Isles Health Board",Calculations!$E$2="Shetland Islands Local Authority",Calculations!$E$2="Eilean Siar Local Authority"),OR($F105=1,$F105=5)),0,new_ci(VALUE(LEFT(Options!$B$24,2)),$C105,$E105,$F105,2016,$I105+$J105,1,$H105,$G105*$H105,Options!B8))) -> 37.92403813 | M105: =IF(AND(OR(Calculations!$E$2="Orkney Health Board",Calculations!$E$2="Orkney Islands Local Authority"),$F105=1),0,IF(AND(OR(Calculations!$E$2="Shetland Health Board",Calculations!$E$2="Western Isles Health Board",Calculations!$E$2="Shetland Islands Local Authority",Calculations!$E$2="Eilean Siar Local Authority"),OR($F105=1,$F105=5)),0,new_yllv2(VALUE(LEFT(Options!$B$24,2)),$C105,$D105,$E105,$F105,2016,$I105,1,$H105,$G105*$H105,Options!B8))) -> 1675.033699 | N105: =IF(AND(OR(Calculations!$E$2="Orkney Health Board",Calculations!$E$2="Orkney Islands Local Authority"),$F105=1),0,IF(AND(OR(Calculations!$E$2="Shetland Health Board",Calculations!$E$2="Western Isles Health Board",Calculations!$E$2="Shetland Islands Local Authority",Calculations!$E$2="Eilean Siar Local Authority"),OR($F105=1,$F105=5)),0,new_yllv2(VALUE(LEFT(Options!$B$24,2)),$C105,$D105,$E105,$F105,2016,$I105+$J105,1,$H105,$G105*$H105,Options!B8))) -> 1667.899273 | O105: =IF(AND(OR(Calculations!$E$2="Orkney Health Board",Calculations!$E$2="Orkney Islands Local Authority"),$F105=1),0,IF(AND(OR(Calculations!$E$2="Shetland Health Board",Calculations!$E$2="Western Isles Health Board",Calculations!$E$2="Shetland Islands Local Authority",Calculations!$E$2="Eilean Siar Local Authority"),OR($F105=1,$F105=5)),0,hosp_count(VALUE(LEFT(Options!$B$24,2)),$C105,$E105,$F105,2016,$I105,1,$H105,$G105*$H105, Options!B8))) -> 6223.679334 | P105: =IF(AND(OR(Calculations!$E$2="Orkney Health Board",Calculations!$E$2="Orkney Islands Local Authority"),$F105=1),0,IF(AND(OR(Calculations!$E$2="Shetland Health Board",Calculations!$E$2="Western Isles Health Board",Calculations!$E$2="Shetland Islands Local Authority",Calculations!$E$2="Eilean Siar Local Authority"),OR($F105=1,$F105=5)),0,hosp_count(VALUE(LEFT(Options!$B$24,2)),$C105,$E105,$F105,2016,$I105+$J105,1,$H105,$G105*$H105, Options!B8))) -> 6198.536754 | Q105: =IF(AND(OR(Calculations!$E$2="Orkney Health Board",Calculations!$E$2="Orkney Islands Local Authority"),$F105=1),0,IF(AND(OR(Calculations!$E$2="Shetland Health Board",Calculations!$E$2="Western Isles Health Board",Calculations!$E$2="Shetland Islands Local Authority",Calculations!$E$2="Eilean Siar Local Authority"),OR($F105=1,$F105=5)),0,prem_mort(VALUE(LEFT(Options!$B$24,2)),$C105,$E105,$F105,2016,$I105,1,$H105,$G105*$H105,Options!B8))) -> 38.08625791 | R105: =IF(AND(OR(Calculations!$E$2="Orkney Health Board",Calculations!$E$2="Orkney Islands Local Authority"),$F105=1),0,IF(AND(OR(Calculations!$E$2="Shetland Health Board",Calculations!$E$2="Western Isles Health Board",Calculations!$E$2="Shetland Islands Local Authority",Calculations!$E$2="Eilean Siar Local Authority"),OR($F105=1,$F105=5)),0,prem_mort(VALUE(LEFT(Options!$B$24,2)),$C105,$E105,$F105,2016,$I105+$J105,1,$H105,$G105*$H105,Options!B8))) -> 37.92403813 | S105: 115.3639605 | T105: 114.8725938 | U105: 5073.707212 | V105: 5052.096906 | W105: 18851.63668 | X105: 18775.47935 | Y105: 115.3639605 | Z105: 114.8725938 | AA105: 807547.7233 | AB105: 804108.1568 | AC105: 35515950.49 | AD105: 35364678.35 | AE105: 131961456.8 | AF105: 131428355.5 | AG105: 807547.7233 | AH105: 804108.1568 | AI105: 7000
B106: Female 40-44 | C106: 42.077438 | D106: 82.30744 | E106: female | F106: 2 | G106: =HLOOKUP(Calculations!$E$2,'Prevalence Rates'!$C$3:$BC$249,'Prevalence Rates'!$BD106,FALSE) -> 0.1789721735 | H106: =HLOOKUP(Calculations!$E$2,'Population 2016'!$C$3:$BC$249,'Population 2016'!BD106,FALSE) -> 33442 | I106: 0 | J106: =HLOOKUP(Results!E$4,Targeting!$C$3:$F$249,Targeting!$G106,FALSE) -> 2528 | K106: =IF(AND(OR(Calculations!$E$2="Orkney Health Board",Calculations!$E$2="Orkney Islands Local Authority"),$F106=1),0,IF(AND(OR(Calculations!$E$2="Shetland Health Board",Calculations!$E$2="Western Isles Health Board",Calculations!$E$2="Shetland Islands Local Authority",Calculations!$E$2="Eilean Siar Local Authority"),OR($F106=1,$F106=5)),0,new_ci(VALUE(LEFT(Options!$B$24,2)),$C106,$E106,$F106,2016,$I106,1,$H106,$G106*$H106,Options!B8))) -> 59.81347376 | L106: =IF(AND(OR(Calculations!$E$2="Orkney Health Board",Calculations!$E$2="Orkney Islands Local Authority"),$F106=1),0,IF(AND(OR(Calculations!$E$2="Shetland Health Board",Calculations!$E$2="Western Isles Health Board",Calculations!$E$2="Shetland Islands Local Authority",Calculations!$E$2="Eilean Siar Local Authority"),OR($F106=1,$F106=5)),0,new_ci(VALUE(LEFT(Options!$B$24,2)),$C106,$E106,$F106,2016,$I106+$J106,1,$H106,$G106*$H106,Options!B8))) -> 59.55887762 | M106: =IF(AND(OR(Calculations!$E$2="Orkney Health Board",Calculations!$E$2="Orkney Islands Local Authority"),$F106=1),0,IF(AND(OR(Calculations!$E$2="Shetland Health Board",Calculations!$E$2="Western Isles Health Board",Calculations!$E$2="Shetland Islands Local Authority",Calculations!$E$2="Eilean Siar Local Authority"),OR($F106=1,$F106=5)),0,new_yllv2(VALUE(LEFT(Options!$B$24,2)),$C106,$D106,$E106,$F106,2016,$I106,1,$H106,$G106*$H106,Options!B8))) -> 2346.482695 | N106: =IF(AND(OR(Calculations!$E$2="Orkney Health Board",Calculations!$E$2="Orkney Islands Local Authority"),$F106=1),0,IF(AND(OR(Calculations!$E$2="Shetland Health Board",Calculations!$E$2="Western Isles Health Board",Calculations!$E$2="Shetland Islands Local Authority",Calculations!$E$2="Eilean Siar Local Authority"),OR($F106=1,$F106=5)),0,new_yllv2(VALUE(LEFT(Options!$B$24,2)),$C106,$D106,$E106,$F106,2016,$I106+$J106,1,$H106,$G106*$H106,Options!B8))) -> 2336.494888 | O106: =IF(AND(OR(Calculations!$E$2="Orkney Health Board",Calculations!$E$2="Orkney Islands Local Authority"),$F106=1),0,IF(AND(OR(Calculations!$E$2="Shetland Health Board",Calculations!$E$2="Western Isles Health Board",Calculations!$E$2="Shetland Islands Local Authority",Calculations!$E$2="Eilean Siar Local Authority"),OR($F106=1,$F106=5)),0,hosp_count(VALUE(LEFT(Options!$B$24,2)),$C106,$E106,$F106,2016,$I106,1,$H106,$G106*$H106, Options!B8))) -> 7177.98054 | P106: =IF(AND(OR(Calculations!$E$2="Orkney Health Board",Calculations!$E$2="Orkney Islands Local Authority"),$F106=1),0,IF(AND(OR(Calculations!$E$2="Shetland Health Board",Calculations!$E$2="Western Isles Health Board",Calculations!$E$2="Shetland Islands Local Authority",Calculations!$E$2="Eilean Siar Local Authority"),OR($F106=1,$F106=5)),0,hosp_count(VALUE(LEFT(Options!$B$24,2)),$C106,$E106,$F106,2016,$I106+$J106,1,$H106,$G106*$H106, Options!B8))) -> 7148.986863 | Q106: =IF(AND(OR(Calculations!$E$2="Orkney Health Board",Calculations!$E$2="Orkney Islands Local Authority"),$F106=1),0,IF(AND(OR(Calculations!$E$2="Shetland Health Board",Calculations!$E$2="Western Isles Health Board",Calculations!$E$2="Shetland Islands Local Authority",Calculations!$E$2="Eilean Siar Local Authority"),OR($F106=1,$F106=5)),0,prem_mort(VALUE(LEFT(Options!$B$24,2)),$C106,$E106,$F106,2016,$I106,1,$H106,$G106*$H106,Options!B8))) -> 59.81347376 | R106: =IF(AND(OR(Calculations!$E$2="Orkney Health Board",Calculations!$E$2="Orkney Islands Local Authority"),$F106=1),0,IF(AND(OR(Calculations!$E$2="Shetland Health Board",Calculations!$E$2="Western Isles Health Board",Calculations!$E$2="Shetland Islands Local Authority",Calculations!$E$2="Eilean Siar Local Authority"),OR($F106=1,$F106=5)),0,prem_mort(VALUE(LEFT(Options!$B$24,2)),$C106,$E106,$F106,2016,$I106+$J106,1,$H106,$G106*$H106,Options!B8))) -> 59.55887762 | S106: 178.8573463 | T106: 178.0960398 | U106: 7016.574054 | V106: 6986.707996 | W106: 21463.96908 | X106: 21377.27069 | Y106: 178.8573463 | Z106: 178.0960398 | AA106: 1252001.424 | AB106: 1246672.278 | AC106: 49116018.38 | AD106: 48906955.97 | AE106: 150247783.6 | AF106: 149640894.8 | AG106: 1252001.424 | AH106: 1246672.278 | AI106: 7000
B107: Female 45-49 | C107: 47.025772 | D107: 82.58577 | E107: female | F107: 2 | G107: =HLOOKUP(Calculations!$E$2,'Prevalence Rates'!$C$3:$BC$249,'Prevalence Rates'!$BD107,FALSE) -> 0.1926728722 | H107: =HLOOKUP(Calculations!$E$2,'Population 2016'!$C$3:$BC$249,'Population 2016'!BD107,FALSE) -> 39170 | I107: 0 | J107: =HLOOKUP(Results!E$4,Targeting!$C$3:$F$249,Targeting!$G107,FALSE) -> 2962 | K107: =IF(AND(OR(Calculations!$E$2="Orkney Health Board",Calculations!$E$2="Orkney Islands Local Authority"),$F107=1),0,IF(AND(OR(Calculations!$E$2="Shetland Health Board",Calculations!$E$2="Western Isles Health Board",Calculations!$E$2="Shetland Islands Local Authority",Calculations!$E$2="Eilean Siar Local Authority"),OR($F107=1,$F107=5)),0,new_ci(VALUE(LEFT(Options!$B$24,2)),$C107,$E107,$F107,2016,$I107,1,$H107,$G107*$H107,Options!B8))) -> 106.6684078 | L107: =IF(AND(OR(Calculations!$E$2="Orkney Health Board",Calculations!$E$2="Orkney Islands Local Authority"),$F107=1),0,IF(AND(OR(Calculations!$E$2="Shetland Health Board",Calculations!$E$2="Western Isles Health Board",Calculations!$E$2="Shetland Islands Local Authority",Calculations!$E$2="Eilean Siar Local Authority"),OR($F107=1,$F107=5)),0,new_ci(VALUE(LEFT(Options!$B$24,2)),$C107,$E107,$F107,2016,$I107+$J107,1,$H107,$G107*$H107,Options!B8))) -> 106.217126 | M107: =IF(AND(OR(Calculations!$E$2="Orkney Health Board",Calculations!$E$2="Orkney Islands Local Authority"),$F107=1),0,IF(AND(OR(Calculations!$E$2="Shetland Health Board",Calculations!$E$2="Western Isles Health Board",Calculations!$E$2="Shetland Islands Local Authority",Calculations!$E$2="Eilean Siar Local Authority"),OR($F107=1,$F107=5)),0,new_yllv2(VALUE(LEFT(Options!$B$24,2)),$C107,$D107,$E107,$F107,2016,$I107,1,$H107,$G107*$H107,Options!B8))) -> 3686.459959 | N107: =IF(AND(OR(Calculations!$E$2="Orkney Health Board",Calculations!$E$2="Orkney Islands Local Authority"),$F107=1),0,IF(AND(OR(Calculations!$E$2="Shetland Health Board",Calculations!$E$2="Western Isles Health Board",Calculations!$E$2="Shetland Islands Local Authority",Calculations!$E$2="Eilean Siar Local Authority"),OR($F107=1,$F107=5)),0,new_yllv2(VALUE(LEFT(Options!$B$24,2)),$C107,$D107,$E107,$F107,2016,$I107+$J107,1,$H107,$G107*$H107,Options!B8))) -> 3670.863664 | O107: =IF(AND(OR(Calculations!$E$2="Orkney Health Board",Calculations!$E$2="Orkney Islands Local Authority"),$F107=1),0,IF(AND(OR(Calculations!$E$2="Shetland Health Board",Calculations!$E$2="Western Isles Health Board",Calculations!$E$2="Shetland Islands Local Authority",Calculations!$E$2="Eilean Siar Local Authority"),OR($F107=1,$F107=5)),0,hosp_count(VALUE(LEFT(Options!$B$24,2)),$C107,$E107,$F107,2016,$I107,1,$H107,$G107*$H107, Options!B8))) -> 9521.815112 | P107: =IF(AND(OR(Calculations!$E$2="Orkney Health Board",Calculations!$E$2="Orkney Islands Local Authority"),$F107=1),0,IF(AND(OR(Calculations!$E$2="Shetland Health Board",Calculations!$E$2="Western Isles Health Board",Calculations!$E$2="Shetland Islands Local Authority",Calculations!$E$2="Eilean Siar Local Authority"),OR($F107=1,$F107=5)),0,hosp_count(VALUE(LEFT(Options!$B$24,2)),$C107,$E107,$F107,2016,$I107+$J107,1,$H107,$G107*$H107, Options!B8))) -> 9483.382634 | Q107: =IF(AND(OR(Calculations!$E$2="Orkney Health Board",Calculations!$E$2="Orkney Islands Local Authority"),$F107=1),0,IF(AND(OR(Calculations!$E$2="Shetland Health Board",Calculations!$E$2="Western Isles Health Board",Calculations!$E$2="Shetland Islands Local Authority",Calculations!$E$2="Eilean Siar Local Authority"),OR($F107=1,$F107=5)),0,prem_mort(VALUE(LEFT(Options!$B$24,2)),$C107,$E107,$F107,2016,$I107,1,$H107,$G107*$H107,Options!B8))) -> 106.6684078 | R107: =IF(AND(OR(Calculations!$E$2="Orkney Health Board",Calculations!$E$2="Orkney Islands Local Authority"),$F107=1),0,IF(AND(OR(Calculations!$E$2="Shetland Health Board",Calculations!$E$2="Western Isles Health Board",Calculations!$E$2="Shetland Islands Local Authority",Calculations!$E$2="Eilean Siar Local Authority"),OR($F107=1,$F107=5)),0,prem_mort(VALUE(LEFT(Options!$B$24,2)),$C107,$E107,$F107,2016,$I107+$J107,1,$H107,$G107*$H107,Options!B8))) -> 106.217126 | S107: 272.3216946 | T107: 271.169584 | U107: 9411.437221 | V107: 9371.62028 | W107: 24308.94846 | X107: 24210.83134 | Y107: 272.3216946 | Z107: 271.169584 | AA107: 1906251.862 | AB107: 1898187.088 | AC107: 65880060.54 | AD107: 65601341.96 | AE107: 170162639.2 | AF107: 169475819.4 | AG107: 1906251.862 | AH107: 1898187.088 | AI107: 7000
B108: Female 50-54 | C108: 51.990826 | D108: 82.98083 | E108: female | F108: 2 | G108: =HLOOKUP(Calculations!$E$2,'Prevalence Rates'!$C$3:$BC$249,'Prevalence Rates'!$BD108,FALSE) -> 0.1926728722 | H108: =HLOOKUP(Calculations!$E$2,'Population 2016'!$C$3:$BC$249,'Population 2016'!BD108,FALSE) -> 40518 | I108: 0 | J108: =HLOOKUP(Results!E$4,Targeting!$C$3:$F$249,Targeting!$G108,FALSE) -> 3063 | K108: =IF(AND(OR(Calculations!$E$2="Orkney Health Board",Calculations!$E$2="Orkney Islands Local Authority"),$F108=1),0,IF(AND(OR(Calculations!$E$2="Shetland Health Board",Calculations!$E$2="Western Isles Health Board",Calculations!$E$2="Shetland Islands Local Authority",Calculations!$E$2="Eilean Siar Local Authority"),OR($F108=1,$F108=5)),0,new_ci(VALUE(LEFT(Options!$B$24,2)),$C108,$E108,$F108,2016,$I108,1,$H108,$G108*$H108,Options!B8))) -> 168.1950672 | L108: =IF(AND(OR(Calculations!$E$2="Orkney Health Board",Calculations!$E$2="Orkney Islands Local Authority"),$F108=1),0,IF(AND(OR(Calculations!$E$2="Shetland Health Board",Calculations!$E$2="Western Isles Health Board",Calculations!$E$2="Shetland Islands Local Authority",Calculations!$E$2="Eilean Siar Local Authority"),OR($F108=1,$F108=5)),0,new_ci(VALUE(LEFT(Options!$B$24,2)),$C108,$E108,$F108,2016,$I108+$J108,1,$H108,$G108*$H108,Options!B8))) -> 167.48451 | M108: =IF(AND(OR(Calculations!$E$2="Orkney Health Board",Calculations!$E$2="Orkney Islands Local Authority"),$F108=1),0,IF(AND(OR(Calculations!$E$2="Shetland Health Board",Calculations!$E$2="Western Isles Health Board",Calculations!$E$2="Shetland Islands Local Authority",Calculations!$E$2="Eilean Siar Local Authority"),OR($F108=1,$F108=5)),0,new_yllv2(VALUE(LEFT(Options!$B$24,2)),$C108,$D108,$E108,$F108,2016,$I108,1,$H108,$G108*$H108,Options!B8))) -> 5044.170738 | N108: =IF(AND(OR(Calculations!$E$2="Orkney Health Board",Calculations!$E$2="Orkney Islands Local Authority"),$F108=1),0,IF(AND(OR(Calculations!$E$2="Shetland Health Board",Calculations!$E$2="Western Isles Health Board",Calculations!$E$2="Shetland Islands Local Authority",Calculations!$E$2="Eilean Siar Local Authority"),OR($F108=1,$F108=5)),0,new_yllv2(VALUE(LEFT(Options!$B$24,2)),$C108,$D108,$E108,$F108,2016,$I108+$J108,1,$H108,$G108*$H108,Options!B8))) -> 5022.861125 | O108: =IF(AND(OR(Calculations!$E$2="Orkney Health Board",Calculations!$E$2="Orkney Islands Local Authority"),$F108=1),0,IF(AND(OR(Calculations!$E$2="Shetland Health Board",Calculations!$E$2="Western Isles Health Board",Calculations!$E$2="Shetland Islands Local Authority",Calculations!$E$2="Eilean Siar Local Authority"),OR($F108=1,$F108=5)),0,hosp_count(VALUE(LEFT(Options!$B$24,2)),$C108,$E108,$F108,2016,$I108,1,$H108,$G108*$H108, Options!B8))) -> 11159.71138 | P108: =IF(AND(OR(Calculations!$E$2="Orkney Health Board",Calculations!$E$2="Orkney Islands Local Authority"),$F108=1),0,IF(AND(OR(Calculations!$E$2="Shetland Health Board",Calculations!$E$2="Western Isles Health Board",Calculations!$E$2="Shetland Islands Local Authority",Calculations!$E$2="Eilean Siar Local Authority"),OR($F108=1,$F108=5)),0,hosp_count(VALUE(LEFT(Options!$B$24,2)),$C108,$E108,$F108,2016,$I108+$J108,1,$H108,$G108*$H108, Options!B8))) -> 11114.68168 | Q108: =IF(AND(OR(Calculations!$E$2="Orkney Health Board",Calculations!$E$2="Orkney Islands Local Authority"),$F108=1),0,IF(AND(OR(Calculations!$E$2="Shetland Health Board",Calculations!$E$2="Western Isles Health Board",Calculations!$E$2="Shetland Islands Local Authority",Calculations!$E$2="Eilean Siar Local Authority"),OR($F108=1,$F108=5)),0,prem_mort(VALUE(LEFT(Options!$B$24,2)),$C108,$E108,$F108,2016,$I108,1,$H108,$G108*$H108,Options!B8))) -> 168.1950672 | R108: =IF(AND(OR(Calculations!$E$2="Orkney Health Board",Calculations!$E$2="Orkney Islands Local Authority"),$F108=1),0,IF(AND(OR(Calculations!$E$2="Shetland Health Board",Calculations!$E$2="Western Isles Health Board",Calculations!$E$2="Shetland Islands Local Authority",Calculations!$E$2="Eilean Siar Local Authority"),OR($F108=1,$F108=5)),0,prem_mort(VALUE(LEFT(Options!$B$24,2)),$C108,$E108,$F108,2016,$I108+$J108,1,$H108,$G108*$H108,Options!B8))) -> 167.48451 | S108: 415.111968 | T108: 413.3582852 | U108: 12449.20958 | V108: 12396.61663 | W108: 27542.60176 | X108: 27431.46669 | Y108: 415.111968 | Z108: 413.3582852 | AA108: 2905783.776 | AB108: 2893507.996 | AC108: 87144467.06 | AD108: 86776316.38 | AE108: 192798212.3 | AF108: 192020266.9 | AG108: 2905783.776 | AH108: 2893507.996 | AI108: 7000
B109: Female 55-59 | C109: 56.953041 | D109: 83.47304 | E109: female | F109: 2 | G109: =HLOOKUP(Calculations!$E$2,'Prevalence Rates'!$C$3:$BC$249,'Prevalence Rates'!$BD109,FALSE) -> 0.1338288872 | H109: =HLOOKUP(Calculations!$E$2,'Population 2016'!$C$3:$BC$249,'Population 2016'!BD109,FALSE) -> 37275 | I109: 0 | J109: =HLOOKUP(Results!E$4,Targeting!$C$3:$F$249,Targeting!$G109,FALSE) -> 2818 | K109: =IF(AND(OR(Calculations!$E$2="Orkney Health Board",Calculations!$E$2="Orkney Islands Local Authority"),$F109=1),0,IF(AND(OR(Calculations!$E$2="Shetland Health Board",Calculations!$E$2="Western Isles Health Board",Calculations!$E$2="Shetland Islands Local Authority",Calculations!$E$2="Eilean Siar Local Authority"),OR($F109=1,$F109=5)),0,new_ci(VALUE(LEFT(Options!$B$24,2)),$C109,$E109,$F109,2016,$I109,1,$H109,$G109*$H109,Options!B8))) -> 235.7229008 | L109: =IF(AND(OR(Calculations!$E$2="Orkney Health Board",Calculations!$E$2="Orkney Islands Local Authority"),$F109=1),0,IF(AND(OR(Calculations!$E$2="Shetland Health Board",Calculations!$E$2="Western Isles Health Board",Calculations!$E$2="Shetland Islands Local Authority",Calculations!$E$2="Eilean Siar Local Authority"),OR($F109=1,$F109=5)),0,new_ci(VALUE(LEFT(Options!$B$24,2)),$C109,$E109,$F109,2016,$I109+$J109,1,$H109,$G109*$H109,Options!B8))) -> 234.704134 | M109: =IF(AND(OR(Calculations!$E$2="Orkney Health Board",Calculations!$E$2="Orkney Islands Local Authority"),$F109=1),0,IF(AND(OR(Calculations!$E$2="Shetland Health Board",Calculations!$E$2="Western Isles Health Board",Calculations!$E$2="Shetland Islands Local Authority",Calculations!$E$2="Eilean Siar Local Authority"),OR($F109=1,$F109=5)),0,new_yllv2(VALUE(LEFT(Options!$B$24,2)),$C109,$D109,$E109,$F109,2016,$I109,1,$H109,$G109*$H109,Options!B8))) -> 6015.648192 | N109: =IF(AND(OR(Calculations!$E$2="Orkney Health Board",Calculations!$E$2="Orkney Islands Local Authority"),$F109=1),0,IF(AND(OR(Calculations!$E$2="Shetland Health Board",Calculations!$E$2="Western Isles Health Board",Calculations!$E$2="Shetland Islands Local Authority",Calculations!$E$2="Eilean Siar Local Authority"),OR($F109=1,$F109=5)),0,new_yllv2(VALUE(LEFT(Options!$B$24,2)),$C109,$D109,$E109,$F109,2016,$I109+$J109,1,$H109,$G109*$H109,Options!B8))) -> 5989.649266 | O109: =IF(AND(OR(Calculations!$E$2="Orkney Health Board",Calculations!$E$2="Orkney Islands Local Authority"),$F109=1),0,IF(AND(OR(Calculations!$E$2="Shetland Health Board",Calculations!$E$2="Western Isles Health Board",Calculations!$E$2="Shetland Islands Local Authority",Calculations!$E$2="Eilean Siar Local Authority"),OR($F109=1,$F109=5)),0,hosp_count(VALUE(LEFT(Options!$B$24,2)),$C109,$E109,$F109,2016,$I109,1,$H109,$G109*$H109, Options!B8))) -> 11631.35715 | P109: =IF(AND(OR(Calculations!$E$2="Orkney Health Board",Calculations!$E$2="Orkney Islands Local Authority"),$F109=1),0,IF(AND(OR(Calculations!$E$2="Shetland Health Board",Calculations!$E$2="Western Isles Health Board",Calculations!$E$2="Shetland Islands Local Authority",Calculations!$E$2="Eilean Siar Local Authority"),OR($F109=1,$F109=5)),0,hosp_count(VALUE(LEFT(Options!$B$24,2)),$C109,$E109,$F109,2016,$I109+$J109,1,$H109,$G109*$H109, Options!B8))) -> 11584.2031 | Q109: =IF(AND(OR(Calculations!$E$2="Orkney Health Board",Calculations!$E$2="Orkney Islands Local Authority"),$F109=1),0,IF(AND(OR(Calculations!$E$2="Shetland Health Board",Calculations!$E$2="Western Isles Health Board",Calculations!$E$2="Shetland Islands Local Authority",Calculations!$E$2="Eilean Siar Local Authority"),OR($F109=1,$F109=5)),0,prem_mort(VALUE(LEFT(Options!$B$24,2)),$C109,$E109,$F109,2016,$I109,1,$H109,$G109*$H109,Options!B8))) -> 235.7229008 | R109: =IF(AND(OR(Calculations!$E$2="Orkney Health Board",Calculations!$E$2="Orkney Islands Local Authority"),$F109=1),0,IF(AND(OR(Calculations!$E$2="Shetland Health Board",Calculations!$E$2="Western Isles Health Board",Calculations!$E$2="Shetland Islands Local Authority",Calculations!$E$2="Eilean Siar Local Authority"),OR($F109=1,$F109=5)),0,prem_mort(VALUE(LEFT(Options!$B$24,2)),$C109,$E109,$F109,2016,$I109+$J109,1,$H109,$G109*$H109,Options!B8))) -> 234.704134 | S109: 632.3887345 | T109: 629.6556245 | U109: 16138.55987 | V109: 16068.81091 | W109: 31204.17746 | X109: 31077.67431 | Y109: 632.3887345 | Z109: 629.6556245 | AA109: 4110526.774 | AB109: 4092761.559 | AC109: 104900639.2 | AD109: 104447270.9 | AE109: 202827153.5 | AF109: 202004883 | AG109: 4110526.774 | AH109: 4092761.559 | AI109: 6500
